Body Name,Date Paid,Transaction Number,Amount,Supplier Name,Supplier Type,Expense Area,Cost Centre Description,Expense Type
Cambridgeshire County Council,13-Nov-17,24233972-16348824,-43597.25,Ocs Group Uk Ltd,Trade Supplier,Control Accounts,Uncleared bank items,Bank Overdraft Expenditure / Payments
Cambridgeshire County Council,14-Nov-17,24598774-16356066,-33594,Cambridgeshire And Peterborough Nhs Foundation Trust,Trust (Other),4 - Commissioning - Mental Health & Supporting People,Adults MH CPMHT Central costs,Contribution to Partnerships
Cambridgeshire County Council,03-Nov-17,24234010-16301623,-30557.14,The Caldecott Foundation,Charity,Control Accounts,Uncleared bank items,Bank Overdraft Expenditure / Payments
Cambridgeshire County Council,06-Nov-17,24233983-16305978,-19840,Positive Steps (Care Services) Ltd,Care Establishment,Control Accounts,Uncleared bank items,Bank Overdraft Expenditure / Payments
Cambridgeshire County Council,28-Nov-17,24817753-16424963,-7917.5,The Private Hire Company,Trade Supplier,Corporate Services,LDP Young Adults - Care,SDS - PB Travel
Cambridgeshire County Council,20-Nov-17,24764848-16388885,-7800,Wings Education Ltd,Trade Supplier,S&C,Placements - Social Care,Agency Placements - Out County
Cambridgeshire County Council,17-Nov-17,24834730-16386752,-6320,Huntingdon Town Council,Other Public Bodies,Corporate Services,Coroners General,Jurors and Witness Payments
Cambridgeshire County Council,24-Nov-17,24854351-16413312,-5971,Brookdale Healthcare Limited,Care Establishment,2 - Operations - Learning Disability,LDP Hunts special needs,Short Term Other
Cambridgeshire County Council,24-Nov-17,24854348-16413309,-5971,Brookdale Healthcare Limited,Care Establishment,2 - Operations - Learning Disability,LDP Hunts special needs,Short Term Other
Cambridgeshire County Council,24-Nov-17,24854350-16413311,-5971,Brookdale Healthcare Limited,Care Establishment,2 - Operations - Learning Disability,LDP Hunts special needs,Short Term Other
Cambridgeshire County Council,23-Nov-17,24233998-16401694,-5275.82,Social Communications,Education,Control Accounts,Uncleared bank items,Bank Overdraft Expenditure / Payments
Cambridgeshire County Council,09-Nov-17,24788193-16341589,-4655,Brookdale Healthcare Limited,Care Establishment,4 - Operations - Providers services,LDP Huntingdonshire Locality - Care,Respite Independent Sector
Cambridgeshire County Council,09-Nov-17,24788202-16341595,-4655,Brookdale Healthcare Limited,Care Establishment,4 - Operations - Providers services,LDP Huntingdonshire Locality - Care,Respite Independent Sector
Cambridgeshire County Council,16-Nov-17,24830242-16379138,-4655,Brookdale Healthcare Limited,Care Establishment,2 - Operations - Learning Disability,LDP Hunts special needs,Respite Independent Sector
Cambridgeshire County Council,16-Nov-17,24830244-16379140,-4655,Brookdale Healthcare Limited,Care Establishment,4 - Operations - Providers services,LDP Huntingdonshire Locality - Care,Respite Independent Sector
Cambridgeshire County Council,24-Nov-17,24856008-16413323,-4655,Brookdale Healthcare Limited,Care Establishment,4 - Operations - Providers services,LDP Huntingdonshire Locality - Care,Respite Independent Sector
Cambridgeshire County Council,09-Nov-17,24605222-16341573,-4655,Brookdale Healthcare Limited,Care Establishment,4 - Operations - Providers services,LDP Huntingdonshire Locality - Care,Respite Independent Sector
Cambridgeshire County Council,16-Nov-17,24830234-16379130,-4655,Brookdale Healthcare Limited,Care Establishment,2 - Operations - Learning Disability,LDP Hunts special needs,Respite Independent Sector
Cambridgeshire County Council,16-Nov-17,24830237-16379133,-4655,Brookdale Healthcare Limited,Care Establishment,2 - Operations - Learning Disability,LDP Hunts special needs,Respite Independent Sector
Cambridgeshire County Council,09-Nov-17,24788204-16341597,-4655,Brookdale Healthcare Limited,Care Establishment,2 - Operations - Learning Disability,LDP Hunts special needs,Respite Independent Sector
Cambridgeshire County Council,09-Nov-17,24788212-16341603,-4655,Brookdale Healthcare Limited,Care Establishment,4 - Operations - Providers services,LDP Huntingdonshire Locality - Care,Respite Independent Sector
Cambridgeshire County Council,09-Nov-17,24788194-16341590,-4655,Brookdale Healthcare Limited,Care Establishment,2 - Operations - Learning Disability,LDP Hunts special needs,Respite Independent Sector
Cambridgeshire County Council,09-Nov-17,24788199-16341592,-4655,Brookdale Healthcare Limited,Care Establishment,2 - Operations - Learning Disability,LDP Hunts special needs,Respite Independent Sector
Cambridgeshire County Council,16-Nov-17,24830236-16379132,-4655,Brookdale Healthcare Limited,Care Establishment,4 - Operations - Providers services,LDP Huntingdonshire Locality - Care,Respite Independent Sector
Cambridgeshire County Council,24-Nov-17,24856014-16413329,-4655,Brookdale Healthcare Limited,Care Establishment,4 - Operations - Providers services,LDP Huntingdonshire Locality - Care,Respite Independent Sector
Cambridgeshire County Council,24-Nov-17,24856018-16413333,-4655,Brookdale Healthcare Limited,Care Establishment,4 - Operations - Providers services,LDP Huntingdonshire Locality - Care,Respite Independent Sector
Cambridgeshire County Council,09-Nov-17,24605207-16341563,-4655,Brookdale Healthcare Limited,Care Establishment,4 - Operations - Providers services,LDP Huntingdonshire Locality - Care,Respite Independent Sector
Cambridgeshire County Council,16-Nov-17,24830227-16379123,-4655,Brookdale Healthcare Limited,Care Establishment,4 - Operations - Providers services,LDP Huntingdonshire Locality - Care,Respite Independent Sector
Cambridgeshire County Council,09-Nov-17,24605205-16341562,-4655,Brookdale Healthcare Limited,Care Establishment,2 - Operations - Learning Disability,LDP Hunts special needs,Respite Independent Sector
Cambridgeshire County Council,09-Nov-17,24788192-16341588,-4655,Brookdale Healthcare Limited,Care Establishment,4 - Operations - Providers services,LDP Huntingdonshire Locality - Care,Respite Independent Sector
Cambridgeshire County Council,16-Nov-17,24830232-16379128,-4655,Brookdale Healthcare Limited,Care Establishment,4 - Operations - Providers services,LDP Huntingdonshire Locality - Care,Respite Independent Sector
Cambridgeshire County Council,24-Nov-17,24856003-16413318,-4655,Brookdale Healthcare Limited,Care Establishment,4 - Operations - Providers services,LDP Huntingdonshire Locality - Care,Respite Independent Sector
Cambridgeshire County Council,09-Nov-17,24605194-16341556,-4655,Brookdale Healthcare Limited,Care Establishment,2 - Operations - Learning Disability,LDP Hunts special needs,Respite Independent Sector
Cambridgeshire County Council,09-Nov-17,24605200-16341560,-4655,Brookdale Healthcare Limited,Care Establishment,2 - Operations - Learning Disability,LDP Hunts special needs,Respite Independent Sector
Cambridgeshire County Council,09-Nov-17,24605201-16341561,-4655,Brookdale Healthcare Limited,Care Establishment,2 - Operations - Learning Disability,LDP Hunts special needs,Respite Independent Sector
Cambridgeshire County Council,09-Nov-17,24605218-16341569,-4655,Brookdale Healthcare Limited,Care Establishment,4 - Operations - Providers services,LDP Huntingdonshire Locality - Care,Respite Independent Sector
Cambridgeshire County Council,09-Nov-17,24605220-16341571,-4655,Brookdale Healthcare Limited,Care Establishment,4 - Operations - Providers services,LDP Huntingdonshire Locality - Care,Respite Independent Sector
Cambridgeshire County Council,09-Nov-17,24788208-16341599,-4655,Brookdale Healthcare Limited,Care Establishment,4 - Operations - Providers services,LDP Huntingdonshire Locality - Care,Respite Independent Sector
Cambridgeshire County Council,09-Nov-17,24788217-16341605,-4655,Brookdale Healthcare Limited,Care Establishment,2 - Operations - Learning Disability,LDP Hunts special needs,Respite Independent Sector
Cambridgeshire County Council,16-Nov-17,24830231-16379127,-4655,Brookdale Healthcare Limited,Care Establishment,4 - Operations - Providers services,LDP Huntingdonshire Locality - Care,Respite Independent Sector
Cambridgeshire County Council,24-Nov-17,24856011-16413326,-4655,Brookdale Healthcare Limited,Care Establishment,2 - Operations - Learning Disability,LDP Hunts special needs,Respite Independent Sector
Cambridgeshire County Council,24-Nov-17,24856012-16413327,-4655,Brookdale Healthcare Limited,Care Establishment,2 - Operations - Learning Disability,LDP Hunts special needs,Respite Independent Sector
Cambridgeshire County Council,24-Nov-17,24856015-16413330,-4655,Brookdale Healthcare Limited,Care Establishment,2 - Operations - Learning Disability,LDP Hunts special needs,Respite Independent Sector
Cambridgeshire County Council,09-Nov-17,24605213-16341567,-4655,Brookdale Healthcare Limited,Care Establishment,2 - Operations - Learning Disability,LDP Hunts special needs,Respite Independent Sector
Cambridgeshire County Council,16-Nov-17,24830245-16379141,-4655,Brookdale Healthcare Limited,Care Establishment,2 - Operations - Learning Disability,LDP Hunts special needs,Respite Independent Sector
Cambridgeshire County Council,24-Nov-17,24856010-16413325,-4655,Brookdale Healthcare Limited,Care Establishment,4 - Operations - Providers services,LDP Huntingdonshire Locality - Care,Respite Independent Sector
Cambridgeshire County Council,24-Nov-17,24856016-16413331,-4655,Brookdale Healthcare Limited,Care Establishment,4 - Operations - Providers services,LDP Huntingdonshire Locality - Care,Respite Independent Sector
Cambridgeshire County Council,02-Nov-17,24578506-16288969,-4391.18,Affinity Trust,Care Establishment,2 - Operations - Learning Disability,LDP Hunts special needs,Day and Domicillary Care Independent Sector
Cambridgeshire County Council,02-Nov-17,24578461-16288965,-4391.18,Affinity Trust,Care Establishment,2 - Operations - Learning Disability,LDP Hunts special needs,Day and Domicillary Care Independent Sector
Cambridgeshire County Council,02-Nov-17,24578498-16288967,-4391.18,Affinity Trust,Care Establishment,2 - Operations - Learning Disability,LDP Hunts special needs,Day and Domicillary Care Independent Sector
Cambridgeshire County Council,09-Nov-17,24605193-16341555,-3325,Brookdale Healthcare Limited,Care Establishment,4 - Operations - Providers services,LDP Huntingdonshire Locality - Care,Respite Independent Sector
Cambridgeshire County Council,16-Nov-17,24830230-16379126,-3325,Brookdale Healthcare Limited,Care Establishment,4 - Operations - Providers services,LDP Huntingdonshire Locality - Care,Respite Independent Sector
Cambridgeshire County Council,24-Nov-17,24855999-16413314,-3325,Brookdale Healthcare Limited,Care Establishment,4 - Operations - Providers services,LDP Huntingdonshire Locality - Care,Respite Independent Sector
Cambridgeshire County Council,09-Nov-17,24788191-16341587,-3325,Brookdale Healthcare Limited,Care Establishment,4 - Operations - Providers services,LDP Huntingdonshire Locality - Care,Respite Independent Sector
Cambridgeshire County Council,27-Nov-17,24796340-16417659,-3268.01,Brighter Futures Foster Care,Care Establishment,S&C,Placements - Social Care,Agency Placements - In Cambs
Cambridgeshire County Council,27-Nov-17,24822447-16417611,-3030,Nexus Fostering Ltd,Care Establishment,S&C,Placements - Social Care,Agency Placements - Out County
Cambridgeshire County Council,27-Nov-17,24821651-16417609,-3030,Nexus Fostering Ltd,Care Establishment,S&C,Placements - Social Care,Agency Placements - Out County
Cambridgeshire County Council,02-Nov-17,24610518-16288397,-2977.44,Decoy Farm,Care Establishment,4 - Operations - Providers services,LDP E Cambs Special Needs,Residential Independent Sector
Cambridgeshire County Council,02-Nov-17,24610550-16288429,-2977.44,Decoy Farm,Care Establishment,4 - Operations - Providers services,LDP E Cambs Special Needs,Residential Independent Sector
Cambridgeshire County Council,02-Nov-17,24607475-16288198,-2977.44,Decoy Farm,Care Establishment,4 - Operations - Providers services,LDP E Cambs Special Needs,Residential Independent Sector
Cambridgeshire County Council,02-Nov-17,24607438-16288210,-2977.44,Decoy Farm,Care Establishment,4 - Operations - Providers services,LDP E Cambs Special Needs,Residential Independent Sector
Cambridgeshire County Council,02-Nov-17,24608518-16288244,-2977.44,Decoy Farm,Care Establishment,4 - Operations - Providers services,LDP E Cambs Special Needs,Residential Independent Sector
Cambridgeshire County Council,02-Nov-17,24608539-16288265,-2977.44,Decoy Farm,Care Establishment,4 - Operations - Providers services,LDP E Cambs Special Needs,Residential Independent Sector
Cambridgeshire County Council,02-Nov-17,24608440-16288279,-2977.44,Decoy Farm,Care Establishment,4 - Operations - Providers services,LDP E Cambs Special Needs,Residential Independent Sector
Cambridgeshire County Council,02-Nov-17,24608462-16288301,-2977.44,Decoy Farm,Care Establishment,4 - Operations - Providers services,LDP E Cambs Special Needs,Residential Independent Sector
Cambridgeshire County Council,02-Nov-17,24608464-16288303,-2977.44,Decoy Farm,Care Establishment,4 - Operations - Providers services,LDP E Cambs Special Needs,Residential Independent Sector
Cambridgeshire County Council,02-Nov-17,24608477-16288316,-2977.44,Decoy Farm,Care Establishment,4 - Operations - Providers services,LDP E Cambs Special Needs,Residential Independent Sector
Cambridgeshire County Council,02-Nov-17,24608487-16288326,-2977.44,Decoy Farm,Care Establishment,4 - Operations - Providers services,LDP E Cambs Special Needs,Residential Independent Sector
Cambridgeshire County Council,02-Nov-17,24608490-16288329,-2977.44,Decoy Farm,Care Establishment,4 - Operations - Providers services,LDP E Cambs Special Needs,Residential Independent Sector
Cambridgeshire County Council,02-Nov-17,24608501-16288340,-2977.44,Decoy Farm,Care Establishment,4 - Operations - Providers services,LDP E Cambs Special Needs,Residential Independent Sector
Cambridgeshire County Council,02-Nov-17,24610491-16288370,-2977.44,Decoy Farm,Care Establishment,4 - Operations - Providers services,LDP E Cambs Special Needs,Residential Independent Sector
Cambridgeshire County Council,02-Nov-17,24610497-16288376,-2977.44,Decoy Farm,Care Establishment,4 - Operations - Providers services,LDP E Cambs Special Needs,Residential Independent Sector
Cambridgeshire County Council,02-Nov-17,24610498-16288377,-2977.44,Decoy Farm,Care Establishment,4 - Operations - Providers services,LDP E Cambs Special Needs,Residential Independent Sector
Cambridgeshire County Council,16-Nov-17,24825624-16380271,-2977.44,Decoy Farm,Care Establishment,4 - Operations - Providers services,LDP E Cambs Special Needs,Residential Independent Sector
Cambridgeshire County Council,16-Nov-17,24825655-16380302,-2977.44,Decoy Farm,Care Establishment,4 - Operations - Providers services,LDP E Cambs Special Needs,Residential Independent Sector
Cambridgeshire County Council,16-Nov-17,24825548-16380313,-2977.44,Decoy Farm,Care Establishment,4 - Operations - Providers services,LDP E Cambs Special Needs,Residential Independent Sector
Cambridgeshire County Council,16-Nov-17,24825568-16380333,-2977.44,Decoy Farm,Care Establishment,4 - Operations - Providers services,LDP E Cambs Special Needs,Residential Independent Sector
Cambridgeshire County Council,16-Nov-17,24825569-16380334,-2977.44,Decoy Farm,Care Establishment,4 - Operations - Providers services,LDP E Cambs Special Needs,Residential Independent Sector
Cambridgeshire County Council,16-Nov-17,24828609-16380380,-2977.44,Decoy Farm,Care Establishment,4 - Operations - Providers services,LDP E Cambs Special Needs,Residential Independent Sector
Cambridgeshire County Council,16-Nov-17,24828610-16380381,-2977.44,Decoy Farm,Care Establishment,4 - Operations - Providers services,LDP E Cambs Special Needs,Residential Independent Sector
Cambridgeshire County Council,16-Nov-17,24831528-16380398,-2977.44,Decoy Farm,Care Establishment,4 - Operations - Providers services,LDP E Cambs Special Needs,Residential Independent Sector
Cambridgeshire County Council,16-Nov-17,24831531-16380401,-2977.44,Decoy Farm,Care Establishment,4 - Operations - Providers services,LDP E Cambs Special Needs,Residential Independent Sector
Cambridgeshire County Council,16-Nov-17,24831546-16380416,-2977.44,Decoy Farm,Care Establishment,4 - Operations - Providers services,LDP E Cambs Special Needs,Residential Independent Sector
Cambridgeshire County Council,16-Nov-17,24831557-16380427,-2977.44,Decoy Farm,Care Establishment,4 - Operations - Providers services,LDP E Cambs Special Needs,Residential Independent Sector
Cambridgeshire County Council,16-Nov-17,24828541-16380086,-2977.44,Decoy Farm,Care Establishment,4 - Operations - Providers services,LDP E Cambs Special Needs,Residential Independent Sector
Cambridgeshire County Council,16-Nov-17,24828554-16380099,-2977.44,Decoy Farm,Care Establishment,4 - Operations - Providers services,LDP E Cambs Special Needs,Residential Independent Sector
Cambridgeshire County Council,16-Nov-17,24828556-16380101,-2977.44,Decoy Farm,Care Establishment,4 - Operations - Providers services,LDP E Cambs Special Needs,Residential Independent Sector
Cambridgeshire County Council,16-Nov-17,24771385-16380105,-2977.44,Decoy Farm,Care Establishment,4 - Operations - Providers services,LDP E Cambs Special Needs,Residential Independent Sector
Cambridgeshire County Council,16-Nov-17,24771396-16380116,-2977.44,Decoy Farm,Care Establishment,4 - Operations - Providers services,LDP E Cambs Special Needs,Residential Independent Sector
Cambridgeshire County Council,16-Nov-17,24778472-16380128,-2977.44,Decoy Farm,Care Establishment,4 - Operations - Providers services,LDP E Cambs Special Needs,Residential Independent Sector
Cambridgeshire County Council,16-Nov-17,24778524-16380177,-2977.44,Decoy Farm,Care Establishment,4 - Operations - Providers services,LDP E Cambs Special Needs,Residential Independent Sector
Cambridgeshire County Council,16-Nov-17,24778527-16380180,-2977.44,Decoy Farm,Care Establishment,4 - Operations - Providers services,LDP E Cambs Special Needs,Residential Independent Sector
Cambridgeshire County Council,16-Nov-17,24778528-16380181,-2977.44,Decoy Farm,Care Establishment,4 - Operations - Providers services,LDP E Cambs Special Needs,Residential Independent Sector
Cambridgeshire County Council,16-Nov-17,24778543-16380194,-2977.44,Decoy Farm,Care Establishment,4 - Operations - Providers services,LDP E Cambs Special Needs,Residential Independent Sector
Cambridgeshire County Council,16-Nov-17,24778552-16380203,-2977.44,Decoy Farm,Care Establishment,4 - Operations - Providers services,LDP E Cambs Special Needs,Residential Independent Sector
Cambridgeshire County Council,16-Nov-17,24778557-16380208,-2977.44,Decoy Farm,Care Establishment,4 - Operations - Providers services,LDP E Cambs Special Needs,Residential Independent Sector
Cambridgeshire County Council,16-Nov-17,24778566-16380217,-2977.44,Decoy Farm,Care Establishment,4 - Operations - Providers services,LDP E Cambs Special Needs,Residential Independent Sector
Cambridgeshire County Council,16-Nov-17,24778567-16380218,-2977.44,Decoy Farm,Care Establishment,4 - Operations - Providers services,LDP E Cambs Special Needs,Residential Independent Sector
Cambridgeshire County Council,16-Nov-17,24778569-16380220,-2977.44,Decoy Farm,Care Establishment,4 - Operations - Providers services,LDP E Cambs Special Needs,Residential Independent Sector
Cambridgeshire County Council,16-Nov-17,24825584-16380231,-2977.44,Decoy Farm,Care Establishment,4 - Operations - Providers services,LDP E Cambs Special Needs,Residential Independent Sector
Cambridgeshire County Council,16-Nov-17,24778451-16379934,-2977.44,Decoy Farm,Care Establishment,4 - Operations - Providers services,LDP E Cambs Special Needs,Residential Independent Sector
Cambridgeshire County Council,16-Nov-17,24778432-16379958,-2977.44,Decoy Farm,Care Establishment,4 - Operations - Providers services,LDP E Cambs Special Needs,Residential Independent Sector
Cambridgeshire County Council,16-Nov-17,24771400-16379971,-2977.44,Decoy Farm,Care Establishment,4 - Operations - Providers services,LDP E Cambs Special Needs,Residential Independent Sector
Cambridgeshire County Council,16-Nov-17,24771431-16380001,-2977.44,Decoy Farm,Care Establishment,4 - Operations - Providers services,LDP E Cambs Special Needs,Residential Independent Sector
Cambridgeshire County Council,16-Nov-17,24771485-16380050,-2977.44,Decoy Farm,Care Establishment,4 - Operations - Providers services,LDP E Cambs Special Needs,Residential Independent Sector
Cambridgeshire County Council,16-Nov-17,24828569-16380068,-2977.44,Decoy Farm,Care Establishment,4 - Operations - Providers services,LDP E Cambs Special Needs,Residential Independent Sector
Cambridgeshire County Council,24-Nov-17,24854637-16404901,-2977.44,Decoy Farm,Care Establishment,4 - Operations - Providers services,LDP E Cambs Special Needs,Residential Independent Sector
Cambridgeshire County Council,24-Nov-17,24860524-16404982,-2977.44,Decoy Farm,Care Establishment,4 - Operations - Providers services,LDP E Cambs Special Needs,Residential Independent Sector
Cambridgeshire County Council,24-Nov-17,24860539-16404997,-2977.44,Decoy Farm,Care Establishment,4 - Operations - Providers services,LDP E Cambs Special Needs,Residential Independent Sector
Cambridgeshire County Council,24-Nov-17,24860542-16405000,-2977.44,Decoy Farm,Care Establishment,4 - Operations - Providers services,LDP E Cambs Special Needs,Residential Independent Sector
Cambridgeshire County Council,24-Nov-17,24860437-16405015,-2977.44,Decoy Farm,Care Establishment,4 - Operations - Providers services,LDP E Cambs Special Needs,Residential Independent Sector
Cambridgeshire County Council,24-Nov-17,24860466-16405044,-2977.44,Decoy Farm,Care Establishment,4 - Operations - Providers services,LDP E Cambs Special Needs,Residential Independent Sector
Cambridgeshire County Council,24-Nov-17,24860475-16405053,-2977.44,Decoy Farm,Care Establishment,4 - Operations - Providers services,LDP E Cambs Special Needs,Residential Independent Sector
Cambridgeshire County Council,24-Nov-17,24860483-16405061,-2977.44,Decoy Farm,Care Establishment,4 - Operations - Providers services,LDP E Cambs Special Needs,Residential Independent Sector
Cambridgeshire County Council,24-Nov-17,24860485-16405063,-2977.44,Decoy Farm,Care Establishment,4 - Operations - Providers services,LDP E Cambs Special Needs,Residential Independent Sector
Cambridgeshire County Council,24-Nov-17,24860500-16405078,-2977.44,Decoy Farm,Care Establishment,4 - Operations - Providers services,LDP E Cambs Special Needs,Residential Independent Sector
Cambridgeshire County Council,24-Nov-17,24860504-16405082,-2977.44,Decoy Farm,Care Establishment,4 - Operations - Providers services,LDP E Cambs Special Needs,Residential Independent Sector
Cambridgeshire County Council,24-Nov-17,24862446-16405120,-2977.44,Decoy Farm,Care Establishment,4 - Operations - Providers services,LDP E Cambs Special Needs,Residential Independent Sector
Cambridgeshire County Council,24-Nov-17,24862462-16405136,-2977.44,Decoy Farm,Care Establishment,4 - Operations - Providers services,LDP E Cambs Special Needs,Residential Independent Sector
Cambridgeshire County Council,30-Nov-17,24878378-16439068,-2977.44,Decoy Farm,Care Establishment,4 - Operations - Providers services,LDP E Cambs Special Needs,Residential Independent Sector
Cambridgeshire County Council,30-Nov-17,24878410-16439100,-2977.44,Decoy Farm,Care Establishment,4 - Operations - Providers services,LDP E Cambs Special Needs,Residential Independent Sector
Cambridgeshire County Council,30-Nov-17,24878309-16439101,-2977.44,Decoy Farm,Care Establishment,4 - Operations - Providers services,LDP E Cambs Special Needs,Residential Independent Sector
Cambridgeshire County Council,30-Nov-17,24878314-16439106,-2977.44,Decoy Farm,Care Establishment,4 - Operations - Providers services,LDP E Cambs Special Needs,Residential Independent Sector
Cambridgeshire County Council,30-Nov-17,24880412-16439130,-2977.44,Decoy Farm,Care Establishment,4 - Operations - Providers services,LDP E Cambs Special Needs,Residential Independent Sector
Cambridgeshire County Council,30-Nov-17,24880435-16439153,-2977.44,Decoy Farm,Care Establishment,4 - Operations - Providers services,LDP E Cambs Special Needs,Residential Independent Sector
Cambridgeshire County Council,30-Nov-17,24877264-16438911,-2977.44,Decoy Farm,Care Establishment,4 - Operations - Providers services,LDP E Cambs Special Needs,Residential Independent Sector
Cambridgeshire County Council,30-Nov-17,24877274-16438946,-2977.44,Decoy Farm,Care Establishment,4 - Operations - Providers services,LDP E Cambs Special Needs,Residential Independent Sector
Cambridgeshire County Council,30-Nov-17,24877287-16438959,-2977.44,Decoy Farm,Care Establishment,4 - Operations - Providers services,LDP E Cambs Special Needs,Residential Independent Sector
Cambridgeshire County Council,30-Nov-17,24877288-16438960,-2977.44,Decoy Farm,Care Establishment,4 - Operations - Providers services,LDP E Cambs Special Needs,Residential Independent Sector
Cambridgeshire County Council,30-Nov-17,24877305-16438977,-2977.44,Decoy Farm,Care Establishment,4 - Operations - Providers services,LDP E Cambs Special Needs,Residential Independent Sector
Cambridgeshire County Council,30-Nov-17,24878308-16438981,-2977.44,Decoy Farm,Care Establishment,4 - Operations - Providers services,LDP E Cambs Special Needs,Residential Independent Sector
Cambridgeshire County Council,30-Nov-17,24878329-16438985,-2977.44,Decoy Farm,Care Establishment,4 - Operations - Providers services,LDP E Cambs Special Needs,Residential Independent Sector
Cambridgeshire County Council,30-Nov-17,24878340-16438996,-2977.44,Decoy Farm,Care Establishment,4 - Operations - Providers services,LDP E Cambs Special Needs,Residential Independent Sector
Cambridgeshire County Council,30-Nov-17,24878343-16438999,-2977.44,Decoy Farm,Care Establishment,4 - Operations - Providers services,LDP E Cambs Special Needs,Residential Independent Sector
Cambridgeshire County Council,30-Nov-17,24878345-16439001,-2977.44,Decoy Farm,Care Establishment,4 - Operations - Providers services,LDP E Cambs Special Needs,Residential Independent Sector
Cambridgeshire County Council,30-Nov-17,24878357-16439013,-2977.44,Decoy Farm,Care Establishment,4 - Operations - Providers services,LDP E Cambs Special Needs,Residential Independent Sector
Cambridgeshire County Council,02-Nov-17,24610538-16288417,-2977.44,Decoy Farm,Care Establishment,4 - Operations - Providers services,LDP E Cambs Special Needs,Residential Independent Sector
Cambridgeshire County Council,02-Nov-17,24610546-16288425,-2977.44,Decoy Farm,Care Establishment,4 - Operations - Providers services,LDP E Cambs Special Needs,Residential Independent Sector
Cambridgeshire County Council,02-Nov-17,24610555-16288434,-2977.44,Decoy Farm,Care Establishment,4 - Operations - Providers services,LDP E Cambs Special Needs,Residential Independent Sector
Cambridgeshire County Council,02-Nov-17,24607467-16288190,-2977.44,Decoy Farm,Care Establishment,4 - Operations - Providers services,LDP E Cambs Special Needs,Residential Independent Sector
Cambridgeshire County Council,02-Nov-17,24607428-16288200,-2977.44,Decoy Farm,Care Establishment,4 - Operations - Providers services,LDP E Cambs Special Needs,Residential Independent Sector
Cambridgeshire County Council,02-Nov-17,24607431-16288203,-2977.44,Decoy Farm,Care Establishment,4 - Operations - Providers services,LDP E Cambs Special Needs,Residential Independent Sector
Cambridgeshire County Council,02-Nov-17,24607457-16288229,-2977.44,Decoy Farm,Care Establishment,4 - Operations - Providers services,LDP E Cambs Special Needs,Residential Independent Sector
Cambridgeshire County Council,02-Nov-17,24608515-16288241,-2977.44,Decoy Farm,Care Establishment,4 - Operations - Providers services,LDP E Cambs Special Needs,Residential Independent Sector
Cambridgeshire County Council,02-Nov-17,24608522-16288248,-2977.44,Decoy Farm,Care Establishment,4 - Operations - Providers services,LDP E Cambs Special Needs,Residential Independent Sector
Cambridgeshire County Council,02-Nov-17,24608537-16288263,-2977.44,Decoy Farm,Care Establishment,4 - Operations - Providers services,LDP E Cambs Special Needs,Residential Independent Sector
Cambridgeshire County Council,02-Nov-17,24608444-16288283,-2977.44,Decoy Farm,Care Establishment,4 - Operations - Providers services,LDP E Cambs Special Needs,Residential Independent Sector
Cambridgeshire County Council,02-Nov-17,24608451-16288290,-2977.44,Decoy Farm,Care Establishment,4 - Operations - Providers services,LDP E Cambs Special Needs,Residential Independent Sector
Cambridgeshire County Council,02-Nov-17,24608454-16288293,-2977.44,Decoy Farm,Care Establishment,4 - Operations - Providers services,LDP E Cambs Special Needs,Residential Independent Sector
Cambridgeshire County Council,02-Nov-17,24608480-16288319,-2977.44,Decoy Farm,Care Establishment,4 - Operations - Providers services,LDP E Cambs Special Needs,Residential Independent Sector
Cambridgeshire County Council,02-Nov-17,24608485-16288324,-2977.44,Decoy Farm,Care Establishment,4 - Operations - Providers services,LDP E Cambs Special Needs,Residential Independent Sector
Cambridgeshire County Council,02-Nov-17,24608489-16288328,-2977.44,Decoy Farm,Care Establishment,4 - Operations - Providers services,LDP E Cambs Special Needs,Residential Independent Sector
Cambridgeshire County Council,02-Nov-17,24609442-16288358,-2977.44,Decoy Farm,Care Establishment,4 - Operations - Providers services,LDP E Cambs Special Needs,Residential Independent Sector
Cambridgeshire County Council,16-Nov-17,24825595-16380242,-2977.44,Decoy Farm,Care Establishment,4 - Operations - Providers services,LDP E Cambs Special Needs,Residential Independent Sector
Cambridgeshire County Council,16-Nov-17,24825611-16380258,-2977.44,Decoy Farm,Care Establishment,4 - Operations - Providers services,LDP E Cambs Special Needs,Residential Independent Sector
Cambridgeshire County Council,16-Nov-17,24825618-16380265,-2977.44,Decoy Farm,Care Establishment,4 - Operations - Providers services,LDP E Cambs Special Needs,Residential Independent Sector
Cambridgeshire County Council,16-Nov-17,24825632-16380279,-2977.44,Decoy Farm,Care Establishment,4 - Operations - Providers services,LDP E Cambs Special Needs,Residential Independent Sector
Cambridgeshire County Council,16-Nov-17,24825641-16380288,-2977.44,Decoy Farm,Care Establishment,4 - Operations - Providers services,LDP E Cambs Special Needs,Residential Independent Sector
Cambridgeshire County Council,16-Nov-17,24825644-16380291,-2977.44,Decoy Farm,Care Establishment,4 - Operations - Providers services,LDP E Cambs Special Needs,Residential Independent Sector
Cambridgeshire County Council,16-Nov-17,24825547-16380312,-2977.44,Decoy Farm,Care Establishment,4 - Operations - Providers services,LDP E Cambs Special Needs,Residential Independent Sector
Cambridgeshire County Council,16-Nov-17,24825561-16380326,-2977.44,Decoy Farm,Care Establishment,4 - Operations - Providers services,LDP E Cambs Special Needs,Residential Independent Sector
Cambridgeshire County Council,16-Nov-17,24825562-16380327,-2977.44,Decoy Farm,Care Establishment,4 - Operations - Providers services,LDP E Cambs Special Needs,Residential Independent Sector
Cambridgeshire County Council,16-Nov-17,24828586-16380357,-2977.44,Decoy Farm,Care Establishment,4 - Operations - Providers services,LDP E Cambs Special Needs,Residential Independent Sector
Cambridgeshire County Council,16-Nov-17,24828593-16380364,-2977.44,Decoy Farm,Care Establishment,4 - Operations - Providers services,LDP E Cambs Special Needs,Residential Independent Sector
Cambridgeshire County Council,16-Nov-17,24831516-16380386,-2977.44,Decoy Farm,Care Establishment,4 - Operations - Providers services,LDP E Cambs Special Needs,Residential Independent Sector
Cambridgeshire County Council,16-Nov-17,24831571-16380441,-2977.44,Decoy Farm,Care Establishment,4 - Operations - Providers services,LDP E Cambs Special Needs,Residential Independent Sector
Cambridgeshire County Council,16-Nov-17,24828539-16380084,-2977.44,Decoy Farm,Care Establishment,4 - Operations - Providers services,LDP E Cambs Special Needs,Residential Independent Sector
Cambridgeshire County Council,16-Nov-17,24771391-16380111,-2977.44,Decoy Farm,Care Establishment,4 - Operations - Providers services,LDP E Cambs Special Needs,Residential Independent Sector
Cambridgeshire County Council,16-Nov-17,24778493-16380148,-2977.44,Decoy Farm,Care Establishment,4 - Operations - Providers services,LDP E Cambs Special Needs,Residential Independent Sector
Cambridgeshire County Council,16-Nov-17,24778505-16380159,-2977.44,Decoy Farm,Care Establishment,4 - Operations - Providers services,LDP E Cambs Special Needs,Residential Independent Sector
Cambridgeshire County Council,16-Nov-17,24778509-16380163,-2977.44,Decoy Farm,Care Establishment,4 - Operations - Providers services,LDP E Cambs Special Needs,Residential Independent Sector
Cambridgeshire County Council,16-Nov-17,24778549-16380200,-2977.44,Decoy Farm,Care Establishment,4 - Operations - Providers services,LDP E Cambs Special Needs,Residential Independent Sector
Cambridgeshire County Council,16-Nov-17,24778558-16380209,-2977.44,Decoy Farm,Care Establishment,4 - Operations - Providers services,LDP E Cambs Special Needs,Residential Independent Sector
Cambridgeshire County Council,16-Nov-17,24778575-16380226,-2977.44,Decoy Farm,Care Establishment,4 - Operations - Providers services,LDP E Cambs Special Needs,Residential Independent Sector
Cambridgeshire County Council,16-Nov-17,24825585-16380232,-2977.44,Decoy Farm,Care Establishment,4 - Operations - Providers services,LDP E Cambs Special Needs,Residential Independent Sector
Cambridgeshire County Council,16-Nov-17,24778452-16379935,-2977.44,Decoy Farm,Care Establishment,4 - Operations - Providers services,LDP E Cambs Special Needs,Residential Independent Sector
Cambridgeshire County Council,16-Nov-17,24778454-16379937,-2977.44,Decoy Farm,Care Establishment,4 - Operations - Providers services,LDP E Cambs Special Needs,Residential Independent Sector
Cambridgeshire County Council,16-Nov-17,24771406-16379977,-2977.44,Decoy Farm,Care Establishment,4 - Operations - Providers services,LDP E Cambs Special Needs,Residential Independent Sector
Cambridgeshire County Council,16-Nov-17,24771464-16380031,-2977.44,Decoy Farm,Care Establishment,4 - Operations - Providers services,LDP E Cambs Special Needs,Residential Independent Sector
Cambridgeshire County Council,16-Nov-17,24771481-16380048,-2977.44,Decoy Farm,Care Establishment,4 - Operations - Providers services,LDP E Cambs Special Needs,Residential Independent Sector
Cambridgeshire County Council,24-Nov-17,24854674-16404938,-2977.44,Decoy Farm,Care Establishment,4 - Operations - Providers services,LDP E Cambs Special Needs,Residential Independent Sector
Cambridgeshire County Council,24-Nov-17,24854677-16404941,-2977.44,Decoy Farm,Care Establishment,4 - Operations - Providers services,LDP E Cambs Special Needs,Residential Independent Sector
Cambridgeshire County Council,24-Nov-17,24854685-16404949,-2977.44,Decoy Farm,Care Establishment,4 - Operations - Providers services,LDP E Cambs Special Needs,Residential Independent Sector
Cambridgeshire County Council,24-Nov-17,24854693-16404957,-2977.44,Decoy Farm,Care Establishment,4 - Operations - Providers services,LDP E Cambs Special Needs,Residential Independent Sector
Cambridgeshire County Council,24-Nov-17,24854694-16404958,-2977.44,Decoy Farm,Care Establishment,4 - Operations - Providers services,LDP E Cambs Special Needs,Residential Independent Sector
Cambridgeshire County Council,24-Nov-17,24860540-16404998,-2977.44,Decoy Farm,Care Establishment,4 - Operations - Providers services,LDP E Cambs Special Needs,Residential Independent Sector
Cambridgeshire County Council,24-Nov-17,24860448-16405026,-2977.44,Decoy Farm,Care Establishment,4 - Operations - Providers services,LDP E Cambs Special Needs,Residential Independent Sector
Cambridgeshire County Council,24-Nov-17,24860462-16405040,-2977.44,Decoy Farm,Care Establishment,4 - Operations - Providers services,LDP E Cambs Special Needs,Residential Independent Sector
Cambridgeshire County Council,24-Nov-17,24860476-16405054,-2977.44,Decoy Farm,Care Establishment,4 - Operations - Providers services,LDP E Cambs Special Needs,Residential Independent Sector
Cambridgeshire County Council,24-Nov-17,24860482-16405060,-2977.44,Decoy Farm,Care Establishment,4 - Operations - Providers services,LDP E Cambs Special Needs,Residential Independent Sector
Cambridgeshire County Council,24-Nov-17,24860501-16405079,-2977.44,Decoy Farm,Care Establishment,4 - Operations - Providers services,LDP E Cambs Special Needs,Residential Independent Sector
Cambridgeshire County Council,24-Nov-17,24860549-16405093,-2977.44,Decoy Farm,Care Establishment,4 - Operations - Providers services,LDP E Cambs Special Needs,Residential Independent Sector
Cambridgeshire County Council,24-Nov-17,24862439-16405113,-2977.44,Decoy Farm,Care Establishment,4 - Operations - Providers services,LDP E Cambs Special Needs,Residential Independent Sector
Cambridgeshire County Council,24-Nov-17,24862441-16405115,-2977.44,Decoy Farm,Care Establishment,4 - Operations - Providers services,LDP E Cambs Special Needs,Residential Independent Sector
Cambridgeshire County Council,24-Nov-17,24862452-16405126,-2977.44,Decoy Farm,Care Establishment,4 - Operations - Providers services,LDP E Cambs Special Needs,Residential Independent Sector
Cambridgeshire County Council,24-Nov-17,24862469-16405143,-2977.44,Decoy Farm,Care Establishment,4 - Operations - Providers services,LDP E Cambs Special Needs,Residential Independent Sector
Cambridgeshire County Council,24-Nov-17,24862470-16405144,-2977.44,Decoy Farm,Care Establishment,4 - Operations - Providers services,LDP E Cambs Special Needs,Residential Independent Sector
Cambridgeshire County Council,30-Nov-17,24878443-16439065,-2977.44,Decoy Farm,Care Establishment,4 - Operations - Providers services,LDP E Cambs Special Needs,Residential Independent Sector
Cambridgeshire County Council,30-Nov-17,24878377-16439067,-2977.44,Decoy Farm,Care Establishment,4 - Operations - Providers services,LDP E Cambs Special Needs,Residential Independent Sector
Cambridgeshire County Council,30-Nov-17,24878395-16439085,-2977.44,Decoy Farm,Care Establishment,4 - Operations - Providers services,LDP E Cambs Special Needs,Residential Independent Sector
Cambridgeshire County Council,30-Nov-17,24880415-16439133,-2977.44,Decoy Farm,Care Establishment,4 - Operations - Providers services,LDP E Cambs Special Needs,Residential Independent Sector
Cambridgeshire County Council,30-Nov-17,24880428-16439146,-2977.44,Decoy Farm,Care Establishment,4 - Operations - Providers services,LDP E Cambs Special Needs,Residential Independent Sector
Cambridgeshire County Council,30-Nov-17,24877260-16438907,-2977.44,Decoy Farm,Care Establishment,4 - Operations - Providers services,LDP E Cambs Special Needs,Residential Independent Sector
Cambridgeshire County Council,30-Nov-17,24877316-16438929,-2977.44,Decoy Farm,Care Establishment,4 - Operations - Providers services,LDP E Cambs Special Needs,Residential Independent Sector
Cambridgeshire County Council,30-Nov-17,24877295-16438967,-2977.44,Decoy Farm,Care Establishment,4 - Operations - Providers services,LDP E Cambs Special Needs,Residential Independent Sector
Cambridgeshire County Council,30-Nov-17,24878334-16438990,-2977.44,Decoy Farm,Care Establishment,4 - Operations - Providers services,LDP E Cambs Special Needs,Residential Independent Sector
Cambridgeshire County Council,30-Nov-17,24878341-16438997,-2977.44,Decoy Farm,Care Establishment,4 - Operations - Providers services,LDP E Cambs Special Needs,Residential Independent Sector
Cambridgeshire County Council,30-Nov-17,24878344-16439000,-2977.44,Decoy Farm,Care Establishment,4 - Operations - Providers services,LDP E Cambs Special Needs,Residential Independent Sector
Cambridgeshire County Council,30-Nov-17,24878362-16439018,-2977.44,Decoy Farm,Care Establishment,4 - Operations - Providers services,LDP E Cambs Special Needs,Residential Independent Sector
Cambridgeshire County Council,30-Nov-17,24878365-16439021,-2977.44,Decoy Farm,Care Establishment,4 - Operations - Providers services,LDP E Cambs Special Needs,Residential Independent Sector
Cambridgeshire County Council,30-Nov-17,24878370-16439026,-2977.44,Decoy Farm,Care Establishment,4 - Operations - Providers services,LDP E Cambs Special Needs,Residential Independent Sector
Cambridgeshire County Council,02-Nov-17,24610519-16288398,-2977.44,Decoy Farm,Care Establishment,4 - Operations - Providers services,LDP E Cambs Special Needs,Residential Independent Sector
Cambridgeshire County Council,02-Nov-17,24610522-16288401,-2977.44,Decoy Farm,Care Establishment,4 - Operations - Providers services,LDP E Cambs Special Needs,Residential Independent Sector
Cambridgeshire County Council,02-Nov-17,24610523-16288402,-2977.44,Decoy Farm,Care Establishment,4 - Operations - Providers services,LDP E Cambs Special Needs,Residential Independent Sector
Cambridgeshire County Council,02-Nov-17,24607469-16288192,-2977.44,Decoy Farm,Care Establishment,4 - Operations - Providers services,LDP E Cambs Special Needs,Residential Independent Sector
Cambridgeshire County Council,02-Nov-17,24607472-16288195,-2977.44,Decoy Farm,Care Establishment,4 - Operations - Providers services,LDP E Cambs Special Needs,Residential Independent Sector
Cambridgeshire County Council,02-Nov-17,24607430-16288202,-2977.44,Decoy Farm,Care Establishment,4 - Operations - Providers services,LDP E Cambs Special Needs,Residential Independent Sector
Cambridgeshire County Council,02-Nov-17,24607433-16288205,-2977.44,Decoy Farm,Care Establishment,4 - Operations - Providers services,LDP E Cambs Special Needs,Residential Independent Sector
Cambridgeshire County Council,02-Nov-17,24608427-16288267,-2977.44,Decoy Farm,Care Establishment,4 - Operations - Providers services,LDP E Cambs Special Needs,Residential Independent Sector
Cambridgeshire County Council,02-Nov-17,24608432-16288272,-2977.44,Decoy Farm,Care Establishment,4 - Operations - Providers services,LDP E Cambs Special Needs,Residential Independent Sector
Cambridgeshire County Council,02-Nov-17,24608442-16288281,-2977.44,Decoy Farm,Care Establishment,4 - Operations - Providers services,LDP E Cambs Special Needs,Residential Independent Sector
Cambridgeshire County Council,02-Nov-17,24608476-16288315,-2977.44,Decoy Farm,Care Establishment,4 - Operations - Providers services,LDP E Cambs Special Needs,Residential Independent Sector
Cambridgeshire County Council,02-Nov-17,24608482-16288321,-2977.44,Decoy Farm,Care Establishment,4 - Operations - Providers services,LDP E Cambs Special Needs,Residential Independent Sector
Cambridgeshire County Council,02-Nov-17,24608495-16288334,-2977.44,Decoy Farm,Care Establishment,4 - Operations - Providers services,LDP E Cambs Special Needs,Residential Independent Sector
Cambridgeshire County Council,02-Nov-17,24609443-16288359,-2977.44,Decoy Farm,Care Establishment,4 - Operations - Providers services,LDP E Cambs Special Needs,Residential Independent Sector
Cambridgeshire County Council,02-Nov-17,24610490-16288369,-2977.44,Decoy Farm,Care Establishment,4 - Operations - Providers services,LDP E Cambs Special Needs,Residential Independent Sector
Cambridgeshire County Council,02-Nov-17,24610499-16288378,-2977.44,Decoy Farm,Care Establishment,4 - Operations - Providers services,LDP E Cambs Special Needs,Residential Independent Sector
Cambridgeshire County Council,02-Nov-17,24610502-16288381,-2977.44,Decoy Farm,Care Establishment,4 - Operations - Providers services,LDP E Cambs Special Needs,Residential Independent Sector
Cambridgeshire County Council,02-Nov-17,24610506-16288385,-2977.44,Decoy Farm,Care Establishment,4 - Operations - Providers services,LDP E Cambs Special Needs,Residential Independent Sector
Cambridgeshire County Council,16-Nov-17,24825604-16380251,-2977.44,Decoy Farm,Care Establishment,4 - Operations - Providers services,LDP E Cambs Special Needs,Residential Independent Sector
Cambridgeshire County Council,16-Nov-17,24825627-16380274,-2977.44,Decoy Farm,Care Establishment,4 - Operations - Providers services,LDP E Cambs Special Needs,Residential Independent Sector
Cambridgeshire County Council,16-Nov-17,24825633-16380280,-2977.44,Decoy Farm,Care Establishment,4 - Operations - Providers services,LDP E Cambs Special Needs,Residential Independent Sector
Cambridgeshire County Council,16-Nov-17,24825648-16380295,-2977.44,Decoy Farm,Care Establishment,4 - Operations - Providers services,LDP E Cambs Special Needs,Residential Independent Sector
Cambridgeshire County Council,16-Nov-17,24825654-16380301,-2977.44,Decoy Farm,Care Establishment,4 - Operations - Providers services,LDP E Cambs Special Needs,Residential Independent Sector
Cambridgeshire County Council,16-Nov-17,24825656-16380303,-2977.44,Decoy Farm,Care Establishment,4 - Operations - Providers services,LDP E Cambs Special Needs,Residential Independent Sector
Cambridgeshire County Council,16-Nov-17,24825549-16380314,-2977.44,Decoy Farm,Care Establishment,4 - Operations - Providers services,LDP E Cambs Special Needs,Residential Independent Sector
Cambridgeshire County Council,16-Nov-17,24825564-16380329,-2977.44,Decoy Farm,Care Establishment,4 - Operations - Providers services,LDP E Cambs Special Needs,Residential Independent Sector
Cambridgeshire County Council,16-Nov-17,24825578-16380343,-2977.44,Decoy Farm,Care Establishment,4 - Operations - Providers services,LDP E Cambs Special Needs,Residential Independent Sector
Cambridgeshire County Council,16-Nov-17,24828585-16380356,-2977.44,Decoy Farm,Care Establishment,4 - Operations - Providers services,LDP E Cambs Special Needs,Residential Independent Sector
Cambridgeshire County Council,16-Nov-17,24828594-16380365,-2977.44,Decoy Farm,Care Establishment,4 - Operations - Providers services,LDP E Cambs Special Needs,Residential Independent Sector
Cambridgeshire County Council,16-Nov-17,24831513-16380383,-2977.44,Decoy Farm,Care Establishment,4 - Operations - Providers services,LDP E Cambs Special Needs,Residential Independent Sector
Cambridgeshire County Council,16-Nov-17,24831515-16380385,-2977.44,Decoy Farm,Care Establishment,4 - Operations - Providers services,LDP E Cambs Special Needs,Residential Independent Sector
Cambridgeshire County Council,16-Nov-17,24831523-16380393,-2977.44,Decoy Farm,Care Establishment,4 - Operations - Providers services,LDP E Cambs Special Needs,Residential Independent Sector
Cambridgeshire County Council,16-Nov-17,24831526-16380396,-2977.44,Decoy Farm,Care Establishment,4 - Operations - Providers services,LDP E Cambs Special Needs,Residential Independent Sector
Cambridgeshire County Council,16-Nov-17,24831550-16380420,-2977.44,Decoy Farm,Care Establishment,4 - Operations - Providers services,LDP E Cambs Special Needs,Residential Independent Sector
Cambridgeshire County Council,16-Nov-17,24831568-16380438,-2977.44,Decoy Farm,Care Establishment,4 - Operations - Providers services,LDP E Cambs Special Needs,Residential Independent Sector
Cambridgeshire County Council,16-Nov-17,24771395-16380115,-2977.44,Decoy Farm,Care Establishment,4 - Operations - Providers services,LDP E Cambs Special Needs,Residential Independent Sector
Cambridgeshire County Council,16-Nov-17,24778466-16380122,-2977.44,Decoy Farm,Care Establishment,4 - Operations - Providers services,LDP E Cambs Special Needs,Residential Independent Sector
Cambridgeshire County Council,16-Nov-17,24778470-16380126,-2977.44,Decoy Farm,Care Establishment,4 - Operations - Providers services,LDP E Cambs Special Needs,Residential Independent Sector
Cambridgeshire County Council,16-Nov-17,24778471-16380127,-2977.44,Decoy Farm,Care Establishment,4 - Operations - Providers services,LDP E Cambs Special Needs,Residential Independent Sector
Cambridgeshire County Council,16-Nov-17,24778492-16380147,-2977.44,Decoy Farm,Care Establishment,4 - Operations - Providers services,LDP E Cambs Special Needs,Residential Independent Sector
Cambridgeshire County Council,16-Nov-17,24778504-16380158,-2977.44,Decoy Farm,Care Establishment,4 - Operations - Providers services,LDP E Cambs Special Needs,Residential Independent Sector
Cambridgeshire County Council,16-Nov-17,24778513-16380166,-2977.44,Decoy Farm,Care Establishment,4 - Operations - Providers services,LDP E Cambs Special Needs,Residential Independent Sector
Cambridgeshire County Council,16-Nov-17,24778522-16380175,-2977.44,Decoy Farm,Care Establishment,4 - Operations - Providers services,LDP E Cambs Special Needs,Residential Independent Sector
Cambridgeshire County Council,16-Nov-17,24778535-16380186,-2977.44,Decoy Farm,Care Establishment,4 - Operations - Providers services,LDP E Cambs Special Needs,Residential Independent Sector
Cambridgeshire County Council,16-Nov-17,24778420-16379948,-2977.44,Decoy Farm,Care Establishment,4 - Operations - Providers services,LDP E Cambs Special Needs,Residential Independent Sector
Cambridgeshire County Council,16-Nov-17,24771414-16379984,-2977.44,Decoy Farm,Care Establishment,4 - Operations - Providers services,LDP E Cambs Special Needs,Residential Independent Sector
Cambridgeshire County Council,16-Nov-17,24771418-16379988,-2977.44,Decoy Farm,Care Establishment,4 - Operations - Providers services,LDP E Cambs Special Needs,Residential Independent Sector
Cambridgeshire County Council,16-Nov-17,24771420-16379990,-2977.44,Decoy Farm,Care Establishment,4 - Operations - Providers services,LDP E Cambs Special Needs,Residential Independent Sector
Cambridgeshire County Council,16-Nov-17,24771450-16380018,-2977.44,Decoy Farm,Care Establishment,4 - Operations - Providers services,LDP E Cambs Special Needs,Residential Independent Sector
Cambridgeshire County Council,16-Nov-17,24771459-16380026,-2977.44,Decoy Farm,Care Establishment,4 - Operations - Providers services,LDP E Cambs Special Needs,Residential Independent Sector
Cambridgeshire County Council,24-Nov-17,24854654-16404918,-2977.44,Decoy Farm,Care Establishment,4 - Operations - Providers services,LDP E Cambs Special Needs,Residential Independent Sector
Cambridgeshire County Council,24-Nov-17,24854686-16404950,-2977.44,Decoy Farm,Care Establishment,4 - Operations - Providers services,LDP E Cambs Special Needs,Residential Independent Sector
Cambridgeshire County Council,24-Nov-17,24854689-16404953,-2977.44,Decoy Farm,Care Establishment,4 - Operations - Providers services,LDP E Cambs Special Needs,Residential Independent Sector
Cambridgeshire County Council,24-Nov-17,24860530-16404988,-2977.44,Decoy Farm,Care Establishment,4 - Operations - Providers services,LDP E Cambs Special Needs,Residential Independent Sector
Cambridgeshire County Council,24-Nov-17,24860547-16405005,-2977.44,Decoy Farm,Care Establishment,4 - Operations - Providers services,LDP E Cambs Special Needs,Residential Independent Sector
Cambridgeshire County Council,24-Nov-17,24860429-16405007,-2977.44,Decoy Farm,Care Establishment,4 - Operations - Providers services,LDP E Cambs Special Needs,Residential Independent Sector
Cambridgeshire County Council,24-Nov-17,24860450-16405028,-2977.44,Decoy Farm,Care Establishment,4 - Operations - Providers services,LDP E Cambs Special Needs,Residential Independent Sector
Cambridgeshire County Council,24-Nov-17,24860471-16405049,-2977.44,Decoy Farm,Care Establishment,4 - Operations - Providers services,LDP E Cambs Special Needs,Residential Independent Sector
Cambridgeshire County Council,24-Nov-17,24860481-16405059,-2977.44,Decoy Farm,Care Establishment,4 - Operations - Providers services,LDP E Cambs Special Needs,Residential Independent Sector
Cambridgeshire County Council,24-Nov-17,24860491-16405069,-2977.44,Decoy Farm,Care Establishment,4 - Operations - Providers services,LDP E Cambs Special Needs,Residential Independent Sector
Cambridgeshire County Council,24-Nov-17,24860492-16405070,-2977.44,Decoy Farm,Care Establishment,4 - Operations - Providers services,LDP E Cambs Special Needs,Residential Independent Sector
Cambridgeshire County Council,24-Nov-17,24860511-16405089,-2977.44,Decoy Farm,Care Establishment,4 - Operations - Providers services,LDP E Cambs Special Needs,Residential Independent Sector
Cambridgeshire County Council,24-Nov-17,24862440-16405114,-2977.44,Decoy Farm,Care Establishment,4 - Operations - Providers services,LDP E Cambs Special Needs,Residential Independent Sector
Cambridgeshire County Council,24-Nov-17,24862444-16405118,-2977.44,Decoy Farm,Care Establishment,4 - Operations - Providers services,LDP E Cambs Special Needs,Residential Independent Sector
Cambridgeshire County Council,24-Nov-17,24862450-16405124,-2977.44,Decoy Farm,Care Establishment,4 - Operations - Providers services,LDP E Cambs Special Needs,Residential Independent Sector
Cambridgeshire County Council,24-Nov-17,24862460-16405134,-2977.44,Decoy Farm,Care Establishment,4 - Operations - Providers services,LDP E Cambs Special Needs,Residential Independent Sector
Cambridgeshire County Council,24-Nov-17,24862481-16405155,-2977.44,Decoy Farm,Care Establishment,4 - Operations - Providers services,LDP E Cambs Special Needs,Residential Independent Sector
Cambridgeshire County Council,24-Nov-17,24862484-16405158,-2977.44,Decoy Farm,Care Establishment,4 - Operations - Providers services,LDP E Cambs Special Needs,Residential Independent Sector
Cambridgeshire County Council,24-Nov-17,24862485-16405159,-2977.44,Decoy Farm,Care Establishment,4 - Operations - Providers services,LDP E Cambs Special Needs,Residential Independent Sector
Cambridgeshire County Council,30-Nov-17,24878429-16439051,-2977.44,Decoy Farm,Care Establishment,4 - Operations - Providers services,LDP E Cambs Special Needs,Residential Independent Sector
Cambridgeshire County Council,30-Nov-17,24878403-16439093,-2977.44,Decoy Farm,Care Establishment,4 - Operations - Providers services,LDP E Cambs Special Needs,Residential Independent Sector
Cambridgeshire County Council,30-Nov-17,24878310-16439102,-2977.44,Decoy Farm,Care Establishment,4 - Operations - Providers services,LDP E Cambs Special Needs,Residential Independent Sector
Cambridgeshire County Council,30-Nov-17,24877306-16438919,-2977.44,Decoy Farm,Care Establishment,4 - Operations - Providers services,LDP E Cambs Special Needs,Residential Independent Sector
Cambridgeshire County Council,30-Nov-17,24877310-16438923,-2977.44,Decoy Farm,Care Establishment,4 - Operations - Providers services,LDP E Cambs Special Needs,Residential Independent Sector
Cambridgeshire County Council,30-Nov-17,24877312-16438925,-2977.44,Decoy Farm,Care Establishment,4 - Operations - Providers services,LDP E Cambs Special Needs,Residential Independent Sector
Cambridgeshire County Council,30-Nov-17,24877328-16438941,-2977.44,Decoy Farm,Care Establishment,4 - Operations - Providers services,LDP E Cambs Special Needs,Residential Independent Sector
Cambridgeshire County Council,30-Nov-17,24877279-16438951,-2977.44,Decoy Farm,Care Establishment,4 - Operations - Providers services,LDP E Cambs Special Needs,Residential Independent Sector
Cambridgeshire County Council,30-Nov-17,24877300-16438972,-2977.44,Decoy Farm,Care Establishment,4 - Operations - Providers services,LDP E Cambs Special Needs,Residential Independent Sector
Cambridgeshire County Council,30-Nov-17,24878307-16438980,-2977.44,Decoy Farm,Care Establishment,4 - Operations - Providers services,LDP E Cambs Special Needs,Residential Independent Sector
Cambridgeshire County Council,30-Nov-17,24878327-16438983,-2977.44,Decoy Farm,Care Establishment,4 - Operations - Providers services,LDP E Cambs Special Needs,Residential Independent Sector
Cambridgeshire County Council,30-Nov-17,24878333-16438989,-2977.44,Decoy Farm,Care Establishment,4 - Operations - Providers services,LDP E Cambs Special Needs,Residential Independent Sector
Cambridgeshire County Council,30-Nov-17,24878336-16438992,-2977.44,Decoy Farm,Care Establishment,4 - Operations - Providers services,LDP E Cambs Special Needs,Residential Independent Sector
Cambridgeshire County Council,30-Nov-17,24878346-16439002,-2977.44,Decoy Farm,Care Establishment,4 - Operations - Providers services,LDP E Cambs Special Needs,Residential Independent Sector
Cambridgeshire County Council,30-Nov-17,24878420-16439042,-2977.44,Decoy Farm,Care Establishment,4 - Operations - Providers services,LDP E Cambs Special Needs,Residential Independent Sector
Cambridgeshire County Council,02-Nov-17,24610536-16288415,-2977.44,Decoy Farm,Care Establishment,4 - Operations - Providers services,LDP E Cambs Special Needs,Residential Independent Sector
Cambridgeshire County Council,02-Nov-17,24610553-16288432,-2977.44,Decoy Farm,Care Establishment,4 - Operations - Providers services,LDP E Cambs Special Needs,Residential Independent Sector
Cambridgeshire County Council,02-Nov-17,24607461-16288184,-2977.44,Decoy Farm,Care Establishment,4 - Operations - Providers services,LDP E Cambs Special Needs,Residential Independent Sector
Cambridgeshire County Council,02-Nov-17,24607440-16288212,-2977.44,Decoy Farm,Care Establishment,4 - Operations - Providers services,LDP E Cambs Special Needs,Residential Independent Sector
Cambridgeshire County Council,02-Nov-17,24608510-16288236,-2977.44,Decoy Farm,Care Establishment,4 - Operations - Providers services,LDP E Cambs Special Needs,Residential Independent Sector
Cambridgeshire County Council,02-Nov-17,24608529-16288255,-2977.44,Decoy Farm,Care Establishment,4 - Operations - Providers services,LDP E Cambs Special Needs,Residential Independent Sector
Cambridgeshire County Council,02-Nov-17,24608450-16288289,-2977.44,Decoy Farm,Care Establishment,4 - Operations - Providers services,LDP E Cambs Special Needs,Residential Independent Sector
Cambridgeshire County Council,02-Nov-17,24608469-16288308,-2977.44,Decoy Farm,Care Establishment,4 - Operations - Providers services,LDP E Cambs Special Needs,Residential Independent Sector
Cambridgeshire County Council,02-Nov-17,24608470-16288309,-2977.44,Decoy Farm,Care Establishment,4 - Operations - Providers services,LDP E Cambs Special Needs,Residential Independent Sector
Cambridgeshire County Council,02-Nov-17,24608474-16288313,-2977.44,Decoy Farm,Care Establishment,4 - Operations - Providers services,LDP E Cambs Special Needs,Residential Independent Sector
Cambridgeshire County Council,02-Nov-17,24608492-16288331,-2977.44,Decoy Farm,Care Establishment,4 - Operations - Providers services,LDP E Cambs Special Needs,Residential Independent Sector
Cambridgeshire County Council,02-Nov-17,24608503-16288342,-2977.44,Decoy Farm,Care Establishment,4 - Operations - Providers services,LDP E Cambs Special Needs,Residential Independent Sector
Cambridgeshire County Council,02-Nov-17,24609439-16288355,-2977.44,Decoy Farm,Care Establishment,4 - Operations - Providers services,LDP E Cambs Special Needs,Residential Independent Sector
Cambridgeshire County Council,02-Nov-17,24610493-16288372,-2977.44,Decoy Farm,Care Establishment,4 - Operations - Providers services,LDP E Cambs Special Needs,Residential Independent Sector
Cambridgeshire County Council,02-Nov-17,24610513-16288392,-2977.44,Decoy Farm,Care Establishment,4 - Operations - Providers services,LDP E Cambs Special Needs,Residential Independent Sector
Cambridgeshire County Council,16-Nov-17,24825591-16380238,-2977.44,Decoy Farm,Care Establishment,4 - Operations - Providers services,LDP E Cambs Special Needs,Residential Independent Sector
Cambridgeshire County Council,16-Nov-17,24825608-16380255,-2977.44,Decoy Farm,Care Establishment,4 - Operations - Providers services,LDP E Cambs Special Needs,Residential Independent Sector
Cambridgeshire County Council,16-Nov-17,24825620-16380267,-2977.44,Decoy Farm,Care Establishment,4 - Operations - Providers services,LDP E Cambs Special Needs,Residential Independent Sector
Cambridgeshire County Council,16-Nov-17,24825635-16380282,-2977.44,Decoy Farm,Care Establishment,4 - Operations - Providers services,LDP E Cambs Special Needs,Residential Independent Sector
Cambridgeshire County Council,16-Nov-17,24828604-16380375,-2977.44,Decoy Farm,Care Establishment,4 - Operations - Providers services,LDP E Cambs Special Needs,Residential Independent Sector
Cambridgeshire County Council,16-Nov-17,24831542-16380412,-2977.44,Decoy Farm,Care Establishment,4 - Operations - Providers services,LDP E Cambs Special Needs,Residential Independent Sector
Cambridgeshire County Council,16-Nov-17,24828545-16380090,-2977.44,Decoy Farm,Care Establishment,4 - Operations - Providers services,LDP E Cambs Special Needs,Residential Independent Sector
Cambridgeshire County Council,16-Nov-17,24778465-16380121,-2977.44,Decoy Farm,Care Establishment,4 - Operations - Providers services,LDP E Cambs Special Needs,Residential Independent Sector
Cambridgeshire County Council,16-Nov-17,24778474-16380130,-2977.44,Decoy Farm,Care Establishment,4 - Operations - Providers services,LDP E Cambs Special Needs,Residential Independent Sector
Cambridgeshire County Council,16-Nov-17,24778487-16380142,-2977.44,Decoy Farm,Care Establishment,4 - Operations - Providers services,LDP E Cambs Special Needs,Residential Independent Sector
Cambridgeshire County Council,16-Nov-17,24778508-16380162,-2977.44,Decoy Farm,Care Establishment,4 - Operations - Providers services,LDP E Cambs Special Needs,Residential Independent Sector
Cambridgeshire County Council,16-Nov-17,24778521-16380174,-2977.44,Decoy Farm,Care Establishment,4 - Operations - Providers services,LDP E Cambs Special Needs,Residential Independent Sector
Cambridgeshire County Council,16-Nov-17,24778539-16380190,-2977.44,Decoy Farm,Care Establishment,4 - Operations - Providers services,LDP E Cambs Special Needs,Residential Independent Sector
Cambridgeshire County Council,16-Nov-17,24778542-16380193,-2977.44,Decoy Farm,Care Establishment,4 - Operations - Providers services,LDP E Cambs Special Needs,Residential Independent Sector
Cambridgeshire County Council,16-Nov-17,24778554-16380205,-2977.44,Decoy Farm,Care Establishment,4 - Operations - Providers services,LDP E Cambs Special Needs,Residential Independent Sector
Cambridgeshire County Council,16-Nov-17,24778560-16380211,-2977.44,Decoy Farm,Care Establishment,4 - Operations - Providers services,LDP E Cambs Special Needs,Residential Independent Sector
Cambridgeshire County Council,16-Nov-17,24778573-16380224,-2977.44,Decoy Farm,Care Establishment,4 - Operations - Providers services,LDP E Cambs Special Needs,Residential Independent Sector
Cambridgeshire County Council,16-Nov-17,24825587-16380234,-2977.44,Decoy Farm,Care Establishment,4 - Operations - Providers services,LDP E Cambs Special Needs,Residential Independent Sector
Cambridgeshire County Council,16-Nov-17,24778453-16379936,-2977.44,Decoy Farm,Care Establishment,4 - Operations - Providers services,LDP E Cambs Special Needs,Residential Independent Sector
Cambridgeshire County Council,16-Nov-17,24778430-16379956,-2977.44,Decoy Farm,Care Establishment,4 - Operations - Providers services,LDP E Cambs Special Needs,Residential Independent Sector
Cambridgeshire County Council,16-Nov-17,24778437-16379963,-2977.44,Decoy Farm,Care Establishment,4 - Operations - Providers services,LDP E Cambs Special Needs,Residential Independent Sector
Cambridgeshire County Council,16-Nov-17,24778441-16379967,-2977.44,Decoy Farm,Care Establishment,4 - Operations - Providers services,LDP E Cambs Special Needs,Residential Independent Sector
Cambridgeshire County Council,16-Nov-17,24771423-16379993,-2977.44,Decoy Farm,Care Establishment,4 - Operations - Providers services,LDP E Cambs Special Needs,Residential Independent Sector
Cambridgeshire County Council,16-Nov-17,24771444-16380012,-2977.44,Decoy Farm,Care Establishment,4 - Operations - Providers services,LDP E Cambs Special Needs,Residential Independent Sector
Cambridgeshire County Council,16-Nov-17,24771448-16380016,-2977.44,Decoy Farm,Care Establishment,4 - Operations - Providers services,LDP E Cambs Special Needs,Residential Independent Sector
Cambridgeshire County Council,16-Nov-17,24771458-16380025,-2977.44,Decoy Farm,Care Establishment,4 - Operations - Providers services,LDP E Cambs Special Needs,Residential Independent Sector
Cambridgeshire County Council,16-Nov-17,24771473-16380040,-2977.44,Decoy Farm,Care Establishment,4 - Operations - Providers services,LDP E Cambs Special Needs,Residential Independent Sector
Cambridgeshire County Council,16-Nov-17,24771477-16380044,-2977.44,Decoy Farm,Care Establishment,4 - Operations - Providers services,LDP E Cambs Special Needs,Residential Independent Sector
Cambridgeshire County Council,16-Nov-17,24771479-16380046,-2977.44,Decoy Farm,Care Establishment,4 - Operations - Providers services,LDP E Cambs Special Needs,Residential Independent Sector
Cambridgeshire County Council,16-Nov-17,24771492-16380053,-2977.44,Decoy Farm,Care Establishment,4 - Operations - Providers services,LDP E Cambs Special Needs,Residential Independent Sector
Cambridgeshire County Council,16-Nov-17,24828563-16380062,-2977.44,Decoy Farm,Care Establishment,4 - Operations - Providers services,LDP E Cambs Special Needs,Residential Independent Sector
Cambridgeshire County Council,16-Nov-17,24828566-16380065,-2977.44,Decoy Farm,Care Establishment,4 - Operations - Providers services,LDP E Cambs Special Needs,Residential Independent Sector
Cambridgeshire County Council,24-Nov-17,24854641-16404905,-2977.44,Decoy Farm,Care Establishment,4 - Operations - Providers services,LDP E Cambs Special Needs,Residential Independent Sector
Cambridgeshire County Council,24-Nov-17,24854644-16404908,-2977.44,Decoy Farm,Care Establishment,4 - Operations - Providers services,LDP E Cambs Special Needs,Residential Independent Sector
Cambridgeshire County Council,24-Nov-17,24854651-16404915,-2977.44,Decoy Farm,Care Establishment,4 - Operations - Providers services,LDP E Cambs Special Needs,Residential Independent Sector
Cambridgeshire County Council,24-Nov-17,24854657-16404921,-2977.44,Decoy Farm,Care Establishment,4 - Operations - Providers services,LDP E Cambs Special Needs,Residential Independent Sector
Cambridgeshire County Council,24-Nov-17,24854670-16404934,-2977.44,Decoy Farm,Care Establishment,4 - Operations - Providers services,LDP E Cambs Special Needs,Residential Independent Sector
Cambridgeshire County Council,24-Nov-17,24854679-16404943,-2977.44,Decoy Farm,Care Establishment,4 - Operations - Providers services,LDP E Cambs Special Needs,Residential Independent Sector
Cambridgeshire County Council,24-Nov-17,24854687-16404951,-2977.44,Decoy Farm,Care Establishment,4 - Operations - Providers services,LDP E Cambs Special Needs,Residential Independent Sector
Cambridgeshire County Council,24-Nov-17,24854690-16404954,-2977.44,Decoy Farm,Care Establishment,4 - Operations - Providers services,LDP E Cambs Special Needs,Residential Independent Sector
Cambridgeshire County Council,24-Nov-17,24860435-16405013,-2977.44,Decoy Farm,Care Establishment,4 - Operations - Providers services,LDP E Cambs Special Needs,Residential Independent Sector
Cambridgeshire County Council,24-Nov-17,24860445-16405023,-2977.44,Decoy Farm,Care Establishment,4 - Operations - Providers services,LDP E Cambs Special Needs,Residential Independent Sector
Cambridgeshire County Council,24-Nov-17,24860446-16405024,-2977.44,Decoy Farm,Care Establishment,4 - Operations - Providers services,LDP E Cambs Special Needs,Residential Independent Sector
Cambridgeshire County Council,24-Nov-17,24860463-16405041,-2977.44,Decoy Farm,Care Establishment,4 - Operations - Providers services,LDP E Cambs Special Needs,Residential Independent Sector
Cambridgeshire County Council,24-Nov-17,24860473-16405051,-2977.44,Decoy Farm,Care Establishment,4 - Operations - Providers services,LDP E Cambs Special Needs,Residential Independent Sector
Cambridgeshire County Council,24-Nov-17,24860513-16405091,-2977.44,Decoy Farm,Care Establishment,4 - Operations - Providers services,LDP E Cambs Special Needs,Residential Independent Sector
Cambridgeshire County Council,24-Nov-17,24862443-16405117,-2977.44,Decoy Farm,Care Establishment,4 - Operations - Providers services,LDP E Cambs Special Needs,Residential Independent Sector
Cambridgeshire County Council,24-Nov-17,24862472-16405146,-2977.44,Decoy Farm,Care Establishment,4 - Operations - Providers services,LDP E Cambs Special Needs,Residential Independent Sector
Cambridgeshire County Council,24-Nov-17,24862476-16405150,-2977.44,Decoy Farm,Care Establishment,4 - Operations - Providers services,LDP E Cambs Special Needs,Residential Independent Sector
Cambridgeshire County Council,30-Nov-17,24878400-16439090,-2977.44,Decoy Farm,Care Establishment,4 - Operations - Providers services,LDP E Cambs Special Needs,Residential Independent Sector
Cambridgeshire County Council,30-Nov-17,24878319-16439111,-2977.44,Decoy Farm,Care Establishment,4 - Operations - Providers services,LDP E Cambs Special Needs,Residential Independent Sector
Cambridgeshire County Council,30-Nov-17,24880411-16439129,-2977.44,Decoy Farm,Care Establishment,4 - Operations - Providers services,LDP E Cambs Special Needs,Residential Independent Sector
Cambridgeshire County Council,30-Nov-17,24880418-16439136,-2977.44,Decoy Farm,Care Establishment,4 - Operations - Providers services,LDP E Cambs Special Needs,Residential Independent Sector
Cambridgeshire County Council,30-Nov-17,24880419-16439137,-2977.44,Decoy Farm,Care Establishment,4 - Operations - Providers services,LDP E Cambs Special Needs,Residential Independent Sector
Cambridgeshire County Council,30-Nov-17,24876262-16438894,-2977.44,Decoy Farm,Care Establishment,4 - Operations - Providers services,LDP E Cambs Special Needs,Residential Independent Sector
Cambridgeshire County Council,30-Nov-17,24877265-16438912,-2977.44,Decoy Farm,Care Establishment,4 - Operations - Providers services,LDP E Cambs Special Needs,Residential Independent Sector
Cambridgeshire County Council,30-Nov-17,24877307-16438920,-2977.44,Decoy Farm,Care Establishment,4 - Operations - Providers services,LDP E Cambs Special Needs,Residential Independent Sector
Cambridgeshire County Council,30-Nov-17,24877317-16438930,-2977.44,Decoy Farm,Care Establishment,4 - Operations - Providers services,LDP E Cambs Special Needs,Residential Independent Sector
Cambridgeshire County Council,30-Nov-17,24878369-16439025,-2977.44,Decoy Farm,Care Establishment,4 - Operations - Providers services,LDP E Cambs Special Needs,Residential Independent Sector
Cambridgeshire County Council,30-Nov-17,24878372-16439028,-2977.44,Decoy Farm,Care Establishment,4 - Operations - Providers services,LDP E Cambs Special Needs,Residential Independent Sector
Cambridgeshire County Council,30-Nov-17,24878415-16439037,-2977.44,Decoy Farm,Care Establishment,4 - Operations - Providers services,LDP E Cambs Special Needs,Residential Independent Sector
Cambridgeshire County Council,30-Nov-17,24878423-16439045,-2977.44,Decoy Farm,Care Establishment,4 - Operations - Providers services,LDP E Cambs Special Needs,Residential Independent Sector
Cambridgeshire County Council,02-Nov-17,24610521-16288400,-2977.44,Decoy Farm,Care Establishment,4 - Operations - Providers services,LDP E Cambs Special Needs,Residential Independent Sector
Cambridgeshire County Council,02-Nov-17,24610556-16288435,-2977.44,Decoy Farm,Care Establishment,4 - Operations - Providers services,LDP E Cambs Special Needs,Residential Independent Sector
Cambridgeshire County Council,02-Nov-17,24607464-16288187,-2977.44,Decoy Farm,Care Establishment,4 - Operations - Providers services,LDP E Cambs Special Needs,Residential Independent Sector
Cambridgeshire County Council,02-Nov-17,24607429-16288201,-2977.44,Decoy Farm,Care Establishment,4 - Operations - Providers services,LDP E Cambs Special Needs,Residential Independent Sector
Cambridgeshire County Council,02-Nov-17,24607434-16288206,-2977.44,Decoy Farm,Care Establishment,4 - Operations - Providers services,LDP E Cambs Special Needs,Residential Independent Sector
Cambridgeshire County Council,02-Nov-17,24608538-16288264,-2977.44,Decoy Farm,Care Establishment,4 - Operations - Providers services,LDP E Cambs Special Needs,Residential Independent Sector
Cambridgeshire County Council,02-Nov-17,24608437-16288276,-2977.44,Decoy Farm,Care Establishment,4 - Operations - Providers services,LDP E Cambs Special Needs,Residential Independent Sector
Cambridgeshire County Council,02-Nov-17,24608455-16288294,-2977.44,Decoy Farm,Care Establishment,4 - Operations - Providers services,LDP E Cambs Special Needs,Residential Independent Sector
Cambridgeshire County Council,02-Nov-17,24608457-16288296,-2977.44,Decoy Farm,Care Establishment,4 - Operations - Providers services,LDP E Cambs Special Needs,Residential Independent Sector
Cambridgeshire County Council,02-Nov-17,24608483-16288322,-2977.44,Decoy Farm,Care Establishment,4 - Operations - Providers services,LDP E Cambs Special Needs,Residential Independent Sector
Cambridgeshire County Council,02-Nov-17,24609435-16288351,-2977.44,Decoy Farm,Care Establishment,4 - Operations - Providers services,LDP E Cambs Special Needs,Residential Independent Sector
Cambridgeshire County Council,02-Nov-17,24609441-16288357,-2977.44,Decoy Farm,Care Establishment,4 - Operations - Providers services,LDP E Cambs Special Needs,Residential Independent Sector
Cambridgeshire County Council,02-Nov-17,24610486-16288365,-2977.44,Decoy Farm,Care Establishment,4 - Operations - Providers services,LDP E Cambs Special Needs,Residential Independent Sector
Cambridgeshire County Council,16-Nov-17,24825596-16380243,-2977.44,Decoy Farm,Care Establishment,4 - Operations - Providers services,LDP E Cambs Special Needs,Residential Independent Sector
Cambridgeshire County Council,16-Nov-17,24825606-16380253,-2977.44,Decoy Farm,Care Establishment,4 - Operations - Providers services,LDP E Cambs Special Needs,Residential Independent Sector
Cambridgeshire County Council,16-Nov-17,24825623-16380270,-2977.44,Decoy Farm,Care Establishment,4 - Operations - Providers services,LDP E Cambs Special Needs,Residential Independent Sector
Cambridgeshire County Council,16-Nov-17,24825630-16380277,-2977.44,Decoy Farm,Care Establishment,4 - Operations - Providers services,LDP E Cambs Special Needs,Residential Independent Sector
Cambridgeshire County Council,16-Nov-17,24825646-16380293,-2977.44,Decoy Farm,Care Establishment,4 - Operations - Providers services,LDP E Cambs Special Needs,Residential Independent Sector
Cambridgeshire County Council,16-Nov-17,24825649-16380296,-2977.44,Decoy Farm,Care Establishment,4 - Operations - Providers services,LDP E Cambs Special Needs,Residential Independent Sector
Cambridgeshire County Council,16-Nov-17,24825556-16380321,-2977.44,Decoy Farm,Care Establishment,4 - Operations - Providers services,LDP E Cambs Special Needs,Residential Independent Sector
Cambridgeshire County Council,16-Nov-17,24825566-16380331,-2977.44,Decoy Farm,Care Establishment,4 - Operations - Providers services,LDP E Cambs Special Needs,Residential Independent Sector
Cambridgeshire County Council,16-Nov-17,24825567-16380332,-2977.44,Decoy Farm,Care Establishment,4 - Operations - Providers services,LDP E Cambs Special Needs,Residential Independent Sector
Cambridgeshire County Council,16-Nov-17,24828596-16380367,-2977.44,Decoy Farm,Care Establishment,4 - Operations - Providers services,LDP E Cambs Special Needs,Residential Independent Sector
Cambridgeshire County Council,16-Nov-17,24828601-16380372,-2977.44,Decoy Farm,Care Establishment,4 - Operations - Providers services,LDP E Cambs Special Needs,Residential Independent Sector
Cambridgeshire County Council,16-Nov-17,24831518-16380388,-2977.44,Decoy Farm,Care Establishment,4 - Operations - Providers services,LDP E Cambs Special Needs,Residential Independent Sector
Cambridgeshire County Council,16-Nov-17,24831534-16380404,-2977.44,Decoy Farm,Care Establishment,4 - Operations - Providers services,LDP E Cambs Special Needs,Residential Independent Sector
Cambridgeshire County Council,16-Nov-17,24831547-16380417,-2977.44,Decoy Farm,Care Establishment,4 - Operations - Providers services,LDP E Cambs Special Needs,Residential Independent Sector
Cambridgeshire County Council,16-Nov-17,24831551-16380421,-2977.44,Decoy Farm,Care Establishment,4 - Operations - Providers services,LDP E Cambs Special Needs,Residential Independent Sector
Cambridgeshire County Council,16-Nov-17,24831559-16380429,-2977.44,Decoy Farm,Care Establishment,4 - Operations - Providers services,LDP E Cambs Special Needs,Residential Independent Sector
Cambridgeshire County Council,16-Nov-17,24831572-16380442,-2977.44,Decoy Farm,Care Establishment,4 - Operations - Providers services,LDP E Cambs Special Needs,Residential Independent Sector
Cambridgeshire County Council,16-Nov-17,24778480-16380136,-2977.44,Decoy Farm,Care Establishment,4 - Operations - Providers services,LDP E Cambs Special Needs,Residential Independent Sector
Cambridgeshire County Council,16-Nov-17,24778500-16380154,-2977.44,Decoy Farm,Care Establishment,4 - Operations - Providers services,LDP E Cambs Special Needs,Residential Independent Sector
Cambridgeshire County Council,16-Nov-17,24778506-16380160,-2977.44,Decoy Farm,Care Establishment,4 - Operations - Providers services,LDP E Cambs Special Needs,Residential Independent Sector
Cambridgeshire County Council,16-Nov-17,24778532-16380185,-2977.44,Decoy Farm,Care Establishment,4 - Operations - Providers services,LDP E Cambs Special Needs,Residential Independent Sector
Cambridgeshire County Council,16-Nov-17,24778555-16380206,-2977.44,Decoy Farm,Care Establishment,4 - Operations - Providers services,LDP E Cambs Special Needs,Residential Independent Sector
Cambridgeshire County Council,16-Nov-17,24778562-16380213,-2977.44,Decoy Farm,Care Establishment,4 - Operations - Providers services,LDP E Cambs Special Needs,Residential Independent Sector
Cambridgeshire County Council,16-Nov-17,24778419-16379947,-2977.44,Decoy Farm,Care Establishment,4 - Operations - Providers services,LDP E Cambs Special Needs,Residential Independent Sector
Cambridgeshire County Council,16-Nov-17,24778421-16379949,-2977.44,Decoy Farm,Care Establishment,4 - Operations - Providers services,LDP E Cambs Special Needs,Residential Independent Sector
Cambridgeshire County Council,16-Nov-17,24778434-16379960,-2977.44,Decoy Farm,Care Establishment,4 - Operations - Providers services,LDP E Cambs Special Needs,Residential Independent Sector
Cambridgeshire County Council,16-Nov-17,24778436-16379962,-2977.44,Decoy Farm,Care Establishment,4 - Operations - Providers services,LDP E Cambs Special Needs,Residential Independent Sector
Cambridgeshire County Council,16-Nov-17,24771405-16379976,-2977.44,Decoy Farm,Care Establishment,4 - Operations - Providers services,LDP E Cambs Special Needs,Residential Independent Sector
Cambridgeshire County Council,16-Nov-17,24771424-16379994,-2977.44,Decoy Farm,Care Establishment,4 - Operations - Providers services,LDP E Cambs Special Needs,Residential Independent Sector
Cambridgeshire County Council,16-Nov-17,24771440-16380009,-2977.44,Decoy Farm,Care Establishment,4 - Operations - Providers services,LDP E Cambs Special Needs,Residential Independent Sector
Cambridgeshire County Council,16-Nov-17,24771443-16380011,-2977.44,Decoy Farm,Care Establishment,4 - Operations - Providers services,LDP E Cambs Special Needs,Residential Independent Sector
Cambridgeshire County Council,16-Nov-17,24771466-16380033,-2977.44,Decoy Farm,Care Establishment,4 - Operations - Providers services,LDP E Cambs Special Needs,Residential Independent Sector
Cambridgeshire County Council,16-Nov-17,24771493-16380054,-2977.44,Decoy Farm,Care Establishment,4 - Operations - Providers services,LDP E Cambs Special Needs,Residential Independent Sector
Cambridgeshire County Council,16-Nov-17,24828536-16380081,-2977.44,Decoy Farm,Care Establishment,4 - Operations - Providers services,LDP E Cambs Special Needs,Residential Independent Sector
Cambridgeshire County Council,24-Nov-17,24854649-16404913,-2977.44,Decoy Farm,Care Establishment,4 - Operations - Providers services,LDP E Cambs Special Needs,Residential Independent Sector
Cambridgeshire County Council,24-Nov-17,24860521-16404979,-2977.44,Decoy Farm,Care Establishment,4 - Operations - Providers services,LDP E Cambs Special Needs,Residential Independent Sector
Cambridgeshire County Council,24-Nov-17,24860528-16404986,-2977.44,Decoy Farm,Care Establishment,4 - Operations - Providers services,LDP E Cambs Special Needs,Residential Independent Sector
Cambridgeshire County Council,24-Nov-17,24860538-16404996,-2977.44,Decoy Farm,Care Establishment,4 - Operations - Providers services,LDP E Cambs Special Needs,Residential Independent Sector
Cambridgeshire County Council,24-Nov-17,24860432-16405010,-2977.44,Decoy Farm,Care Establishment,4 - Operations - Providers services,LDP E Cambs Special Needs,Residential Independent Sector
Cambridgeshire County Council,24-Nov-17,24860461-16405039,-2977.44,Decoy Farm,Care Establishment,4 - Operations - Providers services,LDP E Cambs Special Needs,Residential Independent Sector
Cambridgeshire County Council,24-Nov-17,24860497-16405075,-2977.44,Decoy Farm,Care Establishment,4 - Operations - Providers services,LDP E Cambs Special Needs,Residential Independent Sector
Cambridgeshire County Council,24-Nov-17,24860499-16405077,-2977.44,Decoy Farm,Care Establishment,4 - Operations - Providers services,LDP E Cambs Special Needs,Residential Independent Sector
Cambridgeshire County Council,24-Nov-17,24860502-16405080,-2977.44,Decoy Farm,Care Establishment,4 - Operations - Providers services,LDP E Cambs Special Needs,Residential Independent Sector
Cambridgeshire County Council,24-Nov-17,24860509-16405087,-2977.44,Decoy Farm,Care Establishment,4 - Operations - Providers services,LDP E Cambs Special Needs,Residential Independent Sector
Cambridgeshire County Council,24-Nov-17,24860553-16405097,-2977.44,Decoy Farm,Care Establishment,4 - Operations - Providers services,LDP E Cambs Special Needs,Residential Independent Sector
Cambridgeshire County Council,30-Nov-17,24878437-16439059,-2977.44,Decoy Farm,Care Establishment,4 - Operations - Providers services,LDP E Cambs Special Needs,Residential Independent Sector
Cambridgeshire County Council,30-Nov-17,24878394-16439084,-2977.44,Decoy Farm,Care Establishment,4 - Operations - Providers services,LDP E Cambs Special Needs,Residential Independent Sector
Cambridgeshire County Council,30-Nov-17,24878316-16439108,-2977.44,Decoy Farm,Care Establishment,4 - Operations - Providers services,LDP E Cambs Special Needs,Residential Independent Sector
Cambridgeshire County Council,30-Nov-17,24880426-16439144,-2977.44,Decoy Farm,Care Establishment,4 - Operations - Providers services,LDP E Cambs Special Needs,Residential Independent Sector
Cambridgeshire County Council,30-Nov-17,24880429-16439147,-2977.44,Decoy Farm,Care Establishment,4 - Operations - Providers services,LDP E Cambs Special Needs,Residential Independent Sector
Cambridgeshire County Council,30-Nov-17,24880430-16439148,-2977.44,Decoy Farm,Care Establishment,4 - Operations - Providers services,LDP E Cambs Special Needs,Residential Independent Sector
Cambridgeshire County Council,30-Nov-17,24876268-16438900,-2977.44,Decoy Farm,Care Establishment,4 - Operations - Providers services,LDP E Cambs Special Needs,Residential Independent Sector
Cambridgeshire County Council,30-Nov-17,24877267-16438914,-2977.44,Decoy Farm,Care Establishment,4 - Operations - Providers services,LDP E Cambs Special Needs,Residential Independent Sector
Cambridgeshire County Council,30-Nov-17,24877269-16438916,-2977.44,Decoy Farm,Care Establishment,4 - Operations - Providers services,LDP E Cambs Special Needs,Residential Independent Sector
Cambridgeshire County Council,30-Nov-17,24877327-16438940,-2977.44,Decoy Farm,Care Establishment,4 - Operations - Providers services,LDP E Cambs Special Needs,Residential Independent Sector
Cambridgeshire County Council,30-Nov-17,24877289-16438961,-2977.44,Decoy Farm,Care Establishment,4 - Operations - Providers services,LDP E Cambs Special Needs,Residential Independent Sector
Cambridgeshire County Council,30-Nov-17,24877302-16438974,-2977.44,Decoy Farm,Care Establishment,4 - Operations - Providers services,LDP E Cambs Special Needs,Residential Independent Sector
Cambridgeshire County Council,30-Nov-17,24878338-16438994,-2977.44,Decoy Farm,Care Establishment,4 - Operations - Providers services,LDP E Cambs Special Needs,Residential Independent Sector
Cambridgeshire County Council,30-Nov-17,24878347-16439003,-2977.44,Decoy Farm,Care Establishment,4 - Operations - Providers services,LDP E Cambs Special Needs,Residential Independent Sector
Cambridgeshire County Council,30-Nov-17,24878349-16439005,-2977.44,Decoy Farm,Care Establishment,4 - Operations - Providers services,LDP E Cambs Special Needs,Residential Independent Sector
Cambridgeshire County Council,30-Nov-17,24878373-16439029,-2977.44,Decoy Farm,Care Establishment,4 - Operations - Providers services,LDP E Cambs Special Needs,Residential Independent Sector
Cambridgeshire County Council,30-Nov-17,24878376-16439032,-2977.44,Decoy Farm,Care Establishment,4 - Operations - Providers services,LDP E Cambs Special Needs,Residential Independent Sector
Cambridgeshire County Council,30-Nov-17,24878414-16439036,-2977.44,Decoy Farm,Care Establishment,4 - Operations - Providers services,LDP E Cambs Special Needs,Residential Independent Sector
Cambridgeshire County Council,30-Nov-17,24878421-16439043,-2977.44,Decoy Farm,Care Establishment,4 - Operations - Providers services,LDP E Cambs Special Needs,Residential Independent Sector
Cambridgeshire County Council,02-Nov-17,24610527-16288406,-2977.44,Decoy Farm,Care Establishment,4 - Operations - Providers services,LDP E Cambs Special Needs,Residential Independent Sector
Cambridgeshire County Council,02-Nov-17,24610531-16288410,-2977.44,Decoy Farm,Care Establishment,4 - Operations - Providers services,LDP E Cambs Special Needs,Residential Independent Sector
Cambridgeshire County Council,02-Nov-17,24610533-16288412,-2977.44,Decoy Farm,Care Establishment,4 - Operations - Providers services,LDP E Cambs Special Needs,Residential Independent Sector
Cambridgeshire County Council,02-Nov-17,24610554-16288433,-2977.44,Decoy Farm,Care Establishment,4 - Operations - Providers services,LDP E Cambs Special Needs,Residential Independent Sector
Cambridgeshire County Council,02-Nov-17,24607468-16288191,-2977.44,Decoy Farm,Care Establishment,4 - Operations - Providers services,LDP E Cambs Special Needs,Residential Independent Sector
Cambridgeshire County Council,02-Nov-17,24607427-16288199,-2977.44,Decoy Farm,Care Establishment,4 - Operations - Providers services,LDP E Cambs Special Needs,Residential Independent Sector
Cambridgeshire County Council,02-Nov-17,24607436-16288208,-2977.44,Decoy Farm,Care Establishment,4 - Operations - Providers services,LDP E Cambs Special Needs,Residential Independent Sector
Cambridgeshire County Council,02-Nov-17,24607439-16288211,-2977.44,Decoy Farm,Care Establishment,4 - Operations - Providers services,LDP E Cambs Special Needs,Residential Independent Sector
Cambridgeshire County Council,02-Nov-17,24607447-16288219,-2977.44,Decoy Farm,Care Establishment,4 - Operations - Providers services,LDP E Cambs Special Needs,Residential Independent Sector
Cambridgeshire County Council,02-Nov-17,24608508-16288234,-2977.44,Decoy Farm,Care Establishment,4 - Operations - Providers services,LDP E Cambs Special Needs,Residential Independent Sector
Cambridgeshire County Council,02-Nov-17,24608514-16288240,-2977.44,Decoy Farm,Care Establishment,4 - Operations - Providers services,LDP E Cambs Special Needs,Residential Independent Sector
Cambridgeshire County Council,02-Nov-17,24608523-16288249,-2977.44,Decoy Farm,Care Establishment,4 - Operations - Providers services,LDP E Cambs Special Needs,Residential Independent Sector
Cambridgeshire County Council,02-Nov-17,24608456-16288295,-2977.44,Decoy Farm,Care Establishment,4 - Operations - Providers services,LDP E Cambs Special Needs,Residential Independent Sector
Cambridgeshire County Council,02-Nov-17,24608461-16288300,-2977.44,Decoy Farm,Care Establishment,4 - Operations - Providers services,LDP E Cambs Special Needs,Residential Independent Sector
Cambridgeshire County Council,02-Nov-17,24608463-16288302,-2977.44,Decoy Farm,Care Establishment,4 - Operations - Providers services,LDP E Cambs Special Needs,Residential Independent Sector
Cambridgeshire County Council,02-Nov-17,24608467-16288306,-2977.44,Decoy Farm,Care Establishment,4 - Operations - Providers services,LDP E Cambs Special Needs,Residential Independent Sector
Cambridgeshire County Council,02-Nov-17,24608471-16288310,-2977.44,Decoy Farm,Care Establishment,4 - Operations - Providers services,LDP E Cambs Special Needs,Residential Independent Sector
Cambridgeshire County Council,02-Nov-17,24608473-16288312,-2977.44,Decoy Farm,Care Establishment,4 - Operations - Providers services,LDP E Cambs Special Needs,Residential Independent Sector
Cambridgeshire County Council,02-Nov-17,24608493-16288332,-2977.44,Decoy Farm,Care Establishment,4 - Operations - Providers services,LDP E Cambs Special Needs,Residential Independent Sector
Cambridgeshire County Council,02-Nov-17,24610488-16288367,-2977.44,Decoy Farm,Care Establishment,4 - Operations - Providers services,LDP E Cambs Special Needs,Residential Independent Sector
Cambridgeshire County Council,02-Nov-17,24610496-16288375,-2977.44,Decoy Farm,Care Establishment,4 - Operations - Providers services,LDP E Cambs Special Needs,Residential Independent Sector
Cambridgeshire County Council,02-Nov-17,24610509-16288388,-2977.44,Decoy Farm,Care Establishment,4 - Operations - Providers services,LDP E Cambs Special Needs,Residential Independent Sector
Cambridgeshire County Council,16-Nov-17,24825637-16380284,-2977.44,Decoy Farm,Care Establishment,4 - Operations - Providers services,LDP E Cambs Special Needs,Residential Independent Sector
Cambridgeshire County Council,16-Nov-17,24825647-16380294,-2977.44,Decoy Farm,Care Establishment,4 - Operations - Providers services,LDP E Cambs Special Needs,Residential Independent Sector
Cambridgeshire County Council,16-Nov-17,24825555-16380320,-2977.44,Decoy Farm,Care Establishment,4 - Operations - Providers services,LDP E Cambs Special Needs,Residential Independent Sector
Cambridgeshire County Council,16-Nov-17,24825574-16380339,-2977.44,Decoy Farm,Care Establishment,4 - Operations - Providers services,LDP E Cambs Special Needs,Residential Independent Sector
Cambridgeshire County Council,16-Nov-17,24831535-16380405,-2977.44,Decoy Farm,Care Establishment,4 - Operations - Providers services,LDP E Cambs Special Needs,Residential Independent Sector
Cambridgeshire County Council,16-Nov-17,24831556-16380426,-2977.44,Decoy Farm,Care Establishment,4 - Operations - Providers services,LDP E Cambs Special Needs,Residential Independent Sector
Cambridgeshire County Council,16-Nov-17,24828542-16380087,-2977.44,Decoy Farm,Care Establishment,4 - Operations - Providers services,LDP E Cambs Special Needs,Residential Independent Sector
Cambridgeshire County Council,16-Nov-17,24828548-16380093,-2977.44,Decoy Farm,Care Establishment,4 - Operations - Providers services,LDP E Cambs Special Needs,Residential Independent Sector
Cambridgeshire County Council,16-Nov-17,24828551-16380096,-2977.44,Decoy Farm,Care Establishment,4 - Operations - Providers services,LDP E Cambs Special Needs,Residential Independent Sector
Cambridgeshire County Council,16-Nov-17,24771386-16380106,-2977.44,Decoy Farm,Care Establishment,4 - Operations - Providers services,LDP E Cambs Special Needs,Residential Independent Sector
Cambridgeshire County Council,16-Nov-17,24771387-16380107,-2977.44,Decoy Farm,Care Establishment,4 - Operations - Providers services,LDP E Cambs Special Needs,Residential Independent Sector
Cambridgeshire County Council,16-Nov-17,24778484-16380140,-2977.44,Decoy Farm,Care Establishment,4 - Operations - Providers services,LDP E Cambs Special Needs,Residential Independent Sector
Cambridgeshire County Council,16-Nov-17,24778494-16380149,-2977.44,Decoy Farm,Care Establishment,4 - Operations - Providers services,LDP E Cambs Special Needs,Residential Independent Sector
Cambridgeshire County Council,16-Nov-17,24778518-16380171,-2977.44,Decoy Farm,Care Establishment,4 - Operations - Providers services,LDP E Cambs Special Needs,Residential Independent Sector
Cambridgeshire County Council,16-Nov-17,24778520-16380173,-2977.44,Decoy Farm,Care Establishment,4 - Operations - Providers services,LDP E Cambs Special Needs,Residential Independent Sector
Cambridgeshire County Council,16-Nov-17,24778537-16380188,-2977.44,Decoy Farm,Care Establishment,4 - Operations - Providers services,LDP E Cambs Special Needs,Residential Independent Sector
Cambridgeshire County Council,16-Nov-17,24778445-16379929,-2977.44,Decoy Farm,Care Establishment,4 - Operations - Providers services,LDP E Cambs Special Needs,Residential Independent Sector
Cambridgeshire County Council,16-Nov-17,24771417-16379987,-2977.44,Decoy Farm,Care Establishment,4 - Operations - Providers services,LDP E Cambs Special Needs,Residential Independent Sector
Cambridgeshire County Council,16-Nov-17,24771428-16379998,-2977.44,Decoy Farm,Care Establishment,4 - Operations - Providers services,LDP E Cambs Special Needs,Residential Independent Sector
Cambridgeshire County Council,16-Nov-17,24771441-16380010,-2977.44,Decoy Farm,Care Establishment,4 - Operations - Providers services,LDP E Cambs Special Needs,Residential Independent Sector
Cambridgeshire County Council,16-Nov-17,24771484-16380049,-2977.44,Decoy Farm,Care Establishment,4 - Operations - Providers services,LDP E Cambs Special Needs,Residential Independent Sector
Cambridgeshire County Council,16-Nov-17,24771491-16380052,-2977.44,Decoy Farm,Care Establishment,4 - Operations - Providers services,LDP E Cambs Special Needs,Residential Independent Sector
Cambridgeshire County Council,16-Nov-17,24771494-16380055,-2977.44,Decoy Farm,Care Establishment,4 - Operations - Providers services,LDP E Cambs Special Needs,Residential Independent Sector
Cambridgeshire County Council,24-Nov-17,24854630-16404894,-2977.44,Decoy Farm,Care Establishment,4 - Operations - Providers services,LDP E Cambs Special Needs,Residential Independent Sector
Cambridgeshire County Council,24-Nov-17,24854633-16404897,-2977.44,Decoy Farm,Care Establishment,4 - Operations - Providers services,LDP E Cambs Special Needs,Residential Independent Sector
Cambridgeshire County Council,24-Nov-17,24854665-16404929,-2977.44,Decoy Farm,Care Establishment,4 - Operations - Providers services,LDP E Cambs Special Needs,Residential Independent Sector
Cambridgeshire County Council,24-Nov-17,24860519-16404977,-2977.44,Decoy Farm,Care Establishment,4 - Operations - Providers services,LDP E Cambs Special Needs,Residential Independent Sector
Cambridgeshire County Council,24-Nov-17,24860444-16405022,-2977.44,Decoy Farm,Care Establishment,4 - Operations - Providers services,LDP E Cambs Special Needs,Residential Independent Sector
Cambridgeshire County Council,24-Nov-17,24860467-16405045,-2977.44,Decoy Farm,Care Establishment,4 - Operations - Providers services,LDP E Cambs Special Needs,Residential Independent Sector
Cambridgeshire County Council,24-Nov-17,24860505-16405083,-2977.44,Decoy Farm,Care Establishment,4 - Operations - Providers services,LDP E Cambs Special Needs,Residential Independent Sector
Cambridgeshire County Council,24-Nov-17,24860548-16405092,-2977.44,Decoy Farm,Care Establishment,4 - Operations - Providers services,LDP E Cambs Special Needs,Residential Independent Sector
Cambridgeshire County Council,24-Nov-17,24862475-16405149,-2977.44,Decoy Farm,Care Establishment,4 - Operations - Providers services,LDP E Cambs Special Needs,Residential Independent Sector
Cambridgeshire County Council,24-Nov-17,24862477-16405151,-2977.44,Decoy Farm,Care Establishment,4 - Operations - Providers services,LDP E Cambs Special Needs,Residential Independent Sector
Cambridgeshire County Council,30-Nov-17,24878428-16439050,-2977.44,Decoy Farm,Care Establishment,4 - Operations - Providers services,LDP E Cambs Special Needs,Residential Independent Sector
Cambridgeshire County Council,30-Nov-17,24878397-16439087,-2977.44,Decoy Farm,Care Establishment,4 - Operations - Providers services,LDP E Cambs Special Needs,Residential Independent Sector
Cambridgeshire County Council,30-Nov-17,24878405-16439095,-2977.44,Decoy Farm,Care Establishment,4 - Operations - Providers services,LDP E Cambs Special Needs,Residential Independent Sector
Cambridgeshire County Council,30-Nov-17,24878408-16439098,-2977.44,Decoy Farm,Care Establishment,4 - Operations - Providers services,LDP E Cambs Special Needs,Residential Independent Sector
Cambridgeshire County Council,30-Nov-17,24878311-16439103,-2977.44,Decoy Farm,Care Establishment,4 - Operations - Providers services,LDP E Cambs Special Needs,Residential Independent Sector
Cambridgeshire County Council,30-Nov-17,24878313-16439105,-2977.44,Decoy Farm,Care Establishment,4 - Operations - Providers services,LDP E Cambs Special Needs,Residential Independent Sector
Cambridgeshire County Council,30-Nov-17,24878445-16439126,-2977.44,Decoy Farm,Care Establishment,4 - Operations - Providers services,LDP E Cambs Special Needs,Residential Independent Sector
Cambridgeshire County Council,30-Nov-17,24880432-16439150,-2977.44,Decoy Farm,Care Establishment,4 - Operations - Providers services,LDP E Cambs Special Needs,Residential Independent Sector
Cambridgeshire County Council,30-Nov-17,24877261-16438908,-2977.44,Decoy Farm,Care Establishment,4 - Operations - Providers services,LDP E Cambs Special Needs,Residential Independent Sector
Cambridgeshire County Council,30-Nov-17,24877323-16438936,-2977.44,Decoy Farm,Care Establishment,4 - Operations - Providers services,LDP E Cambs Special Needs,Residential Independent Sector
Cambridgeshire County Council,30-Nov-17,24877273-16438945,-2977.44,Decoy Farm,Care Establishment,4 - Operations - Providers services,LDP E Cambs Special Needs,Residential Independent Sector
Cambridgeshire County Council,30-Nov-17,24877281-16438953,-2977.44,Decoy Farm,Care Establishment,4 - Operations - Providers services,LDP E Cambs Special Needs,Residential Independent Sector
Cambridgeshire County Council,30-Nov-17,24877292-16438964,-2977.44,Decoy Farm,Care Establishment,4 - Operations - Providers services,LDP E Cambs Special Needs,Residential Independent Sector
Cambridgeshire County Council,30-Nov-17,24877297-16438969,-2977.44,Decoy Farm,Care Establishment,4 - Operations - Providers services,LDP E Cambs Special Needs,Residential Independent Sector
Cambridgeshire County Council,30-Nov-17,24878360-16439016,-2977.44,Decoy Farm,Care Establishment,4 - Operations - Providers services,LDP E Cambs Special Needs,Residential Independent Sector
Cambridgeshire County Council,30-Nov-17,24878418-16439040,-2977.44,Decoy Farm,Care Establishment,4 - Operations - Providers services,LDP E Cambs Special Needs,Residential Independent Sector
Cambridgeshire County Council,02-Nov-17,24610517-16288396,-2977.44,Decoy Farm,Care Establishment,4 - Operations - Providers services,LDP E Cambs Special Needs,Residential Independent Sector
Cambridgeshire County Council,02-Nov-17,24610537-16288416,-2977.44,Decoy Farm,Care Establishment,4 - Operations - Providers services,LDP E Cambs Special Needs,Residential Independent Sector
Cambridgeshire County Council,02-Nov-17,24607466-16288189,-2977.44,Decoy Farm,Care Establishment,4 - Operations - Providers services,LDP E Cambs Special Needs,Residential Independent Sector
Cambridgeshire County Council,02-Nov-17,24608527-16288253,-2977.44,Decoy Farm,Care Establishment,4 - Operations - Providers services,LDP E Cambs Special Needs,Residential Independent Sector
Cambridgeshire County Council,02-Nov-17,24608531-16288257,-2977.44,Decoy Farm,Care Establishment,4 - Operations - Providers services,LDP E Cambs Special Needs,Residential Independent Sector
Cambridgeshire County Council,02-Nov-17,24608540-16288266,-2977.44,Decoy Farm,Care Establishment,4 - Operations - Providers services,LDP E Cambs Special Needs,Residential Independent Sector
Cambridgeshire County Council,02-Nov-17,24608436-16288275,-2977.44,Decoy Farm,Care Establishment,4 - Operations - Providers services,LDP E Cambs Special Needs,Residential Independent Sector
Cambridgeshire County Council,02-Nov-17,24608438-16288277,-2977.44,Decoy Farm,Care Establishment,4 - Operations - Providers services,LDP E Cambs Special Needs,Residential Independent Sector
Cambridgeshire County Council,02-Nov-17,24608447-16288286,-2977.44,Decoy Farm,Care Establishment,4 - Operations - Providers services,LDP E Cambs Special Needs,Residential Independent Sector
Cambridgeshire County Council,02-Nov-17,24608459-16288298,-2977.44,Decoy Farm,Care Establishment,4 - Operations - Providers services,LDP E Cambs Special Needs,Residential Independent Sector
Cambridgeshire County Council,02-Nov-17,24608484-16288323,-2977.44,Decoy Farm,Care Establishment,4 - Operations - Providers services,LDP E Cambs Special Needs,Residential Independent Sector
Cambridgeshire County Council,02-Nov-17,24610483-16288362,-2977.44,Decoy Farm,Care Establishment,4 - Operations - Providers services,LDP E Cambs Special Needs,Residential Independent Sector
Cambridgeshire County Council,02-Nov-17,24610494-16288373,-2977.44,Decoy Farm,Care Establishment,4 - Operations - Providers services,LDP E Cambs Special Needs,Residential Independent Sector
Cambridgeshire County Council,16-Nov-17,24825599-16380246,-2977.44,Decoy Farm,Care Establishment,4 - Operations - Providers services,LDP E Cambs Special Needs,Residential Independent Sector
Cambridgeshire County Council,16-Nov-17,24825607-16380254,-2977.44,Decoy Farm,Care Establishment,4 - Operations - Providers services,LDP E Cambs Special Needs,Residential Independent Sector
Cambridgeshire County Council,16-Nov-17,24825609-16380256,-2977.44,Decoy Farm,Care Establishment,4 - Operations - Providers services,LDP E Cambs Special Needs,Residential Independent Sector
Cambridgeshire County Council,16-Nov-17,24825614-16380261,-2977.44,Decoy Farm,Care Establishment,4 - Operations - Providers services,LDP E Cambs Special Needs,Residential Independent Sector
Cambridgeshire County Council,16-Nov-17,24825628-16380275,-2977.44,Decoy Farm,Care Establishment,4 - Operations - Providers services,LDP E Cambs Special Needs,Residential Independent Sector
Cambridgeshire County Council,16-Nov-17,24825634-16380281,-2977.44,Decoy Farm,Care Establishment,4 - Operations - Providers services,LDP E Cambs Special Needs,Residential Independent Sector
Cambridgeshire County Council,16-Nov-17,24825659-16380306,-2977.44,Decoy Farm,Care Establishment,4 - Operations - Providers services,LDP E Cambs Special Needs,Residential Independent Sector
Cambridgeshire County Council,16-Nov-17,24825546-16380311,-2977.44,Decoy Farm,Care Establishment,4 - Operations - Providers services,LDP E Cambs Special Needs,Residential Independent Sector
Cambridgeshire County Council,16-Nov-17,24825565-16380330,-2977.44,Decoy Farm,Care Establishment,4 - Operations - Providers services,LDP E Cambs Special Needs,Residential Independent Sector
Cambridgeshire County Council,16-Nov-17,24825572-16380337,-2977.44,Decoy Farm,Care Establishment,4 - Operations - Providers services,LDP E Cambs Special Needs,Residential Independent Sector
Cambridgeshire County Council,16-Nov-17,24828591-16380362,-2977.44,Decoy Farm,Care Establishment,4 - Operations - Providers services,LDP E Cambs Special Needs,Residential Independent Sector
Cambridgeshire County Council,16-Nov-17,24828605-16380376,-2977.44,Decoy Farm,Care Establishment,4 - Operations - Providers services,LDP E Cambs Special Needs,Residential Independent Sector
Cambridgeshire County Council,16-Nov-17,24831514-16380384,-2977.44,Decoy Farm,Care Establishment,4 - Operations - Providers services,LDP E Cambs Special Needs,Residential Independent Sector
Cambridgeshire County Council,16-Nov-17,24831527-16380397,-2977.44,Decoy Farm,Care Establishment,4 - Operations - Providers services,LDP E Cambs Special Needs,Residential Independent Sector
Cambridgeshire County Council,16-Nov-17,24831570-16380440,-2977.44,Decoy Farm,Care Establishment,4 - Operations - Providers services,LDP E Cambs Special Needs,Residential Independent Sector
Cambridgeshire County Council,16-Nov-17,24771388-16380108,-2977.44,Decoy Farm,Care Establishment,4 - Operations - Providers services,LDP E Cambs Special Needs,Residential Independent Sector
Cambridgeshire County Council,16-Nov-17,24778475-16380131,-2977.44,Decoy Farm,Care Establishment,4 - Operations - Providers services,LDP E Cambs Special Needs,Residential Independent Sector
Cambridgeshire County Council,16-Nov-17,24778544-16380195,-2977.44,Decoy Farm,Care Establishment,4 - Operations - Providers services,LDP E Cambs Special Needs,Residential Independent Sector
Cambridgeshire County Council,16-Nov-17,24778577-16380228,-2977.44,Decoy Farm,Care Establishment,4 - Operations - Providers services,LDP E Cambs Special Needs,Residential Independent Sector
Cambridgeshire County Council,16-Nov-17,24778446-16379930,-2977.44,Decoy Farm,Care Establishment,4 - Operations - Providers services,LDP E Cambs Special Needs,Residential Independent Sector
Cambridgeshire County Council,16-Nov-17,24778429-16379955,-2977.44,Decoy Farm,Care Establishment,4 - Operations - Providers services,LDP E Cambs Special Needs,Residential Independent Sector
Cambridgeshire County Council,16-Nov-17,24771433-16380003,-2977.44,Decoy Farm,Care Establishment,4 - Operations - Providers services,LDP E Cambs Special Needs,Residential Independent Sector
Cambridgeshire County Council,16-Nov-17,24771445-16380013,-2977.44,Decoy Farm,Care Establishment,4 - Operations - Providers services,LDP E Cambs Special Needs,Residential Independent Sector
Cambridgeshire County Council,16-Nov-17,24771449-16380017,-2977.44,Decoy Farm,Care Establishment,4 - Operations - Providers services,LDP E Cambs Special Needs,Residential Independent Sector
Cambridgeshire County Council,16-Nov-17,24771454-16380022,-2977.44,Decoy Farm,Care Establishment,4 - Operations - Providers services,LDP E Cambs Special Needs,Residential Independent Sector
Cambridgeshire County Council,16-Nov-17,24771460-16380027,-2977.44,Decoy Farm,Care Establishment,4 - Operations - Providers services,LDP E Cambs Special Needs,Residential Independent Sector
Cambridgeshire County Council,16-Nov-17,24771474-16380041,-2977.44,Decoy Farm,Care Establishment,4 - Operations - Providers services,LDP E Cambs Special Needs,Residential Independent Sector
Cambridgeshire County Council,16-Nov-17,24828567-16380066,-2977.44,Decoy Farm,Care Establishment,4 - Operations - Providers services,LDP E Cambs Special Needs,Residential Independent Sector
Cambridgeshire County Council,16-Nov-17,24828572-16380071,-2977.44,Decoy Farm,Care Establishment,4 - Operations - Providers services,LDP E Cambs Special Needs,Residential Independent Sector
Cambridgeshire County Council,16-Nov-17,24828573-16380072,-2977.44,Decoy Farm,Care Establishment,4 - Operations - Providers services,LDP E Cambs Special Needs,Residential Independent Sector
Cambridgeshire County Council,24-Nov-17,24854650-16404914,-2977.44,Decoy Farm,Care Establishment,4 - Operations - Providers services,LDP E Cambs Special Needs,Residential Independent Sector
Cambridgeshire County Council,24-Nov-17,24854661-16404925,-2977.44,Decoy Farm,Care Establishment,4 - Operations - Providers services,LDP E Cambs Special Needs,Residential Independent Sector
Cambridgeshire County Council,24-Nov-17,24854668-16404932,-2977.44,Decoy Farm,Care Establishment,4 - Operations - Providers services,LDP E Cambs Special Needs,Residential Independent Sector
Cambridgeshire County Council,24-Nov-17,24854681-16404945,-2977.44,Decoy Farm,Care Establishment,4 - Operations - Providers services,LDP E Cambs Special Needs,Residential Independent Sector
Cambridgeshire County Council,24-Nov-17,24860525-16404983,-2977.44,Decoy Farm,Care Establishment,4 - Operations - Providers services,LDP E Cambs Special Needs,Residential Independent Sector
Cambridgeshire County Council,24-Nov-17,24860543-16405001,-2977.44,Decoy Farm,Care Establishment,4 - Operations - Providers services,LDP E Cambs Special Needs,Residential Independent Sector
Cambridgeshire County Council,24-Nov-17,24860441-16405019,-2977.44,Decoy Farm,Care Establishment,4 - Operations - Providers services,LDP E Cambs Special Needs,Residential Independent Sector
Cambridgeshire County Council,24-Nov-17,24860458-16405036,-2977.44,Decoy Farm,Care Establishment,4 - Operations - Providers services,LDP E Cambs Special Needs,Residential Independent Sector
Cambridgeshire County Council,24-Nov-17,24860459-16405037,-2977.44,Decoy Farm,Care Establishment,4 - Operations - Providers services,LDP E Cambs Special Needs,Residential Independent Sector
Cambridgeshire County Council,24-Nov-17,24860469-16405047,-2977.44,Decoy Farm,Care Establishment,4 - Operations - Providers services,LDP E Cambs Special Needs,Residential Independent Sector
Cambridgeshire County Council,24-Nov-17,24860470-16405048,-2977.44,Decoy Farm,Care Establishment,4 - Operations - Providers services,LDP E Cambs Special Needs,Residential Independent Sector
Cambridgeshire County Council,24-Nov-17,24860484-16405062,-2977.44,Decoy Farm,Care Establishment,4 - Operations - Providers services,LDP E Cambs Special Needs,Residential Independent Sector
Cambridgeshire County Council,24-Nov-17,24860488-16405066,-2977.44,Decoy Farm,Care Establishment,4 - Operations - Providers services,LDP E Cambs Special Needs,Residential Independent Sector
Cambridgeshire County Council,24-Nov-17,24860494-16405072,-2977.44,Decoy Farm,Care Establishment,4 - Operations - Providers services,LDP E Cambs Special Needs,Residential Independent Sector
Cambridgeshire County Council,24-Nov-17,24860498-16405076,-2977.44,Decoy Farm,Care Establishment,4 - Operations - Providers services,LDP E Cambs Special Needs,Residential Independent Sector
Cambridgeshire County Council,24-Nov-17,24860510-16405088,-2977.44,Decoy Farm,Care Establishment,4 - Operations - Providers services,LDP E Cambs Special Needs,Residential Independent Sector
Cambridgeshire County Council,24-Nov-17,24860552-16405096,-2977.44,Decoy Farm,Care Establishment,4 - Operations - Providers services,LDP E Cambs Special Needs,Residential Independent Sector
Cambridgeshire County Council,24-Nov-17,24862432-16405106,-2977.44,Decoy Farm,Care Establishment,4 - Operations - Providers services,LDP E Cambs Special Needs,Residential Independent Sector
Cambridgeshire County Council,24-Nov-17,24862454-16405128,-2977.44,Decoy Farm,Care Establishment,4 - Operations - Providers services,LDP E Cambs Special Needs,Residential Independent Sector
Cambridgeshire County Council,24-Nov-17,24862461-16405135,-2977.44,Decoy Farm,Care Establishment,4 - Operations - Providers services,LDP E Cambs Special Needs,Residential Independent Sector
Cambridgeshire County Council,24-Nov-17,24862463-16405137,-2977.44,Decoy Farm,Care Establishment,4 - Operations - Providers services,LDP E Cambs Special Needs,Residential Independent Sector
Cambridgeshire County Council,24-Nov-17,24862479-16405153,-2977.44,Decoy Farm,Care Establishment,4 - Operations - Providers services,LDP E Cambs Special Needs,Residential Independent Sector
Cambridgeshire County Council,30-Nov-17,24878444-16439066,-2977.44,Decoy Farm,Care Establishment,4 - Operations - Providers services,LDP E Cambs Special Needs,Residential Independent Sector
Cambridgeshire County Council,30-Nov-17,24880417-16439135,-2977.44,Decoy Farm,Care Establishment,4 - Operations - Providers services,LDP E Cambs Special Needs,Residential Independent Sector
Cambridgeshire County Council,30-Nov-17,24877320-16438933,-2977.44,Decoy Farm,Care Establishment,4 - Operations - Providers services,LDP E Cambs Special Needs,Residential Independent Sector
Cambridgeshire County Council,30-Nov-17,24877322-16438935,-2977.44,Decoy Farm,Care Establishment,4 - Operations - Providers services,LDP E Cambs Special Needs,Residential Independent Sector
Cambridgeshire County Council,30-Nov-17,24877278-16438950,-2977.44,Decoy Farm,Care Establishment,4 - Operations - Providers services,LDP E Cambs Special Needs,Residential Independent Sector
Cambridgeshire County Council,30-Nov-17,24878331-16438987,-2977.44,Decoy Farm,Care Establishment,4 - Operations - Providers services,LDP E Cambs Special Needs,Residential Independent Sector
Cambridgeshire County Council,30-Nov-17,24878411-16439033,-2977.44,Decoy Farm,Care Establishment,4 - Operations - Providers services,LDP E Cambs Special Needs,Residential Independent Sector
Cambridgeshire County Council,30-Nov-17,24878412-16439034,-2977.44,Decoy Farm,Care Establishment,4 - Operations - Providers services,LDP E Cambs Special Needs,Residential Independent Sector
Cambridgeshire County Council,30-Nov-17,24878419-16439041,-2977.44,Decoy Farm,Care Establishment,4 - Operations - Providers services,LDP E Cambs Special Needs,Residential Independent Sector
Cambridgeshire County Council,02-Nov-17,24610520-16288399,-2977.44,Decoy Farm,Care Establishment,4 - Operations - Providers services,LDP E Cambs Special Needs,Residential Independent Sector
Cambridgeshire County Council,02-Nov-17,24610532-16288411,-2977.44,Decoy Farm,Care Establishment,4 - Operations - Providers services,LDP E Cambs Special Needs,Residential Independent Sector
Cambridgeshire County Council,02-Nov-17,24610542-16288421,-2977.44,Decoy Farm,Care Establishment,4 - Operations - Providers services,LDP E Cambs Special Needs,Residential Independent Sector
Cambridgeshire County Council,02-Nov-17,24607473-16288196,-2977.44,Decoy Farm,Care Establishment,4 - Operations - Providers services,LDP E Cambs Special Needs,Residential Independent Sector
Cambridgeshire County Council,02-Nov-17,24608511-16288237,-2977.44,Decoy Farm,Care Establishment,4 - Operations - Providers services,LDP E Cambs Special Needs,Residential Independent Sector
Cambridgeshire County Council,02-Nov-17,24608513-16288239,-2977.44,Decoy Farm,Care Establishment,4 - Operations - Providers services,LDP E Cambs Special Needs,Residential Independent Sector
Cambridgeshire County Council,02-Nov-17,24608497-16288336,-2977.44,Decoy Farm,Care Establishment,4 - Operations - Providers services,LDP E Cambs Special Needs,Residential Independent Sector
Cambridgeshire County Council,02-Nov-17,24610492-16288371,-2977.44,Decoy Farm,Care Establishment,4 - Operations - Providers services,LDP E Cambs Special Needs,Residential Independent Sector
Cambridgeshire County Council,02-Nov-17,24610495-16288374,-2977.44,Decoy Farm,Care Establishment,4 - Operations - Providers services,LDP E Cambs Special Needs,Residential Independent Sector
Cambridgeshire County Council,16-Nov-17,24825594-16380241,-2977.44,Decoy Farm,Care Establishment,4 - Operations - Providers services,LDP E Cambs Special Needs,Residential Independent Sector
Cambridgeshire County Council,16-Nov-17,24825617-16380264,-2977.44,Decoy Farm,Care Establishment,4 - Operations - Providers services,LDP E Cambs Special Needs,Residential Independent Sector
Cambridgeshire County Council,16-Nov-17,24825639-16380286,-2977.44,Decoy Farm,Care Establishment,4 - Operations - Providers services,LDP E Cambs Special Needs,Residential Independent Sector
Cambridgeshire County Council,16-Nov-17,24825652-16380299,-2977.44,Decoy Farm,Care Establishment,4 - Operations - Providers services,LDP E Cambs Special Needs,Residential Independent Sector
Cambridgeshire County Council,16-Nov-17,24825554-16380319,-2977.44,Decoy Farm,Care Establishment,4 - Operations - Providers services,LDP E Cambs Special Needs,Residential Independent Sector
Cambridgeshire County Council,16-Nov-17,24825571-16380336,-2977.44,Decoy Farm,Care Establishment,4 - Operations - Providers services,LDP E Cambs Special Needs,Residential Independent Sector
Cambridgeshire County Council,16-Nov-17,24828578-16380349,-2977.44,Decoy Farm,Care Establishment,4 - Operations - Providers services,LDP E Cambs Special Needs,Residential Independent Sector
Cambridgeshire County Council,16-Nov-17,24828580-16380351,-2977.44,Decoy Farm,Care Establishment,4 - Operations - Providers services,LDP E Cambs Special Needs,Residential Independent Sector
Cambridgeshire County Council,16-Nov-17,24828582-16380353,-2977.44,Decoy Farm,Care Establishment,4 - Operations - Providers services,LDP E Cambs Special Needs,Residential Independent Sector
Cambridgeshire County Council,16-Nov-17,24828583-16380354,-2977.44,Decoy Farm,Care Establishment,4 - Operations - Providers services,LDP E Cambs Special Needs,Residential Independent Sector
Cambridgeshire County Council,16-Nov-17,24828600-16380371,-2977.44,Decoy Farm,Care Establishment,4 - Operations - Providers services,LDP E Cambs Special Needs,Residential Independent Sector
Cambridgeshire County Council,16-Nov-17,24831520-16380390,-2977.44,Decoy Farm,Care Establishment,4 - Operations - Providers services,LDP E Cambs Special Needs,Residential Independent Sector
Cambridgeshire County Council,16-Nov-17,24831522-16380392,-2977.44,Decoy Farm,Care Establishment,4 - Operations - Providers services,LDP E Cambs Special Needs,Residential Independent Sector
Cambridgeshire County Council,16-Nov-17,24831533-16380403,-2977.44,Decoy Farm,Care Establishment,4 - Operations - Providers services,LDP E Cambs Special Needs,Residential Independent Sector
Cambridgeshire County Council,16-Nov-17,24831540-16380410,-2977.44,Decoy Farm,Care Establishment,4 - Operations - Providers services,LDP E Cambs Special Needs,Residential Independent Sector
Cambridgeshire County Council,16-Nov-17,24831545-16380415,-2977.44,Decoy Farm,Care Establishment,4 - Operations - Providers services,LDP E Cambs Special Needs,Residential Independent Sector
Cambridgeshire County Council,16-Nov-17,24831553-16380423,-2977.44,Decoy Farm,Care Establishment,4 - Operations - Providers services,LDP E Cambs Special Needs,Residential Independent Sector
Cambridgeshire County Council,16-Nov-17,24831560-16380430,-2977.44,Decoy Farm,Care Establishment,4 - Operations - Providers services,LDP E Cambs Special Needs,Residential Independent Sector
Cambridgeshire County Council,16-Nov-17,24828544-16380089,-2977.44,Decoy Farm,Care Establishment,4 - Operations - Providers services,LDP E Cambs Special Needs,Residential Independent Sector
Cambridgeshire County Council,16-Nov-17,24778468-16380124,-2977.44,Decoy Farm,Care Establishment,4 - Operations - Providers services,LDP E Cambs Special Needs,Residential Independent Sector
Cambridgeshire County Council,16-Nov-17,24778481-16380137,-2977.44,Decoy Farm,Care Establishment,4 - Operations - Providers services,LDP E Cambs Special Needs,Residential Independent Sector
Cambridgeshire County Council,16-Nov-17,24778497-16380151,-2977.44,Decoy Farm,Care Establishment,4 - Operations - Providers services,LDP E Cambs Special Needs,Residential Independent Sector
Cambridgeshire County Council,16-Nov-17,24778498-16380152,-2977.44,Decoy Farm,Care Establishment,4 - Operations - Providers services,LDP E Cambs Special Needs,Residential Independent Sector
Cambridgeshire County Council,16-Nov-17,24778561-16380212,-2977.44,Decoy Farm,Care Establishment,4 - Operations - Providers services,LDP E Cambs Special Needs,Residential Independent Sector
Cambridgeshire County Council,16-Nov-17,24778570-16380221,-2977.44,Decoy Farm,Care Establishment,4 - Operations - Providers services,LDP E Cambs Special Needs,Residential Independent Sector
Cambridgeshire County Council,16-Nov-17,24778456-16379939,-2977.44,Decoy Farm,Care Establishment,4 - Operations - Providers services,LDP E Cambs Special Needs,Residential Independent Sector
Cambridgeshire County Council,16-Nov-17,24778417-16379945,-2977.44,Decoy Farm,Care Establishment,4 - Operations - Providers services,LDP E Cambs Special Needs,Residential Independent Sector
Cambridgeshire County Council,16-Nov-17,24771397-16379969,-2977.44,Decoy Farm,Care Establishment,4 - Operations - Providers services,LDP E Cambs Special Needs,Residential Independent Sector
Cambridgeshire County Council,16-Nov-17,24771410-16379981,-2977.44,Decoy Farm,Care Establishment,4 - Operations - Providers services,LDP E Cambs Special Needs,Residential Independent Sector
Cambridgeshire County Council,16-Nov-17,24771438-16380007,-2977.44,Decoy Farm,Care Establishment,4 - Operations - Providers services,LDP E Cambs Special Needs,Residential Independent Sector
Cambridgeshire County Council,16-Nov-17,24771461-16380028,-2977.44,Decoy Farm,Care Establishment,4 - Operations - Providers services,LDP E Cambs Special Needs,Residential Independent Sector
Cambridgeshire County Council,16-Nov-17,24771471-16380038,-2977.44,Decoy Farm,Care Establishment,4 - Operations - Providers services,LDP E Cambs Special Needs,Residential Independent Sector
Cambridgeshire County Council,16-Nov-17,24771478-16380045,-2977.44,Decoy Farm,Care Establishment,4 - Operations - Providers services,LDP E Cambs Special Needs,Residential Independent Sector
Cambridgeshire County Council,16-Nov-17,24771480-16380047,-2977.44,Decoy Farm,Care Establishment,4 - Operations - Providers services,LDP E Cambs Special Needs,Residential Independent Sector
Cambridgeshire County Council,16-Nov-17,24828561-16380060,-2977.44,Decoy Farm,Care Establishment,4 - Operations - Providers services,LDP E Cambs Special Needs,Residential Independent Sector
Cambridgeshire County Council,24-Nov-17,24854642-16404906,-2977.44,Decoy Farm,Care Establishment,4 - Operations - Providers services,LDP E Cambs Special Needs,Residential Independent Sector
Cambridgeshire County Council,24-Nov-17,24854643-16404907,-2977.44,Decoy Farm,Care Establishment,4 - Operations - Providers services,LDP E Cambs Special Needs,Residential Independent Sector
Cambridgeshire County Council,24-Nov-17,24854653-16404917,-2977.44,Decoy Farm,Care Establishment,4 - Operations - Providers services,LDP E Cambs Special Needs,Residential Independent Sector
Cambridgeshire County Council,24-Nov-17,24854692-16404956,-2977.44,Decoy Farm,Care Establishment,4 - Operations - Providers services,LDP E Cambs Special Needs,Residential Independent Sector
Cambridgeshire County Council,24-Nov-17,24860537-16404995,-2977.44,Decoy Farm,Care Establishment,4 - Operations - Providers services,LDP E Cambs Special Needs,Residential Independent Sector
Cambridgeshire County Council,24-Nov-17,24860447-16405025,-2977.44,Decoy Farm,Care Establishment,4 - Operations - Providers services,LDP E Cambs Special Needs,Residential Independent Sector
Cambridgeshire County Council,24-Nov-17,24860464-16405042,-2977.44,Decoy Farm,Care Establishment,4 - Operations - Providers services,LDP E Cambs Special Needs,Residential Independent Sector
Cambridgeshire County Council,24-Nov-17,24860479-16405057,-2977.44,Decoy Farm,Care Establishment,4 - Operations - Providers services,LDP E Cambs Special Needs,Residential Independent Sector
Cambridgeshire County Council,24-Nov-17,24860507-16405085,-2977.44,Decoy Farm,Care Establishment,4 - Operations - Providers services,LDP E Cambs Special Needs,Residential Independent Sector
Cambridgeshire County Council,24-Nov-17,24860555-16405099,-2977.44,Decoy Farm,Care Establishment,4 - Operations - Providers services,LDP E Cambs Special Needs,Residential Independent Sector
Cambridgeshire County Council,24-Nov-17,24860557-16405101,-2977.44,Decoy Farm,Care Establishment,4 - Operations - Providers services,LDP E Cambs Special Needs,Residential Independent Sector
Cambridgeshire County Council,24-Nov-17,24862459-16405133,-2977.44,Decoy Farm,Care Establishment,4 - Operations - Providers services,LDP E Cambs Special Needs,Residential Independent Sector
Cambridgeshire County Council,24-Nov-17,24862478-16405152,-2977.44,Decoy Farm,Care Establishment,4 - Operations - Providers services,LDP E Cambs Special Needs,Residential Independent Sector
Cambridgeshire County Council,24-Nov-17,24862483-16405157,-2977.44,Decoy Farm,Care Establishment,4 - Operations - Providers services,LDP E Cambs Special Needs,Residential Independent Sector
Cambridgeshire County Council,30-Nov-17,24878427-16439049,-2977.44,Decoy Farm,Care Establishment,4 - Operations - Providers services,LDP E Cambs Special Needs,Residential Independent Sector
Cambridgeshire County Council,30-Nov-17,24878430-16439052,-2977.44,Decoy Farm,Care Establishment,4 - Operations - Providers services,LDP E Cambs Special Needs,Residential Independent Sector
Cambridgeshire County Council,30-Nov-17,24878434-16439056,-2977.44,Decoy Farm,Care Establishment,4 - Operations - Providers services,LDP E Cambs Special Needs,Residential Independent Sector
Cambridgeshire County Council,30-Nov-17,24878385-16439075,-2977.44,Decoy Farm,Care Establishment,4 - Operations - Providers services,LDP E Cambs Special Needs,Residential Independent Sector
Cambridgeshire County Council,30-Nov-17,24878321-16439113,-2977.44,Decoy Farm,Care Establishment,4 - Operations - Providers services,LDP E Cambs Special Needs,Residential Independent Sector
Cambridgeshire County Council,30-Nov-17,24880414-16439132,-2977.44,Decoy Farm,Care Establishment,4 - Operations - Providers services,LDP E Cambs Special Needs,Residential Independent Sector
Cambridgeshire County Council,30-Nov-17,24880425-16439143,-2977.44,Decoy Farm,Care Establishment,4 - Operations - Providers services,LDP E Cambs Special Needs,Residential Independent Sector
Cambridgeshire County Council,30-Nov-17,24880427-16439145,-2977.44,Decoy Farm,Care Establishment,4 - Operations - Providers services,LDP E Cambs Special Needs,Residential Independent Sector
Cambridgeshire County Council,30-Nov-17,24880433-16439151,-2977.44,Decoy Farm,Care Establishment,4 - Operations - Providers services,LDP E Cambs Special Needs,Residential Independent Sector
Cambridgeshire County Council,30-Nov-17,24876271-16438903,-2977.44,Decoy Farm,Care Establishment,4 - Operations - Providers services,LDP E Cambs Special Needs,Residential Independent Sector
Cambridgeshire County Council,30-Nov-17,24877268-16438915,-2977.44,Decoy Farm,Care Establishment,4 - Operations - Providers services,LDP E Cambs Special Needs,Residential Independent Sector
Cambridgeshire County Council,30-Nov-17,24877311-16438924,-2977.44,Decoy Farm,Care Establishment,4 - Operations - Providers services,LDP E Cambs Special Needs,Residential Independent Sector
Cambridgeshire County Council,30-Nov-17,24877321-16438934,-2977.44,Decoy Farm,Care Establishment,4 - Operations - Providers services,LDP E Cambs Special Needs,Residential Independent Sector
Cambridgeshire County Council,30-Nov-17,24877290-16438962,-2977.44,Decoy Farm,Care Establishment,4 - Operations - Providers services,LDP E Cambs Special Needs,Residential Independent Sector
Cambridgeshire County Council,30-Nov-17,24877303-16438975,-2977.44,Decoy Farm,Care Establishment,4 - Operations - Providers services,LDP E Cambs Special Needs,Residential Independent Sector
Cambridgeshire County Council,30-Nov-17,24878328-16438984,-2977.44,Decoy Farm,Care Establishment,4 - Operations - Providers services,LDP E Cambs Special Needs,Residential Independent Sector
Cambridgeshire County Council,30-Nov-17,24878337-16438993,-2977.44,Decoy Farm,Care Establishment,4 - Operations - Providers services,LDP E Cambs Special Needs,Residential Independent Sector
Cambridgeshire County Council,30-Nov-17,24878355-16439011,-2977.44,Decoy Farm,Care Establishment,4 - Operations - Providers services,LDP E Cambs Special Needs,Residential Independent Sector
Cambridgeshire County Council,30-Nov-17,24878416-16439038,-2977.44,Decoy Farm,Care Establishment,4 - Operations - Providers services,LDP E Cambs Special Needs,Residential Independent Sector
Cambridgeshire County Council,30-Nov-17,24878425-16439047,-2977.44,Decoy Farm,Care Establishment,4 - Operations - Providers services,LDP E Cambs Special Needs,Residential Independent Sector
Cambridgeshire County Council,24-Nov-17,24854345-16413306,-2559,Brookdale Healthcare Limited,Care Establishment,2 - Operations - Learning Disability,LDP Hunts special needs,Short Term Other
Cambridgeshire County Council,16-Nov-17,24771398-16379970,-2552.09,Decoy Farm,Care Establishment,4 - Operations - Providers services,LDP E Cambs Special Needs,Residential Independent Sector
Cambridgeshire County Council,16-Nov-17,24828560-16380059,-2552.09,Decoy Farm,Care Establishment,4 - Operations - Providers services,LDP E Cambs Special Needs,Residential Independent Sector
Cambridgeshire County Council,16-Nov-17,24771437-16380006,-2552.09,Decoy Farm,Care Establishment,4 - Operations - Providers services,LDP E Cambs Special Needs,Residential Independent Sector
Cambridgeshire County Council,24-Nov-17,24854683-16404947,-2552.09,Decoy Farm,Care Establishment,4 - Operations - Providers services,LDP E Cambs Special Needs,Residential Independent Sector
Cambridgeshire County Council,24-Nov-17,24860468-16405046,-2552.09,Decoy Farm,Care Establishment,4 - Operations - Providers services,LDP E Cambs Special Needs,Residential Independent Sector
Cambridgeshire County Council,02-Nov-17,24610547-16288426,-2552.09,Decoy Farm,Care Establishment,4 - Operations - Providers services,LDP E Cambs Special Needs,Residential Independent Sector
Cambridgeshire County Council,30-Nov-17,24877283-16438955,-2552.09,Decoy Farm,Care Establishment,4 - Operations - Providers services,LDP E Cambs Special Needs,Residential Independent Sector
Cambridgeshire County Council,16-Nov-17,24825626-16380273,-2552.09,Decoy Farm,Care Establishment,4 - Operations - Providers services,LDP E Cambs Special Needs,Residential Independent Sector
Cambridgeshire County Council,30-Nov-17,24878312-16439104,-2552.09,Decoy Farm,Care Establishment,4 - Operations - Providers services,LDP E Cambs Special Needs,Residential Independent Sector
Cambridgeshire County Council,02-Nov-17,24610525-16288404,-2552.09,Decoy Farm,Care Establishment,4 - Operations - Providers services,LDP E Cambs Special Needs,Residential Independent Sector
Cambridgeshire County Council,28-Nov-17,24867621-16425199,-2503.69,Stanground Academy,Education,S&C,Procurement - Out-County Mainstream,Education Recoupment
Cambridgeshire County Council,09-Nov-17,24791548-16342419,-2337.29,Dimensions (Uk) Ltd,Care Establishment,4 - Operations - Providers services,LDP South Cambs - Special Needs,Supported Living
Cambridgeshire County Council,09-Nov-17,24602839-16342277,-2337.29,Dimensions (Uk) Ltd,Care Establishment,4 - Operations - Providers services,LDP South Cambs - Special Needs,Supported Living
Cambridgeshire County Council,09-Nov-17,24602852-16342290,-2337.29,Dimensions (Uk) Ltd,Care Establishment,4 - Operations - Providers services,LDP Cambs City - Special Needs,Supported Living
Cambridgeshire County Council,09-Nov-17,24781225-16342363,-2337.29,Dimensions (Uk) Ltd,Care Establishment,4 - Operations - Providers services,LDP Cambs City - Special Needs,Supported Living
Cambridgeshire County Council,09-Nov-17,24489197-16342246,-2337.29,Dimensions (Uk) Ltd,Care Establishment,4 - Operations - Providers services,LDP South Cambs - Special Needs,Supported Living
Cambridgeshire County Council,09-Nov-17,24578129-16342267,-2337.29,Dimensions (Uk) Ltd,Care Establishment,4 - Operations - Providers services,LDP South Cambs - Special Needs,Supported Living
Cambridgeshire County Council,09-Nov-17,24578136-16342274,-2337.29,Dimensions (Uk) Ltd,Care Establishment,4 - Operations - Providers services,LDP South Cambs - Special Needs,Supported Living
Cambridgeshire County Council,09-Nov-17,24602843-16342281,-2337.29,Dimensions (Uk) Ltd,Care Establishment,4 - Operations - Providers services,LDP Cambs City - Special Needs,Supported Living
Cambridgeshire County Council,09-Nov-17,24609899-16342293,-2337.29,Dimensions (Uk) Ltd,Care Establishment,4 - Operations - Providers services,LDP South Cambs - Special Needs,Supported Living
Cambridgeshire County Council,09-Nov-17,24489198-16342247,-2337.29,Dimensions (Uk) Ltd,Care Establishment,4 - Operations - Providers services,LDP Cambs City - Special Needs,Supported Living
Cambridgeshire County Council,09-Nov-17,24578121-16342259,-2337.29,Dimensions (Uk) Ltd,Care Establishment,4 - Operations - Providers services,LDP Cambs City - Special Needs,Supported Living
Cambridgeshire County Council,09-Nov-17,24602850-16342288,-2337.29,Dimensions (Uk) Ltd,Care Establishment,4 - Operations - Providers services,LDP Cambs City - Special Needs,Supported Living
Cambridgeshire County Council,09-Nov-17,24489195-16342244,-2337.29,Dimensions (Uk) Ltd,Care Establishment,4 - Operations - Providers services,LDP South Cambs - Special Needs,Supported Living
Cambridgeshire County Council,09-Nov-17,24489199-16342248,-2337.29,Dimensions (Uk) Ltd,Care Establishment,4 - Operations - Providers services,LDP Cambs City - Special Needs,Supported Living
Cambridgeshire County Council,09-Nov-17,24489202-16342251,-2337.29,Dimensions (Uk) Ltd,Care Establishment,4 - Operations - Providers services,LDP Cambs City - Special Needs,Supported Living
Cambridgeshire County Council,09-Nov-17,24578131-16342269,-2337.29,Dimensions (Uk) Ltd,Care Establishment,4 - Operations - Providers services,LDP South Cambs - Special Needs,Supported Living
Cambridgeshire County Council,09-Nov-17,24781232-16342369,-2337.29,Dimensions (Uk) Ltd,Care Establishment,4 - Operations - Providers services,LDP South Cambs - Special Needs,Supported Living
Cambridgeshire County Council,09-Nov-17,24791555-16342423,-2337.29,Dimensions (Uk) Ltd,Care Establishment,4 - Operations - Providers services,LDP Cambs City - Special Needs,Supported Living
Cambridgeshire County Council,09-Nov-17,24578122-16342260,-2337.29,Dimensions (Uk) Ltd,Care Establishment,4 - Operations - Providers services,LDP South Cambs - Special Needs,Supported Living
Cambridgeshire County Council,09-Nov-17,24609900-16342294,-2337.29,Dimensions (Uk) Ltd,Care Establishment,4 - Operations - Providers services,LDP South Cambs - Special Needs,Supported Living
Cambridgeshire County Council,09-Nov-17,24781223-16342361,-2337.29,Dimensions (Uk) Ltd,Care Establishment,4 - Operations - Providers services,LDP South Cambs - Special Needs,Supported Living
Cambridgeshire County Council,09-Nov-17,24791547-16342418,-2337.29,Dimensions (Uk) Ltd,Care Establishment,4 - Operations - Providers services,LDP South Cambs - Special Needs,Supported Living
Cambridgeshire County Council,09-Nov-17,24489203-16342252,-2337.29,Dimensions (Uk) Ltd,Care Establishment,4 - Operations - Providers services,LDP Cambs City - Special Needs,Supported Living
Cambridgeshire County Council,09-Nov-17,24578133-16342271,-2337.29,Dimensions (Uk) Ltd,Care Establishment,4 - Operations - Providers services,LDP South Cambs - Special Needs,Supported Living
Cambridgeshire County Council,09-Nov-17,24602854-16342292,-2337.29,Dimensions (Uk) Ltd,Care Establishment,4 - Operations - Providers services,LDP Cambs City - Special Needs,Supported Living
Cambridgeshire County Council,09-Nov-17,24781226-16342364,-2337.29,Dimensions (Uk) Ltd,Care Establishment,4 - Operations - Providers services,LDP South Cambs - Special Needs,Supported Living
Cambridgeshire County Council,09-Nov-17,24791556-16342424,-2337.29,Dimensions (Uk) Ltd,Care Establishment,4 - Operations - Providers services,LDP South Cambs - Special Needs,Supported Living
Cambridgeshire County Council,09-Nov-17,24489194-16342243,-2337.29,Dimensions (Uk) Ltd,Care Establishment,4 - Operations - Providers services,LDP Cambs City - Special Needs,Supported Living
Cambridgeshire County Council,09-Nov-17,24578134-16342272,-2337.29,Dimensions (Uk) Ltd,Care Establishment,4 - Operations - Providers services,LDP South Cambs - Special Needs,Supported Living
Cambridgeshire County Council,09-Nov-17,24489192-16342241,-2337.29,Dimensions (Uk) Ltd,Care Establishment,4 - Operations - Providers services,LDP South Cambs - Special Needs,Supported Living
Cambridgeshire County Council,09-Nov-17,24578135-16342273,-2337.29,Dimensions (Uk) Ltd,Care Establishment,4 - Operations - Providers services,LDP Cambs City - Special Needs,Supported Living
Cambridgeshire County Council,09-Nov-17,24602840-16342278,-2337.29,Dimensions (Uk) Ltd,Care Establishment,4 - Operations - Providers services,LDP South Cambs - Special Needs,Supported Living
Cambridgeshire County Council,24-Nov-17,24860532-16404990,-2126.74,Decoy Farm,Care Establishment,4 - Operations - Providers services,LDP E Cambs Special Needs,Residential Independent Sector
Cambridgeshire County Council,16-Nov-17,24778501-16380155,-2126.74,Decoy Farm,Care Establishment,4 - Operations - Providers services,LDP E Cambs Special Needs,Residential Independent Sector
Cambridgeshire County Council,02-Nov-17,24610551-16288430,-2126.74,Decoy Farm,Care Establishment,4 - Operations - Providers services,LDP E Cambs Special Needs,Residential Independent Sector
Cambridgeshire County Council,30-Nov-17,24878351-16439007,-2126.74,Decoy Farm,Care Establishment,4 - Operations - Providers services,LDP E Cambs Special Needs,Residential Independent Sector
Cambridgeshire County Council,16-Nov-17,24828568-16380067,-2126.74,Decoy Farm,Care Establishment,4 - Operations - Providers services,LDP E Cambs Special Needs,Residential Independent Sector
Cambridgeshire County Council,17-Nov-17,24834742-16386820,-2035,Capstone Foster Care (South East) Ltd,Care Establishment,S&C,Placements - Social Care,Agency Placements - Out County
Cambridgeshire County Council,09-Nov-17,24496884-16316718,-2022.33,Unit 2b (Dimensions),Care Establishment,2 - Operations - Learning Disability,LDP Hunts special needs,Day and Domicillary Care Independent Sector
Cambridgeshire County Council,09-Nov-17,24773624-16328030,-1993.84,Alderton House,Care Establishment,4 - Operations - Providers services,LDP E Cambs Special Needs,Residential Independent Sector
Cambridgeshire County Council,09-Nov-17,24774504-16328042,-1993.84,Alderton House,Care Establishment,4 - Operations - Providers services,LDP E Cambs Special Needs,Residential Independent Sector
Cambridgeshire County Council,09-Nov-17,24774510-16328048,-1993.84,Alderton House,Care Establishment,4 - Operations - Providers services,LDP E Cambs Special Needs,Residential Independent Sector
Cambridgeshire County Council,09-Nov-17,24773616-16328031,-1993.84,Alderton House,Care Establishment,4 - Operations - Providers services,LDP E Cambs Special Needs,Residential Independent Sector
Cambridgeshire County Council,09-Nov-17,24773621-16328028,-1993.84,Alderton House,Care Establishment,4 - Operations - Providers services,LDP E Cambs Special Needs,Residential Independent Sector
Cambridgeshire County Council,09-Nov-17,24774496-16328034,-1993.84,Alderton House,Care Establishment,4 - Operations - Providers services,LDP E Cambs Special Needs,Residential Independent Sector
Cambridgeshire County Council,09-Nov-17,24774501-16328039,-1993.84,Alderton House,Care Establishment,4 - Operations - Providers services,LDP E Cambs Special Needs,Residential Independent Sector
Cambridgeshire County Council,09-Nov-17,24774505-16328043,-1993.84,Alderton House,Care Establishment,4 - Operations - Providers services,LDP E Cambs Special Needs,Residential Independent Sector
Cambridgeshire County Council,09-Nov-17,24774514-16328052,-1993.84,Alderton House,Care Establishment,4 - Operations - Providers services,LDP E Cambs Special Needs,Residential Independent Sector
Cambridgeshire County Council,09-Nov-17,24774503-16328041,-1993.84,Alderton House,Care Establishment,4 - Operations - Providers services,LDP E Cambs Special Needs,Residential Independent Sector
Cambridgeshire County Council,24-Nov-17,24857158-16407107,-1768.31,Caretech Community Services,Care Establishment,2 - Operations - Learning Disability,LDP South Cambs Locality - Care,Residential Independent Sector
Cambridgeshire County Council,24-Nov-17,24850019-16407022,-1768.31,Caretech Community Services,Care Establishment,2 - Operations - Learning Disability,LDP South Cambs Locality - Care,Residential Independent Sector
Cambridgeshire County Council,24-Nov-17,24850031-16407034,-1768.31,Caretech Community Services,Care Establishment,2 - Operations - Learning Disability,LDP South Cambs Locality - Care,Residential Independent Sector
Cambridgeshire County Council,24-Nov-17,24857151-16407100,-1768.31,Caretech Community Services,Care Establishment,2 - Operations - Learning Disability,LDP South Cambs Locality - Care,Residential Independent Sector
Cambridgeshire County Council,24-Nov-17,24857152-16407101,-1768.31,Caretech Community Services,Care Establishment,2 - Operations - Learning Disability,LDP South Cambs Locality - Care,Residential Independent Sector
Cambridgeshire County Council,24-Nov-17,24850023-16407026,-1768.31,Caretech Community Services,Care Establishment,2 - Operations - Learning Disability,LDP South Cambs Locality - Care,Residential Independent Sector
Cambridgeshire County Council,09-Nov-17,24779556-16325324,-1730.18,Conquest Care Homes Peterborough,Care Establishment,4 - Operations - Providers services,LDP Fens - Special Needs,Residential Independent Sector
Cambridgeshire County Council,09-Nov-17,24779587-16325329,-1730.18,Conquest Care Homes Peterborough,Care Establishment,4 - Operations - Providers services,LDP Fens - Special Needs,Residential Independent Sector
Cambridgeshire County Council,09-Nov-17,24785733-16325409,-1730.18,Conquest Care Homes Peterborough,Care Establishment,4 - Operations - Providers services,LDP Fens - Special Needs,Residential Independent Sector
Cambridgeshire County Council,09-Nov-17,24779601-16325330,-1730.18,Conquest Care Homes Peterborough,Care Establishment,4 - Operations - Providers services,LDP Fens - Special Needs,Residential Independent Sector
Cambridgeshire County Council,09-Nov-17,24785741-16325411,-1730.18,Conquest Care Homes Peterborough,Care Establishment,4 - Operations - Providers services,LDP Fens - Special Needs,Residential Independent Sector
Cambridgeshire County Council,09-Nov-17,24779559-16325325,-1730.18,Conquest Care Homes Peterborough,Care Establishment,4 - Operations - Providers services,LDP Fens - Special Needs,Residential Independent Sector
Cambridgeshire County Council,09-Nov-17,24785746-16325413,-1730.18,Conquest Care Homes Peterborough,Care Establishment,4 - Operations - Providers services,LDP Fens - Special Needs,Residential Independent Sector
Cambridgeshire County Council,09-Nov-17,24785750-16325415,-1730.18,Conquest Care Homes Peterborough,Care Establishment,4 - Operations - Providers services,LDP Fens - Special Needs,Residential Independent Sector
Cambridgeshire County Council,09-Nov-17,24785760-16325418,-1730.18,Conquest Care Homes Peterborough,Care Establishment,4 - Operations - Providers services,LDP Fens - Special Needs,Residential Independent Sector
Cambridgeshire County Council,09-Nov-17,24779583-16325328,-1730.18,Conquest Care Homes Peterborough,Care Establishment,4 - Operations - Providers services,LDP Fens - Special Needs,Residential Independent Sector
Cambridgeshire County Council,09-Nov-17,24779606-16325332,-1730.18,Conquest Care Homes Peterborough,Care Establishment,4 - Operations - Providers services,LDP Fens - Special Needs,Residential Independent Sector
Cambridgeshire County Council,02-Nov-17,24491745-16288904,-1711.36,Affinity Trust,Care Establishment,2 - Operations - Learning Disability,LDP Fenland Locality - Care,Supported Living
Cambridgeshire County Council,02-Nov-17,24491746-16288905,-1711.36,Affinity Trust,Care Establishment,2 - Operations - Learning Disability,LDP Fenland Locality - Care,Supported Living
Cambridgeshire County Council,02-Nov-17,24577961-16288937,-1711.36,Affinity Trust,Care Establishment,4 - Operations - Providers services,LDP Fens - Special Needs,Supported Living
Cambridgeshire County Council,02-Nov-17,24577967-16288943,-1711.36,Affinity Trust,Care Establishment,2 - Operations - Learning Disability,LDP Fenland Locality - Care,Supported Living
Cambridgeshire County Council,02-Nov-17,24577951-16288961,-1711.36,Affinity Trust,Care Establishment,4 - Operations - Providers services,LDP Fens - Special Needs,Supported Living
Cambridgeshire County Council,02-Nov-17,24577953-16288963,-1711.36,Affinity Trust,Care Establishment,2 - Operations - Learning Disability,LDP Fenland Locality - Care,Supported Living
Cambridgeshire County Council,02-Nov-17,24608967-16289013,-1711.36,Affinity Trust,Care Establishment,2 - Operations - Learning Disability,LDP Fenland Locality - Care,Supported Living
Cambridgeshire County Council,09-Nov-17,24777035-16326449,-1711.36,Affinity Trust,Care Establishment,4 - Operations - Providers services,LDP Fens - Special Needs,Supported Living
Cambridgeshire County Council,09-Nov-17,24777045-16326459,-1711.36,Affinity Trust,Care Establishment,2 - Operations - Learning Disability,LDP Fenland Locality - Care,Supported Living
Cambridgeshire County Council,02-Nov-17,24491752-16288911,-1711.36,Affinity Trust,Care Establishment,4 - Operations - Providers services,LDP Fens - Special Needs,Supported Living
Cambridgeshire County Council,02-Nov-17,24608983-16289026,-1711.36,Affinity Trust,Care Establishment,2 - Operations - Learning Disability,LDP Fenland Locality - Care,Supported Living
Cambridgeshire County Council,02-Nov-17,24608947-16289028,-1711.36,Affinity Trust,Care Establishment,4 - Operations - Providers services,LDP Fens - Special Needs,Supported Living
Cambridgeshire County Council,09-Nov-17,24777020-16326434,-1711.36,Affinity Trust,Care Establishment,2 - Operations - Learning Disability,LDP Fenland Locality - Care,Supported Living
Cambridgeshire County Council,09-Nov-17,24777030-16326444,-1711.36,Affinity Trust,Care Establishment,2 - Operations - Learning Disability,LDP Fenland Locality - Care,Supported Living
Cambridgeshire County Council,02-Nov-17,24608973-16289017,-1711.36,Affinity Trust,Care Establishment,2 - Operations - Learning Disability,LDP Fenland Locality - Care,Supported Living
Cambridgeshire County Council,09-Nov-17,24777022-16326436,-1711.36,Affinity Trust,Care Establishment,2 - Operations - Learning Disability,LDP Fenland Locality - Care,Supported Living
Cambridgeshire County Council,09-Nov-17,24777042-16326456,-1711.36,Affinity Trust,Care Establishment,4 - Operations - Providers services,LDP Fens - Special Needs,Supported Living
Cambridgeshire County Council,02-Nov-17,24577963-16288939,-1711.36,Affinity Trust,Care Establishment,4 - Operations - Providers services,LDP Fens - Special Needs,Supported Living
Cambridgeshire County Council,02-Nov-17,24577964-16288940,-1711.36,Affinity Trust,Care Establishment,2 - Operations - Learning Disability,LDP Fenland Locality - Care,Supported Living
Cambridgeshire County Council,02-Nov-17,24577968-16288944,-1711.36,Affinity Trust,Care Establishment,4 - Operations - Providers services,LDP Fens - Special Needs,Supported Living
Cambridgeshire County Council,02-Nov-17,24577969-16288945,-1711.36,Affinity Trust,Care Establishment,2 - Operations - Learning Disability,LDP Fenland Locality - Care,Supported Living
Cambridgeshire County Council,02-Nov-17,24577942-16288952,-1711.36,Affinity Trust,Care Establishment,4 - Operations - Providers services,LDP Fens - Special Needs,Supported Living
Cambridgeshire County Council,02-Nov-17,24608981-16289024,-1711.36,Affinity Trust,Care Establishment,4 - Operations - Providers services,LDP Fens - Special Needs,Supported Living
Cambridgeshire County Council,02-Nov-17,24608956-16289036,-1711.36,Affinity Trust,Care Establishment,4 - Operations - Providers services,LDP Fens - Special Needs,Supported Living
Cambridgeshire County Council,09-Nov-17,24777040-16326454,-1711.36,Affinity Trust,Care Establishment,2 - Operations - Learning Disability,LDP Fenland Locality - Care,Supported Living
Cambridgeshire County Council,09-Nov-17,24777015-16326413,-1711.36,Affinity Trust,Care Establishment,4 - Operations - Providers services,LDP Fens - Special Needs,Supported Living
Cambridgeshire County Council,02-Nov-17,24491731-16288924,-1711.36,Affinity Trust,Care Establishment,2 - Operations - Learning Disability,LDP Fenland Locality - Care,Supported Living
Cambridgeshire County Council,02-Nov-17,24491735-16288928,-1711.36,Affinity Trust,Care Establishment,4 - Operations - Providers services,LDP Fens - Special Needs,Supported Living
Cambridgeshire County Council,02-Nov-17,24577974-16288950,-1711.36,Affinity Trust,Care Establishment,4 - Operations - Providers services,LDP Fens - Special Needs,Supported Living
Cambridgeshire County Council,02-Nov-17,24577975-16288951,-1711.36,Affinity Trust,Care Establishment,2 - Operations - Learning Disability,LDP Fenland Locality - Care,Supported Living
Cambridgeshire County Council,02-Nov-17,24608976-16289020,-1711.36,Affinity Trust,Care Establishment,4 - Operations - Providers services,LDP Fens - Special Needs,Supported Living
Cambridgeshire County Council,02-Nov-17,24608978-16289022,-1711.36,Affinity Trust,Care Establishment,4 - Operations - Providers services,LDP Fens - Special Needs,Supported Living
Cambridgeshire County Council,09-Nov-17,24777016-16326430,-1711.36,Affinity Trust,Care Establishment,4 - Operations - Providers services,LDP Fens - Special Needs,Supported Living
Cambridgeshire County Council,09-Nov-17,24777017-16326431,-1711.36,Affinity Trust,Care Establishment,4 - Operations - Providers services,LDP Fens - Special Needs,Supported Living
Cambridgeshire County Council,09-Nov-17,24777012-16326410,-1711.36,Affinity Trust,Care Establishment,2 - Operations - Learning Disability,LDP Fenland Locality - Care,Supported Living
Cambridgeshire County Council,09-Nov-17,24777013-16326411,-1711.36,Affinity Trust,Care Establishment,2 - Operations - Learning Disability,LDP Fenland Locality - Care,Supported Living
Cambridgeshire County Council,02-Nov-17,24491738-16288897,-1711.36,Affinity Trust,Care Establishment,4 - Operations - Providers services,LDP Fens - Special Needs,Supported Living
Cambridgeshire County Council,02-Nov-17,24491744-16288903,-1711.36,Affinity Trust,Care Establishment,2 - Operations - Learning Disability,LDP Fenland Locality - Care,Supported Living
Cambridgeshire County Council,02-Nov-17,24491736-16288929,-1711.36,Affinity Trust,Care Establishment,2 - Operations - Learning Disability,LDP Fenland Locality - Care,Supported Living
Cambridgeshire County Council,02-Nov-17,24577954-16288930,-1711.36,Affinity Trust,Care Establishment,4 - Operations - Providers services,LDP Fens - Special Needs,Supported Living
Cambridgeshire County Council,02-Nov-17,24577959-16288935,-1711.36,Affinity Trust,Care Establishment,4 - Operations - Providers services,LDP Fens - Special Needs,Supported Living
Cambridgeshire County Council,02-Nov-17,24577960-16288936,-1711.36,Affinity Trust,Care Establishment,2 - Operations - Learning Disability,LDP Fenland Locality - Care,Supported Living
Cambridgeshire County Council,02-Nov-17,24577973-16288949,-1711.36,Affinity Trust,Care Establishment,4 - Operations - Providers services,LDP Fens - Special Needs,Supported Living
Cambridgeshire County Council,09-Nov-17,24777014-16326412,-1711.36,Affinity Trust,Care Establishment,2 - Operations - Learning Disability,LDP Fenland Locality - Care,Supported Living
Cambridgeshire County Council,02-Nov-17,24491740-16288899,-1711.36,Affinity Trust,Care Establishment,4 - Operations - Providers services,LDP Fens - Special Needs,Supported Living
Cambridgeshire County Council,02-Nov-17,24491725-16288918,-1711.36,Affinity Trust,Care Establishment,2 - Operations - Learning Disability,LDP Fenland Locality - Care,Supported Living
Cambridgeshire County Council,02-Nov-17,24491729-16288922,-1711.36,Affinity Trust,Care Establishment,4 - Operations - Providers services,LDP Fens - Special Needs,Supported Living
Cambridgeshire County Council,02-Nov-17,24491732-16288925,-1711.36,Affinity Trust,Care Establishment,4 - Operations - Providers services,LDP Fens - Special Needs,Supported Living
Cambridgeshire County Council,02-Nov-17,24608960-16289006,-1711.36,Affinity Trust,Care Establishment,4 - Operations - Providers services,LDP Fens - Special Needs,Supported Living
Cambridgeshire County Council,02-Nov-17,24608974-16289018,-1711.36,Affinity Trust,Care Establishment,2 - Operations - Learning Disability,LDP Fenland Locality - Care,Supported Living
Cambridgeshire County Council,02-Nov-17,24608982-16289025,-1711.36,Affinity Trust,Care Establishment,4 - Operations - Providers services,LDP Fens - Special Needs,Supported Living
Cambridgeshire County Council,02-Nov-17,24608951-16289032,-1711.36,Affinity Trust,Care Establishment,2 - Operations - Learning Disability,LDP Fenland Locality - Care,Supported Living
Cambridgeshire County Council,09-Nov-17,24777027-16326441,-1711.36,Affinity Trust,Care Establishment,2 - Operations - Learning Disability,LDP Fenland Locality - Care,Supported Living
Cambridgeshire County Council,09-Nov-17,24777039-16326453,-1711.36,Affinity Trust,Care Establishment,2 - Operations - Learning Disability,LDP Fenland Locality - Care,Supported Living
Cambridgeshire County Council,02-Nov-17,24491757-16288916,-1711.36,Affinity Trust,Care Establishment,2 - Operations - Learning Disability,LDP Fenland Locality - Care,Supported Living
Cambridgeshire County Council,02-Nov-17,24491727-16288920,-1711.36,Affinity Trust,Care Establishment,2 - Operations - Learning Disability,LDP Fenland Locality - Care,Supported Living
Cambridgeshire County Council,02-Nov-17,24491728-16288921,-1711.36,Affinity Trust,Care Establishment,4 - Operations - Providers services,LDP Fens - Special Needs,Supported Living
Cambridgeshire County Council,02-Nov-17,24491730-16288923,-1711.36,Affinity Trust,Care Establishment,4 - Operations - Providers services,LDP Fens - Special Needs,Supported Living
Cambridgeshire County Council,02-Nov-17,24577948-16288958,-1711.36,Affinity Trust,Care Establishment,2 - Operations - Learning Disability,LDP Fenland Locality - Care,Supported Living
Cambridgeshire County Council,02-Nov-17,24608962-16289008,-1711.36,Affinity Trust,Care Establishment,2 - Operations - Learning Disability,LDP Fenland Locality - Care,Supported Living
Cambridgeshire County Council,02-Nov-17,24608946-16289027,-1711.36,Affinity Trust,Care Establishment,4 - Operations - Providers services,LDP Fens - Special Needs,Supported Living
Cambridgeshire County Council,02-Nov-17,24608952-16289033,-1711.36,Affinity Trust,Care Establishment,2 - Operations - Learning Disability,LDP Fenland Locality - Care,Supported Living
Cambridgeshire County Council,02-Nov-17,24608957-16289037,-1711.36,Affinity Trust,Care Establishment,4 - Operations - Providers services,LDP Fens - Special Needs,Supported Living
Cambridgeshire County Council,09-Nov-17,24777036-16326450,-1711.36,Affinity Trust,Care Establishment,4 - Operations - Providers services,LDP Fens - Special Needs,Supported Living
Cambridgeshire County Council,16-Nov-17,24830025-16377905,-1683.4,Hereward Care Services Limited,Care Establishment,4 - Operations - Providers services,LDP Fens - Special Needs,Residential Independent Sector
Cambridgeshire County Council,16-Nov-17,24830034-16377912,-1683.4,Hereward Care Services Limited,Care Establishment,4 - Operations - Providers services,LDP Fens - Special Needs,Residential Independent Sector
Cambridgeshire County Council,16-Nov-17,24830035-16377913,-1683.4,Hereward Care Services Limited,Care Establishment,4 - Operations - Providers services,LDP Fens - Special Needs,Residential Independent Sector
Cambridgeshire County Council,16-Nov-17,24830030-16377909,-1683.4,Hereward Care Services Limited,Care Establishment,4 - Operations - Providers services,LDP Fens - Special Needs,Residential Independent Sector
Cambridgeshire County Council,24-Nov-17,24858583-16407210,-1657.9,Thera East Anglia,Care Establishment,4 - Operations - Providers services,LDP E Cambs Locality - Care,Supported Living
Cambridgeshire County Council,24-Nov-17,24858586-16407212,-1657.9,Thera East Anglia,Care Establishment,4 - Operations - Providers services,LDP E Cambs Locality - Care,Supported Living
Cambridgeshire County Council,24-Nov-17,24607675-16410340,-1596,Redacted Personal Data,Individual,4 - Operations - Providers services,LDP E Cambs Locality - Care,Direct Payments - Social Services
Cambridgeshire County Council,24-Nov-17,24607676-16410341,-1596,Redacted Personal Data,Individual,4 - Operations - Providers services,LDP E Cambs Locality - Care,Direct Payments - Social Services
Cambridgeshire County Council,24-Nov-17,24775584-16410351,-1596,Redacted Personal Data,Individual,4 - Operations - Providers services,LDP E Cambs Special Needs,Direct Payments - Social Services
Cambridgeshire County Council,24-Nov-17,24775572-16410348,-1596,Redacted Personal Data,Individual,4 - Operations - Providers services,LDP E Cambs Special Needs,Direct Payments - Social Services
Cambridgeshire County Council,24-Nov-17,24832695-16410356,-1596,Redacted Personal Data,Individual,4 - Operations - Providers services,LDP E Cambs Special Needs,Direct Payments - Social Services
Cambridgeshire County Council,24-Nov-17,24855300-16410363,-1596,Redacted Personal Data,Individual,4 - Operations - Providers services,LDP E Cambs Special Needs,Direct Payments - Social Services
Cambridgeshire County Council,24-Nov-17,24855304-16410367,-1596,Redacted Personal Data,Individual,4 - Operations - Providers services,LDP E Cambs Locality - Care,Direct Payments - Social Services
Cambridgeshire County Council,24-Nov-17,24832692-16410353,-1596,Redacted Personal Data,Individual,4 - Operations - Providers services,LDP E Cambs Special Needs,Direct Payments - Social Services
Cambridgeshire County Council,24-Nov-17,24832700-16410358,-1596,Redacted Personal Data,Individual,4 - Operations - Providers services,LDP E Cambs Special Needs,Direct Payments - Social Services
Cambridgeshire County Council,24-Nov-17,24855298-16410361,-1596,Redacted Personal Data,Individual,4 - Operations - Providers services,LDP E Cambs Special Needs,Direct Payments - Social Services
Cambridgeshire County Council,24-Nov-17,24775546-16410344,-1596,Redacted Personal Data,Individual,4 - Operations - Providers services,LDP E Cambs Special Needs,Direct Payments - Social Services
Cambridgeshire County Council,24-Nov-17,24607678-16410343,-1596,Redacted Personal Data,Individual,4 - Operations - Providers services,LDP E Cambs Special Needs,Direct Payments - Social Services
Cambridgeshire County Council,24-Nov-17,24855554-16408914,-1588.96,Voyage,Care Establishment,2 - Operations - Learning Disability,LDP South Cambs Locality - Care,Supported Living
Cambridgeshire County Council,24-Nov-17,24859584-16408965,-1588.96,Voyage,Care Establishment,2 - Operations - Learning Disability,LDP South Cambs Locality - Care,Supported Living
Cambridgeshire County Council,24-Nov-17,24859586-16408967,-1588.96,Voyage,Care Establishment,2 - Operations - Learning Disability,LDP South Cambs Locality - Care,Supported Living
Cambridgeshire County Council,16-Nov-17,24799912-16376853,-1578.72,Papworth Trust#1,Trust (Other),2 - Operations - Learning Disability,LDP South Cambs Locality - Care,SDS - Care and support Services
Cambridgeshire County Council,16-Nov-17,24832335-16377244,-1557.03,Caretech Community Services,Care Establishment,2 - Operations - Learning Disability,LDP South Cambs Locality - Care,Residential Independent Sector
Cambridgeshire County Council,16-Nov-17,24832349-16377258,-1557.03,Caretech Community Services,Care Establishment,2 - Operations - Learning Disability,LDP South Cambs Locality - Care,Residential Independent Sector
Cambridgeshire County Council,16-Nov-17,24832353-16377262,-1557.03,Caretech Community Services,Care Establishment,2 - Operations - Learning Disability,LDP South Cambs Locality - Care,Residential Independent Sector
Cambridgeshire County Council,16-Nov-17,24832355-16377264,-1557.03,Caretech Community Services,Care Establishment,2 - Operations - Learning Disability,LDP South Cambs Locality - Care,Residential Independent Sector
Cambridgeshire County Council,16-Nov-17,24832359-16377268,-1557.03,Caretech Community Services,Care Establishment,2 - Operations - Learning Disability,LDP South Cambs Locality - Care,Residential Independent Sector
Cambridgeshire County Council,09-Nov-17,24785725-16325406,-1483.01,Conquest Care Homes Peterborough,Care Establishment,4 - Operations - Providers services,LDP Fens - Special Needs,Residential Independent Sector
Cambridgeshire County Council,09-Nov-17,24496883-16316717,-1423.12,Unit 2b (Dimensions),Care Establishment,2 - Operations - Learning Disability,LDP Hunts special needs,Day and Domicillary Care Independent Sector
Cambridgeshire County Council,09-Nov-17,24782861-16318679,-1400,Barchester Healthcare Homes Ltd,Care Establishment,2 - Operations - Learning Disability,Countywide PD Service - Care,Residential Independent Sector
Cambridgeshire County Council,09-Nov-17,24782862-16318680,-1400,Barchester Healthcare Homes Ltd,Care Establishment,2 - Operations - Learning Disability,Countywide PD Service - Care,Residential Independent Sector
Cambridgeshire County Council,09-Nov-17,24776990-16318658,-1400,Barchester Healthcare Homes Ltd,Care Establishment,2 - Operations - Learning Disability,Countywide PD Service - Care,Residential Independent Sector
Cambridgeshire County Council,02-Nov-17,24490985-16291441,-1369.32,Voyage,Care Establishment,2 - Operations - Learning Disability,LDP South Cambs Locality - Care,Supported Living
Cambridgeshire County Council,02-Nov-17,24491005-16291446,-1369.32,Voyage,Care Establishment,2 - Operations - Learning Disability,LDP South Cambs Locality - Care,Supported Living
Cambridgeshire County Council,02-Nov-17,24491016-16291447,-1369.32,Voyage,Care Establishment,2 - Operations - Learning Disability,LDP South Cambs Locality - Care,Supported Living
Cambridgeshire County Council,02-Nov-17,24490994-16291444,-1369.32,Voyage,Care Establishment,2 - Operations - Learning Disability,LDP South Cambs Locality - Care,Supported Living
Cambridgeshire County Council,02-Nov-17,24490998-16291445,-1369.32,Voyage,Care Establishment,2 - Operations - Learning Disability,LDP South Cambs Locality - Care,Supported Living
Cambridgeshire County Council,02-Nov-17,24491034-16291448,-1369.32,Voyage,Care Establishment,2 - Operations - Learning Disability,LDP South Cambs Locality - Care,Supported Living
Cambridgeshire County Council,02-Nov-17,24490988-16291442,-1369.32,Voyage,Care Establishment,2 - Operations - Learning Disability,LDP South Cambs Locality - Care,Supported Living
Cambridgeshire County Council,24-Nov-17,24862202-16408993,-1337.93,Voyage,Care Establishment,2 - Operations - Learning Disability,LDP South Cambs Locality - Care,Residential Independent Sector
Cambridgeshire County Council,24-Nov-17,24862210-16409000,-1337.93,Voyage,Care Establishment,2 - Operations - Learning Disability,LDP South Cambs Locality - Care,Residential Independent Sector
Cambridgeshire County Council,24-Nov-17,24862206-16408996,-1337.93,Voyage,Care Establishment,2 - Operations - Learning Disability,LDP South Cambs Locality - Care,Residential Independent Sector
Cambridgeshire County Council,24-Nov-17,24862201-16408992,-1337.93,Voyage,Care Establishment,2 - Operations - Learning Disability,LDP South Cambs Locality - Care,Residential Independent Sector
Cambridgeshire County Council,24-Nov-17,24864280-16409031,-1337.93,Voyage,Care Establishment,2 - Operations - Learning Disability,LDP South Cambs Locality - Care,Residential Independent Sector
Cambridgeshire County Council,24-Nov-17,24862186-16408981,-1337.93,Voyage,Care Establishment,2 - Operations - Learning Disability,LDP South Cambs Locality - Care,Residential Independent Sector
Cambridgeshire County Council,24-Nov-17,24864276-16409027,-1337.93,Voyage,Care Establishment,2 - Operations - Learning Disability,LDP South Cambs Locality - Care,Residential Independent Sector
Cambridgeshire County Council,30-Nov-17,24218166-16442366,-1336.99,Capita Business Services Ltd,Other Public Bodies,LRNG,ICT Service Helpline,Materials for resale
Cambridgeshire County Council,09-Nov-17,24787140-16323597,-1328.7,Social Care Solutions Ltd,Care Establishment,4 - Operations - Providers services,LDP Fens - Special Needs,Supported Living
Cambridgeshire County Council,09-Nov-17,24787158-16323615,-1328.7,Social Care Solutions Ltd,Care Establishment,4 - Operations - Providers services,LDP Fens - Special Needs,Supported Living
Cambridgeshire County Council,09-Nov-17,24787154-16323611,-1328.7,Social Care Solutions Ltd,Care Establishment,4 - Operations - Providers services,LDP Fens - Special Needs,Supported Living
Cambridgeshire County Council,09-Nov-17,24787141-16323598,-1328.7,Social Care Solutions Ltd,Care Establishment,4 - Operations - Providers services,LDP Fens - Special Needs,Supported Living
Cambridgeshire County Council,09-Nov-17,24787138-16323595,-1328.7,Social Care Solutions Ltd,Care Establishment,4 - Operations - Providers services,LDP Fens - Special Needs,Supported Living
Cambridgeshire County Council,16-Nov-17,24603120-16375959,-1328.44,Care Management Group (64-66 Carlton),Care Establishment,4 - Operations - Providers services,LDP E Cambs Special Needs,Residential Independent Sector
Cambridgeshire County Council,16-Nov-17,24603129-16375968,-1328.44,Care Management Group (64-66 Carlton),Care Establishment,4 - Operations - Providers services,LDP E Cambs Special Needs,Residential Independent Sector
Cambridgeshire County Council,16-Nov-17,24603142-16375981,-1328.44,Care Management Group (64-66 Carlton),Care Establishment,4 - Operations - Providers services,LDP E Cambs Special Needs,Residential Independent Sector
Cambridgeshire County Council,16-Nov-17,24603145-16375984,-1328.44,Care Management Group (64-66 Carlton),Care Establishment,4 - Operations - Providers services,LDP E Cambs Special Needs,Residential Independent Sector
Cambridgeshire County Council,16-Nov-17,24608274-16375990,-1328.44,Care Management Group (64-66 Carlton),Care Establishment,4 - Operations - Providers services,LDP E Cambs Special Needs,Residential Independent Sector
Cambridgeshire County Council,16-Nov-17,24608287-16376003,-1328.44,Care Management Group (64-66 Carlton),Care Establishment,4 - Operations - Providers services,LDP E Cambs Special Needs,Residential Independent Sector
Cambridgeshire County Council,16-Nov-17,24608293-16376009,-1328.44,Care Management Group (64-66 Carlton),Care Establishment,4 - Operations - Providers services,LDP E Cambs Special Needs,Residential Independent Sector
Cambridgeshire County Council,16-Nov-17,24608302-16376018,-1328.44,Care Management Group (64-66 Carlton),Care Establishment,4 - Operations - Providers services,LDP E Cambs Special Needs,Residential Independent Sector
Cambridgeshire County Council,16-Nov-17,24608307-16376023,-1328.44,Care Management Group (64-66 Carlton),Care Establishment,4 - Operations - Providers services,LDP E Cambs Special Needs,Residential Independent Sector
Cambridgeshire County Council,16-Nov-17,24777818-16376069,-1328.44,Care Management Group (64-66 Carlton),Care Establishment,4 - Operations - Providers services,LDP E Cambs Special Needs,Residential Independent Sector
Cambridgeshire County Council,16-Nov-17,24777826-16376077,-1328.44,Care Management Group (64-66 Carlton),Care Establishment,4 - Operations - Providers services,LDP E Cambs Special Needs,Residential Independent Sector
Cambridgeshire County Council,16-Nov-17,24575199-16375786,-1328.44,Care Management Group (64-66 Carlton),Care Establishment,4 - Operations - Providers services,LDP E Cambs Special Needs,Residential Independent Sector
Cambridgeshire County Council,16-Nov-17,24575210-16375797,-1328.44,Care Management Group (64-66 Carlton),Care Establishment,4 - Operations - Providers services,LDP E Cambs Special Needs,Residential Independent Sector
Cambridgeshire County Council,16-Nov-17,24603149-16375808,-1328.44,Care Management Group (64-66 Carlton),Care Establishment,4 - Operations - Providers services,LDP E Cambs Special Needs,Residential Independent Sector
Cambridgeshire County Council,16-Nov-17,24577567-16375843,-1328.44,Care Management Group (64-66 Carlton),Care Establishment,4 - Operations - Providers services,LDP E Cambs Special Needs,Residential Independent Sector
Cambridgeshire County Council,16-Nov-17,24577569-16375845,-1328.44,Care Management Group (64-66 Carlton),Care Establishment,4 - Operations - Providers services,LDP E Cambs Special Needs,Residential Independent Sector
Cambridgeshire County Council,16-Nov-17,24579506-16375861,-1328.44,Care Management Group (64-66 Carlton),Care Establishment,4 - Operations - Providers services,LDP E Cambs Special Needs,Residential Independent Sector
Cambridgeshire County Council,16-Nov-17,24579525-16375880,-1328.44,Care Management Group (64-66 Carlton),Care Establishment,4 - Operations - Providers services,LDP E Cambs Special Needs,Residential Independent Sector
Cambridgeshire County Council,16-Nov-17,24579535-16375890,-1328.44,Care Management Group (64-66 Carlton),Care Establishment,4 - Operations - Providers services,LDP E Cambs Special Needs,Residential Independent Sector
Cambridgeshire County Council,16-Nov-17,24579538-16375893,-1328.44,Care Management Group (64-66 Carlton),Care Establishment,4 - Operations - Providers services,LDP E Cambs Special Needs,Residential Independent Sector
Cambridgeshire County Council,16-Nov-17,24579546-16375901,-1328.44,Care Management Group (64-66 Carlton),Care Establishment,4 - Operations - Providers services,LDP E Cambs Special Needs,Residential Independent Sector
Cambridgeshire County Council,16-Nov-17,24579550-16375905,-1328.44,Care Management Group (64-66 Carlton),Care Establishment,4 - Operations - Providers services,LDP E Cambs Special Needs,Residential Independent Sector
Cambridgeshire County Council,16-Nov-17,24771135-16376532,-1328.44,Care Management Group (64-66 Carlton),Care Establishment,4 - Operations - Providers services,LDP E Cambs Special Needs,Residential Independent Sector
Cambridgeshire County Council,16-Nov-17,24610106-16376561,-1328.44,Care Management Group (64-66 Carlton),Care Establishment,4 - Operations - Providers services,LDP E Cambs Special Needs,Residential Independent Sector
Cambridgeshire County Council,16-Nov-17,24610122-16376577,-1328.44,Care Management Group (64-66 Carlton),Care Establishment,4 - Operations - Providers services,LDP E Cambs Special Needs,Residential Independent Sector
Cambridgeshire County Council,16-Nov-17,24784124-16376588,-1328.44,Care Management Group (64-66 Carlton),Care Establishment,4 - Operations - Providers services,LDP E Cambs Special Needs,Residential Independent Sector
Cambridgeshire County Council,16-Nov-17,24784145-16376609,-1328.44,Care Management Group (64-66 Carlton),Care Establishment,4 - Operations - Providers services,LDP E Cambs Special Needs,Residential Independent Sector
Cambridgeshire County Council,16-Nov-17,24784163-16376627,-1328.44,Care Management Group (64-66 Carlton),Care Establishment,4 - Operations - Providers services,LDP E Cambs Special Needs,Residential Independent Sector
Cambridgeshire County Council,16-Nov-17,24784169-16376633,-1328.44,Care Management Group (64-66 Carlton),Care Establishment,4 - Operations - Providers services,LDP E Cambs Special Needs,Residential Independent Sector
Cambridgeshire County Council,16-Nov-17,24784183-16376647,-1328.44,Care Management Group (64-66 Carlton),Care Establishment,4 - Operations - Providers services,LDP E Cambs Special Needs,Residential Independent Sector
Cambridgeshire County Council,16-Nov-17,24828034-16376738,-1328.44,Care Management Group (64-66 Carlton),Care Establishment,4 - Operations - Providers services,LDP E Cambs Special Needs,Residential Independent Sector
Cambridgeshire County Council,16-Nov-17,24828035-16376739,-1328.44,Care Management Group (64-66 Carlton),Care Establishment,4 - Operations - Providers services,LDP E Cambs Special Needs,Residential Independent Sector
Cambridgeshire County Council,16-Nov-17,24828047-16376751,-1328.44,Care Management Group (64-66 Carlton),Care Establishment,4 - Operations - Providers services,LDP E Cambs Special Needs,Residential Independent Sector
Cambridgeshire County Council,16-Nov-17,24828058-16376762,-1328.44,Care Management Group (64-66 Carlton),Care Establishment,4 - Operations - Providers services,LDP E Cambs Special Needs,Residential Independent Sector
Cambridgeshire County Council,16-Nov-17,24828066-16376770,-1328.44,Care Management Group (64-66 Carlton),Care Establishment,4 - Operations - Providers services,LDP E Cambs Special Needs,Residential Independent Sector
Cambridgeshire County Council,16-Nov-17,24828068-16376772,-1328.44,Care Management Group (64-66 Carlton),Care Establishment,4 - Operations - Providers services,LDP E Cambs Special Needs,Residential Independent Sector
Cambridgeshire County Council,16-Nov-17,24828098-16376802,-1328.44,Care Management Group (64-66 Carlton),Care Establishment,4 - Operations - Providers services,LDP E Cambs Special Needs,Residential Independent Sector
Cambridgeshire County Council,16-Nov-17,24828111-16376815,-1328.44,Care Management Group (64-66 Carlton),Care Establishment,4 - Operations - Providers services,LDP E Cambs Special Needs,Residential Independent Sector
Cambridgeshire County Council,16-Nov-17,24828112-16376816,-1328.44,Care Management Group (64-66 Carlton),Care Establishment,4 - Operations - Providers services,LDP E Cambs Special Needs,Residential Independent Sector
Cambridgeshire County Council,16-Nov-17,24777838-16376089,-1328.44,Care Management Group (64-66 Carlton),Care Establishment,4 - Operations - Providers services,LDP E Cambs Special Needs,Residential Independent Sector
Cambridgeshire County Council,16-Nov-17,24777850-16376101,-1328.44,Care Management Group (64-66 Carlton),Care Establishment,4 - Operations - Providers services,LDP E Cambs Special Needs,Residential Independent Sector
Cambridgeshire County Council,16-Nov-17,24606971-16376402,-1328.44,Care Management Group (64-66 Carlton),Care Establishment,4 - Operations - Providers services,LDP E Cambs Special Needs,Residential Independent Sector
Cambridgeshire County Council,16-Nov-17,24604186-16376445,-1328.44,Care Management Group (64-66 Carlton),Care Establishment,4 - Operations - Providers services,LDP E Cambs Special Needs,Residential Independent Sector
Cambridgeshire County Council,16-Nov-17,24604193-16376452,-1328.44,Care Management Group (64-66 Carlton),Care Establishment,4 - Operations - Providers services,LDP E Cambs Special Needs,Residential Independent Sector
Cambridgeshire County Council,16-Nov-17,24604195-16376454,-1328.44,Care Management Group (64-66 Carlton),Care Establishment,4 - Operations - Providers services,LDP E Cambs Special Needs,Residential Independent Sector
Cambridgeshire County Council,16-Nov-17,24604204-16376463,-1328.44,Care Management Group (64-66 Carlton),Care Establishment,4 - Operations - Providers services,LDP E Cambs Special Needs,Residential Independent Sector
Cambridgeshire County Council,16-Nov-17,24771104-16376501,-1328.44,Care Management Group (64-66 Carlton),Care Establishment,4 - Operations - Providers services,LDP E Cambs Special Needs,Residential Independent Sector
Cambridgeshire County Council,16-Nov-17,24825100-16376163,-1328.44,Care Management Group (64-66 Carlton),Care Establishment,4 - Operations - Providers services,LDP E Cambs Special Needs,Residential Independent Sector
Cambridgeshire County Council,16-Nov-17,24831324-16376261,-1328.44,Care Management Group (64-66 Carlton),Care Establishment,4 - Operations - Providers services,LDP E Cambs Special Needs,Residential Independent Sector
Cambridgeshire County Council,16-Nov-17,24577531-16376289,-1328.44,Care Management Group (64-66 Carlton),Care Establishment,4 - Operations - Providers services,LDP E Cambs Special Needs,Residential Independent Sector
Cambridgeshire County Council,16-Nov-17,24577497-16376308,-1328.44,Care Management Group (64-66 Carlton),Care Establishment,4 - Operations - Providers services,LDP E Cambs Special Needs,Residential Independent Sector
Cambridgeshire County Council,16-Nov-17,24577498-16376309,-1328.44,Care Management Group (64-66 Carlton),Care Establishment,4 - Operations - Providers services,LDP E Cambs Special Needs,Residential Independent Sector
Cambridgeshire County Council,16-Nov-17,24577500-16376311,-1328.44,Care Management Group (64-66 Carlton),Care Establishment,4 - Operations - Providers services,LDP E Cambs Special Needs,Residential Independent Sector
Cambridgeshire County Council,16-Nov-17,24577502-16376313,-1328.44,Care Management Group (64-66 Carlton),Care Establishment,4 - Operations - Providers services,LDP E Cambs Special Needs,Residential Independent Sector
Cambridgeshire County Council,16-Nov-17,24577504-16376315,-1328.44,Care Management Group (64-66 Carlton),Care Establishment,4 - Operations - Providers services,LDP E Cambs Special Needs,Residential Independent Sector
Cambridgeshire County Council,16-Nov-17,24575221-16376345,-1328.44,Care Management Group (64-66 Carlton),Care Establishment,4 - Operations - Providers services,LDP E Cambs Special Needs,Residential Independent Sector
Cambridgeshire County Council,16-Nov-17,24575233-16376357,-1328.44,Care Management Group (64-66 Carlton),Care Establishment,4 - Operations - Providers services,LDP E Cambs Special Needs,Residential Independent Sector
Cambridgeshire County Council,16-Nov-17,24575236-16376360,-1328.44,Care Management Group (64-66 Carlton),Care Establishment,4 - Operations - Providers services,LDP E Cambs Special Needs,Residential Independent Sector
Cambridgeshire County Council,16-Nov-17,24575245-16376369,-1328.44,Care Management Group (64-66 Carlton),Care Establishment,4 - Operations - Providers services,LDP E Cambs Special Needs,Residential Independent Sector
Cambridgeshire County Council,16-Nov-17,24575247-16376371,-1328.44,Care Management Group (64-66 Carlton),Care Establishment,4 - Operations - Providers services,LDP E Cambs Special Needs,Residential Independent Sector
Cambridgeshire County Council,16-Nov-17,24575264-16376388,-1328.44,Care Management Group (64-66 Carlton),Care Establishment,4 - Operations - Providers services,LDP E Cambs Special Needs,Residential Independent Sector
Cambridgeshire County Council,16-Nov-17,24581365-16375953,-1328.44,Care Management Group (64-66 Carlton),Care Establishment,4 - Operations - Providers services,LDP E Cambs Special Needs,Residential Independent Sector
Cambridgeshire County Council,16-Nov-17,24603132-16375971,-1328.44,Care Management Group (64-66 Carlton),Care Establishment,4 - Operations - Providers services,LDP E Cambs Special Needs,Residential Independent Sector
Cambridgeshire County Council,16-Nov-17,24603138-16375977,-1328.44,Care Management Group (64-66 Carlton),Care Establishment,4 - Operations - Providers services,LDP E Cambs Special Needs,Residential Independent Sector
Cambridgeshire County Council,16-Nov-17,24603140-16375979,-1328.44,Care Management Group (64-66 Carlton),Care Establishment,4 - Operations - Providers services,LDP E Cambs Special Needs,Residential Independent Sector
Cambridgeshire County Council,16-Nov-17,24608271-16375987,-1328.44,Care Management Group (64-66 Carlton),Care Establishment,4 - Operations - Providers services,LDP E Cambs Special Needs,Residential Independent Sector
Cambridgeshire County Council,16-Nov-17,24608286-16376002,-1328.44,Care Management Group (64-66 Carlton),Care Establishment,4 - Operations - Providers services,LDP E Cambs Special Needs,Residential Independent Sector
Cambridgeshire County Council,16-Nov-17,24608289-16376005,-1328.44,Care Management Group (64-66 Carlton),Care Establishment,4 - Operations - Providers services,LDP E Cambs Special Needs,Residential Independent Sector
Cambridgeshire County Council,16-Nov-17,24608313-16376029,-1328.44,Care Management Group (64-66 Carlton),Care Establishment,4 - Operations - Providers services,LDP E Cambs Special Needs,Residential Independent Sector
Cambridgeshire County Council,16-Nov-17,24777831-16376082,-1328.44,Care Management Group (64-66 Carlton),Care Establishment,4 - Operations - Providers services,LDP E Cambs Special Needs,Residential Independent Sector
Cambridgeshire County Council,16-Nov-17,24575200-16375787,-1328.44,Care Management Group (64-66 Carlton),Care Establishment,4 - Operations - Providers services,LDP E Cambs Special Needs,Residential Independent Sector
Cambridgeshire County Council,16-Nov-17,24575198-16375804,-1328.44,Care Management Group (64-66 Carlton),Care Establishment,4 - Operations - Providers services,LDP E Cambs Special Needs,Residential Independent Sector
Cambridgeshire County Council,16-Nov-17,24577570-16375846,-1328.44,Care Management Group (64-66 Carlton),Care Establishment,4 - Operations - Providers services,LDP E Cambs Special Needs,Residential Independent Sector
Cambridgeshire County Council,16-Nov-17,24579514-16375869,-1328.44,Care Management Group (64-66 Carlton),Care Establishment,4 - Operations - Providers services,LDP E Cambs Special Needs,Residential Independent Sector
Cambridgeshire County Council,16-Nov-17,24579533-16375888,-1328.44,Care Management Group (64-66 Carlton),Care Establishment,4 - Operations - Providers services,LDP E Cambs Special Needs,Residential Independent Sector
Cambridgeshire County Council,16-Nov-17,24579545-16375900,-1328.44,Care Management Group (64-66 Carlton),Care Establishment,4 - Operations - Providers services,LDP E Cambs Special Needs,Residential Independent Sector
Cambridgeshire County Council,16-Nov-17,24581330-16375918,-1328.44,Care Management Group (64-66 Carlton),Care Establishment,4 - Operations - Providers services,LDP E Cambs Special Needs,Residential Independent Sector
Cambridgeshire County Council,16-Nov-17,24581334-16375922,-1328.44,Care Management Group (64-66 Carlton),Care Establishment,4 - Operations - Providers services,LDP E Cambs Special Needs,Residential Independent Sector
Cambridgeshire County Council,16-Nov-17,24581349-16375937,-1328.44,Care Management Group (64-66 Carlton),Care Establishment,4 - Operations - Providers services,LDP E Cambs Special Needs,Residential Independent Sector
Cambridgeshire County Council,16-Nov-17,24610086-16376541,-1328.44,Care Management Group (64-66 Carlton),Care Establishment,4 - Operations - Providers services,LDP E Cambs Special Needs,Residential Independent Sector
Cambridgeshire County Council,16-Nov-17,24610089-16376544,-1328.44,Care Management Group (64-66 Carlton),Care Establishment,4 - Operations - Providers services,LDP E Cambs Special Needs,Residential Independent Sector
Cambridgeshire County Council,16-Nov-17,24610104-16376559,-1328.44,Care Management Group (64-66 Carlton),Care Establishment,4 - Operations - Providers services,LDP E Cambs Special Needs,Residential Independent Sector
Cambridgeshire County Council,16-Nov-17,24784127-16376591,-1328.44,Care Management Group (64-66 Carlton),Care Establishment,4 - Operations - Providers services,LDP E Cambs Special Needs,Residential Independent Sector
Cambridgeshire County Council,16-Nov-17,24784134-16376598,-1328.44,Care Management Group (64-66 Carlton),Care Establishment,4 - Operations - Providers services,LDP E Cambs Special Needs,Residential Independent Sector
Cambridgeshire County Council,16-Nov-17,24784142-16376606,-1328.44,Care Management Group (64-66 Carlton),Care Establishment,4 - Operations - Providers services,LDP E Cambs Special Needs,Residential Independent Sector
Cambridgeshire County Council,16-Nov-17,24784149-16376613,-1328.44,Care Management Group (64-66 Carlton),Care Establishment,4 - Operations - Providers services,LDP E Cambs Special Needs,Residential Independent Sector
Cambridgeshire County Council,16-Nov-17,24784156-16376620,-1328.44,Care Management Group (64-66 Carlton),Care Establishment,4 - Operations - Providers services,LDP E Cambs Special Needs,Residential Independent Sector
Cambridgeshire County Council,16-Nov-17,24784107-16376651,-1328.44,Care Management Group (64-66 Carlton),Care Establishment,4 - Operations - Providers services,LDP E Cambs Special Needs,Residential Independent Sector
Cambridgeshire County Council,16-Nov-17,24789910-16376691,-1328.44,Care Management Group (64-66 Carlton),Care Establishment,4 - Operations - Providers services,LDP E Cambs Special Needs,Residential Independent Sector
Cambridgeshire County Council,16-Nov-17,24828008-16376712,-1328.44,Care Management Group (64-66 Carlton),Care Establishment,4 - Operations - Providers services,LDP E Cambs Special Needs,Residential Independent Sector
Cambridgeshire County Council,16-Nov-17,24828011-16376715,-1328.44,Care Management Group (64-66 Carlton),Care Establishment,4 - Operations - Providers services,LDP E Cambs Special Needs,Residential Independent Sector
Cambridgeshire County Council,16-Nov-17,24828017-16376721,-1328.44,Care Management Group (64-66 Carlton),Care Establishment,4 - Operations - Providers services,LDP E Cambs Special Needs,Residential Independent Sector
Cambridgeshire County Council,16-Nov-17,24828026-16376730,-1328.44,Care Management Group (64-66 Carlton),Care Establishment,4 - Operations - Providers services,LDP E Cambs Special Needs,Residential Independent Sector
Cambridgeshire County Council,16-Nov-17,24828045-16376749,-1328.44,Care Management Group (64-66 Carlton),Care Establishment,4 - Operations - Providers services,LDP E Cambs Special Needs,Residential Independent Sector
Cambridgeshire County Council,16-Nov-17,24828056-16376760,-1328.44,Care Management Group (64-66 Carlton),Care Establishment,4 - Operations - Providers services,LDP E Cambs Special Needs,Residential Independent Sector
Cambridgeshire County Council,16-Nov-17,24828106-16376810,-1328.44,Care Management Group (64-66 Carlton),Care Establishment,4 - Operations - Providers services,LDP E Cambs Special Needs,Residential Independent Sector
Cambridgeshire County Council,16-Nov-17,24777846-16376097,-1328.44,Care Management Group (64-66 Carlton),Care Establishment,4 - Operations - Providers services,LDP E Cambs Special Needs,Residential Independent Sector
Cambridgeshire County Council,16-Nov-17,24777848-16376099,-1328.44,Care Management Group (64-66 Carlton),Care Establishment,4 - Operations - Providers services,LDP E Cambs Special Needs,Residential Independent Sector
Cambridgeshire County Council,16-Nov-17,24606989-16376420,-1328.44,Care Management Group (64-66 Carlton),Care Establishment,4 - Operations - Providers services,LDP E Cambs Special Needs,Residential Independent Sector
Cambridgeshire County Council,16-Nov-17,24603176-16376435,-1328.44,Care Management Group (64-66 Carlton),Care Establishment,4 - Operations - Providers services,LDP E Cambs Special Needs,Residential Independent Sector
Cambridgeshire County Council,16-Nov-17,24604199-16376458,-1328.44,Care Management Group (64-66 Carlton),Care Establishment,4 - Operations - Providers services,LDP E Cambs Special Needs,Residential Independent Sector
Cambridgeshire County Council,16-Nov-17,24771097-16376494,-1328.44,Care Management Group (64-66 Carlton),Care Establishment,4 - Operations - Providers services,LDP E Cambs Special Needs,Residential Independent Sector
Cambridgeshire County Council,16-Nov-17,24771120-16376517,-1328.44,Care Management Group (64-66 Carlton),Care Establishment,4 - Operations - Providers services,LDP E Cambs Special Needs,Residential Independent Sector
Cambridgeshire County Council,16-Nov-17,24771132-16376529,-1328.44,Care Management Group (64-66 Carlton),Care Establishment,4 - Operations - Providers services,LDP E Cambs Special Needs,Residential Independent Sector
Cambridgeshire County Council,16-Nov-17,24777879-16376130,-1328.44,Care Management Group (64-66 Carlton),Care Establishment,4 - Operations - Providers services,LDP E Cambs Special Needs,Residential Independent Sector
Cambridgeshire County Council,16-Nov-17,24785011-16376142,-1328.44,Care Management Group (64-66 Carlton),Care Establishment,4 - Operations - Providers services,LDP E Cambs Special Needs,Residential Independent Sector
Cambridgeshire County Council,16-Nov-17,24785013-16376144,-1328.44,Care Management Group (64-66 Carlton),Care Establishment,4 - Operations - Providers services,LDP E Cambs Special Needs,Residential Independent Sector
Cambridgeshire County Council,16-Nov-17,24825096-16376159,-1328.44,Care Management Group (64-66 Carlton),Care Establishment,4 - Operations - Providers services,LDP E Cambs Special Needs,Residential Independent Sector
Cambridgeshire County Council,16-Nov-17,24825141-16376204,-1328.44,Care Management Group (64-66 Carlton),Care Establishment,4 - Operations - Providers services,LDP E Cambs Special Needs,Residential Independent Sector
Cambridgeshire County Council,16-Nov-17,24825146-16376209,-1328.44,Care Management Group (64-66 Carlton),Care Establishment,4 - Operations - Providers services,LDP E Cambs Special Needs,Residential Independent Sector
Cambridgeshire County Council,16-Nov-17,24825148-16376211,-1328.44,Care Management Group (64-66 Carlton),Care Establishment,4 - Operations - Providers services,LDP E Cambs Special Needs,Residential Independent Sector
Cambridgeshire County Council,16-Nov-17,24825177-16376237,-1328.44,Care Management Group (64-66 Carlton),Care Establishment,4 - Operations - Providers services,LDP E Cambs Special Needs,Residential Independent Sector
Cambridgeshire County Council,16-Nov-17,24577515-16376326,-1328.44,Care Management Group (64-66 Carlton),Care Establishment,4 - Operations - Providers services,LDP E Cambs Special Needs,Residential Independent Sector
Cambridgeshire County Council,16-Nov-17,24577523-16376334,-1328.44,Care Management Group (64-66 Carlton),Care Establishment,4 - Operations - Providers services,LDP E Cambs Special Needs,Residential Independent Sector
Cambridgeshire County Council,16-Nov-17,24577525-16376336,-1328.44,Care Management Group (64-66 Carlton),Care Establishment,4 - Operations - Providers services,LDP E Cambs Special Needs,Residential Independent Sector
Cambridgeshire County Council,16-Nov-17,24575239-16376363,-1328.44,Care Management Group (64-66 Carlton),Care Establishment,4 - Operations - Providers services,LDP E Cambs Special Needs,Residential Independent Sector
Cambridgeshire County Council,16-Nov-17,24575265-16376389,-1328.44,Care Management Group (64-66 Carlton),Care Establishment,4 - Operations - Providers services,LDP E Cambs Special Needs,Residential Independent Sector
Cambridgeshire County Council,16-Nov-17,24581355-16375943,-1328.44,Care Management Group (64-66 Carlton),Care Establishment,4 - Operations - Providers services,LDP E Cambs Special Needs,Residential Independent Sector
Cambridgeshire County Council,16-Nov-17,24608276-16375992,-1328.44,Care Management Group (64-66 Carlton),Care Establishment,4 - Operations - Providers services,LDP E Cambs Special Needs,Residential Independent Sector
Cambridgeshire County Council,16-Nov-17,24608299-16376015,-1328.44,Care Management Group (64-66 Carlton),Care Establishment,4 - Operations - Providers services,LDP E Cambs Special Needs,Residential Independent Sector
Cambridgeshire County Council,16-Nov-17,24608314-16376030,-1328.44,Care Management Group (64-66 Carlton),Care Establishment,4 - Operations - Providers services,LDP E Cambs Special Needs,Residential Independent Sector
Cambridgeshire County Council,16-Nov-17,24608322-16376038,-1328.44,Care Management Group (64-66 Carlton),Care Establishment,4 - Operations - Providers services,LDP E Cambs Special Needs,Residential Independent Sector
Cambridgeshire County Council,16-Nov-17,24608329-16376045,-1328.44,Care Management Group (64-66 Carlton),Care Establishment,4 - Operations - Providers services,LDP E Cambs Special Needs,Residential Independent Sector
Cambridgeshire County Council,16-Nov-17,24608347-16376063,-1328.44,Care Management Group (64-66 Carlton),Care Establishment,4 - Operations - Providers services,LDP E Cambs Special Needs,Residential Independent Sector
Cambridgeshire County Council,16-Nov-17,24777821-16376072,-1328.44,Care Management Group (64-66 Carlton),Care Establishment,4 - Operations - Providers services,LDP E Cambs Special Needs,Residential Independent Sector
Cambridgeshire County Council,16-Nov-17,24575213-16375800,-1328.44,Care Management Group (64-66 Carlton),Care Establishment,4 - Operations - Providers services,LDP E Cambs Special Needs,Residential Independent Sector
Cambridgeshire County Council,16-Nov-17,24577556-16375832,-1328.44,Care Management Group (64-66 Carlton),Care Establishment,4 - Operations - Providers services,LDP E Cambs Special Needs,Residential Independent Sector
Cambridgeshire County Council,16-Nov-17,24577561-16375837,-1328.44,Care Management Group (64-66 Carlton),Care Establishment,4 - Operations - Providers services,LDP E Cambs Special Needs,Residential Independent Sector
Cambridgeshire County Council,16-Nov-17,24577568-16375844,-1328.44,Care Management Group (64-66 Carlton),Care Establishment,4 - Operations - Providers services,LDP E Cambs Special Needs,Residential Independent Sector
Cambridgeshire County Council,16-Nov-17,24579556-16375911,-1328.44,Care Management Group (64-66 Carlton),Care Establishment,4 - Operations - Providers services,LDP E Cambs Special Needs,Residential Independent Sector
Cambridgeshire County Council,16-Nov-17,24581339-16375927,-1328.44,Care Management Group (64-66 Carlton),Care Establishment,4 - Operations - Providers services,LDP E Cambs Special Needs,Residential Independent Sector
Cambridgeshire County Council,16-Nov-17,24581342-16375930,-1328.44,Care Management Group (64-66 Carlton),Care Establishment,4 - Operations - Providers services,LDP E Cambs Special Needs,Residential Independent Sector
Cambridgeshire County Council,16-Nov-17,24610081-16376536,-1328.44,Care Management Group (64-66 Carlton),Care Establishment,4 - Operations - Providers services,LDP E Cambs Special Needs,Residential Independent Sector
Cambridgeshire County Council,16-Nov-17,24610082-16376537,-1328.44,Care Management Group (64-66 Carlton),Care Establishment,4 - Operations - Providers services,LDP E Cambs Special Needs,Residential Independent Sector
Cambridgeshire County Council,16-Nov-17,24610090-16376545,-1328.44,Care Management Group (64-66 Carlton),Care Establishment,4 - Operations - Providers services,LDP E Cambs Special Needs,Residential Independent Sector
Cambridgeshire County Council,16-Nov-17,24610113-16376568,-1328.44,Care Management Group (64-66 Carlton),Care Establishment,4 - Operations - Providers services,LDP E Cambs Special Needs,Residential Independent Sector
Cambridgeshire County Council,16-Nov-17,24784131-16376595,-1328.44,Care Management Group (64-66 Carlton),Care Establishment,4 - Operations - Providers services,LDP E Cambs Special Needs,Residential Independent Sector
Cambridgeshire County Council,16-Nov-17,24784133-16376597,-1328.44,Care Management Group (64-66 Carlton),Care Establishment,4 - Operations - Providers services,LDP E Cambs Special Needs,Residential Independent Sector
Cambridgeshire County Council,16-Nov-17,24784172-16376636,-1328.44,Care Management Group (64-66 Carlton),Care Establishment,4 - Operations - Providers services,LDP E Cambs Special Needs,Residential Independent Sector
Cambridgeshire County Council,16-Nov-17,24784178-16376642,-1328.44,Care Management Group (64-66 Carlton),Care Establishment,4 - Operations - Providers services,LDP E Cambs Special Needs,Residential Independent Sector
Cambridgeshire County Council,16-Nov-17,24784181-16376645,-1328.44,Care Management Group (64-66 Carlton),Care Establishment,4 - Operations - Providers services,LDP E Cambs Special Needs,Residential Independent Sector
Cambridgeshire County Council,16-Nov-17,24784116-16376660,-1328.44,Care Management Group (64-66 Carlton),Care Establishment,4 - Operations - Providers services,LDP E Cambs Special Needs,Residential Independent Sector
Cambridgeshire County Council,16-Nov-17,24789893-16376674,-1328.44,Care Management Group (64-66 Carlton),Care Establishment,4 - Operations - Providers services,LDP E Cambs Special Needs,Residential Independent Sector
Cambridgeshire County Council,16-Nov-17,24825079-16376698,-1328.44,Care Management Group (64-66 Carlton),Care Establishment,4 - Operations - Providers services,LDP E Cambs Special Needs,Residential Independent Sector
Cambridgeshire County Council,16-Nov-17,24825084-16376703,-1328.44,Care Management Group (64-66 Carlton),Care Establishment,4 - Operations - Providers services,LDP E Cambs Special Needs,Residential Independent Sector
Cambridgeshire County Council,16-Nov-17,24825089-16376707,-1328.44,Care Management Group (64-66 Carlton),Care Establishment,4 - Operations - Providers services,LDP E Cambs Special Needs,Residential Independent Sector
Cambridgeshire County Council,16-Nov-17,24828082-16376786,-1328.44,Care Management Group (64-66 Carlton),Care Establishment,4 - Operations - Providers services,LDP E Cambs Special Needs,Residential Independent Sector
Cambridgeshire County Council,16-Nov-17,24828090-16376794,-1328.44,Care Management Group (64-66 Carlton),Care Establishment,4 - Operations - Providers services,LDP E Cambs Special Needs,Residential Independent Sector
Cambridgeshire County Council,16-Nov-17,24828091-16376795,-1328.44,Care Management Group (64-66 Carlton),Care Establishment,4 - Operations - Providers services,LDP E Cambs Special Needs,Residential Independent Sector
Cambridgeshire County Council,16-Nov-17,24828096-16376800,-1328.44,Care Management Group (64-66 Carlton),Care Establishment,4 - Operations - Providers services,LDP E Cambs Special Needs,Residential Independent Sector
Cambridgeshire County Council,16-Nov-17,24828110-16376814,-1328.44,Care Management Group (64-66 Carlton),Care Establishment,4 - Operations - Providers services,LDP E Cambs Special Needs,Residential Independent Sector
Cambridgeshire County Council,16-Nov-17,24828114-16376818,-1328.44,Care Management Group (64-66 Carlton),Care Establishment,4 - Operations - Providers services,LDP E Cambs Special Needs,Residential Independent Sector
Cambridgeshire County Council,16-Nov-17,24777843-16376094,-1328.44,Care Management Group (64-66 Carlton),Care Establishment,4 - Operations - Providers services,LDP E Cambs Special Needs,Residential Independent Sector
Cambridgeshire County Council,16-Nov-17,24777856-16376107,-1328.44,Care Management Group (64-66 Carlton),Care Establishment,4 - Operations - Providers services,LDP E Cambs Special Needs,Residential Independent Sector
Cambridgeshire County Council,16-Nov-17,24606985-16376416,-1328.44,Care Management Group (64-66 Carlton),Care Establishment,4 - Operations - Providers services,LDP E Cambs Special Needs,Residential Independent Sector
